Workbook

Sheet 费用
J1: XX旗舰店2016年支出费用表
E3: Jan | I3: Feb | M3: Mar | Q3: Apr | U3: May | Y3: Jun | AC3: Jul | AG3: Aug | AK3: Sep | AO3: Oct | AS3: Nov | AW3: Dec
E4: 1st | F4: 2nd | G4: 3rd | H4: 4th | I4: 1st | J4: 2nd | K4: 3rd | L4: 4th | M4: 1st | N4: 2nd | O4: 3rd | P4: 4th | Q4: 1st | R4: 2nd | S4: 3rd | T4: 4th | U4: 1st | V4: 2nd | W4: 3rd | X4: 4th | Y4: 1st | Z4: 2nd | AA4: 3rd | AB4: 4th | AC4: 1st | AD4: 2nd | AE4: 3rd | AF4: 4th | AG4: 1st | AH4: 2nd | AI4: 3rd | AJ4: 4th | AK4: 1st | AL4: 2nd | AM4: 3rd | AN4: 4th | AO4: 1st | AP4: 2nd | AQ4: 3rd | AR4: 4th | AS4: 1st | AT4: 2nd | AU4: 3rd | AV4: 4th | AW4: 1st | AX4: 2nd | AY4: 3rd | AZ4: 4th | BA4: 合计
BA5: =SUM(E5:AZ5) -> 0
B6: 天猫平台固定费用 | BA6: =SUM(E6:AZ6) -> 0
C7: 技术服务年费 | E7: 100000 | F7: 0 | G7: 0 | H7: 0 | I7: 0 | J7: 0 | K7: 0 | L7: 0 | M7: 0 | N7: 0 | O7: 0 | P7: 0 | Q7: 0 | R7: 0 | S7: 0 | T7: 0 | U7: 0 | V7: 0 | W7: 0 | X7: 0 | Y7: 0 | Z7: 0 | AA7: 0 | AB7: 0 | AC7: 0 | AD7: 0 | AE7: 0 | AF7: 0 | AG7: 0 | AH7: 0 | AI7: 0 | AJ7: 0 | AK7: 0 | AL7: 0 | AM7: 0 | AN7: 0 | AO7: 0 | AP7: 0 | AQ7: 0 | AR7: 0 | AS7: 0 | AT7: 0 | AU7: 0 | AV7: 0 | AW7: 0 | AX7: 0 | AY7: 0 | AZ7: 0 | BA7: 100000
C8: 服务保证金 | E8: 60000 | F8: 0 | G8: 0 | H8: 0 | I8: 0 | J8: 0 | K8: 0 | L8: 0 | M8: 0 | N8: 0 | O8: 0 | P8: 0 | Q8: 0 | R8: 0 | S8: 0 | T8: 0 | U8: 0 | V8: 0 | W8: 0 | X8: 0 | Y8: 0 | Z8: 0 | AA8: 0 | AB8: 0 | AC8: 0 | AD8: 0 | AE8: 0 | AF8: 0 | AG8: 0 | AH8: 0 | AI8: 0 | AJ8: 0 | AK8: 0 | AL8: 0 | AM8: 0 | AN8: 0 | AO8: 0 | AP8: 0 | AQ8: 0 | AR8: 0 | AS8: 0 | AT8: 0 | AU8: 0 | AV8: 0 | AW8: 0 | AX8: 0 | AY8: 0 | AZ8: -60000 | BA8: 0
C9: 商城扣点 | E9: =收入和直接成本!D69*0.05 -> 2053.1 | F9: =收入和直接成本!E69*0.05 -> 2538.2 | G9: =收入和直接成本!F69*0.05 -> 3023.3 | H9: =收入和直接成本!G69*0.05 -> 3508.4 | I9: =收入和直接成本!H69*0.05 -> 3993.5 | J9: =收入和直接成本!I69*0.05 -> 5105.8 | K9: =收入和直接成本!J69*0.05 -> 6218.1 | L9: =收入和直接成本!K69*0.05 -> 7330.4 | M9: =收入和直接成本!L69*0.05 -> 8442.7 | N9: =收入和直接成本!M69*0.05 -> 9555 | O9: =收入和直接成本!N69*0.05 -> 9697.1 | P9: =收入和直接成本!O69*0.05 -> 9839.2 | Q9: =收入和直接成本!P69*0.05 -> 10111.15 | R9: =收入和直接成本!Q69*0.05 -> 10253.25 | S9: =收入和直接成本!R69*0.05 -> 10395.35 | T9: =收入和直接成本!S69*0.05 -> 10537.45 | U9: =收入和直接成本!T69*0.05 -> 9224.25 | V9: =收入和直接成本!U69*0.05 -> 9851.45 | W9: =收入和直接成本!V69*0.05 -> 10478.65 | X9: =收入和直接成本!W69*0.05 -> 11105.85 | Y9: =收入和直接成本!X69*0.05 -> 11733.05 | Z9: =收入和直接成本!Y69*0.05 -> 12360.25 | AA9: =收入和直接成本!Z69*0.05 -> 12987.45 | AB9: =收入和直接成本!AA69*0.05 -> 12360.25 | AC9: =收入和直接成本!AB69*0.05 -> 13073.2 | AD9: =收入和直接成本!AC69*0.05 -> 12446 | AE9: =收入和直接成本!AD69*0.05 -> 11818.8 | AF9: =收入和直接成本!AE69*0.05 -> 11191.6 | AG9: =收入和直接成本!AF69*0.05 -> 10564.4 | AH9: =收入和直接成本!AG69*0.05 -> 9937.2 | AI9: =收入和直接成本!AH69*0.05 -> 9623.6 | AJ9: =收入和直接成本!AI69*0.05 -> 10740.8 | AK9: =收入和直接成本!AJ69*0.05 -> 11858 | AL9: =收入和直接成本!AK69*0.05 -> 12975.2 | AM9: =收入和直接成本!AL69*0.05 -> 16042.6 | AN9: =收入和直接成本!AM69*0.05 -> 19110 | AO9: =收入和直接成本!AN69*0.05 -> 29272.6 | AP9: =收入和直接成本!AO69*0.05 -> 38190.6 | AQ9: =收入和直接成本!AP69*0.05 -> 49058.8 | AR9: =收入和直接成本!AQ69*0.05 -> 57976.8 | AS9: =收入和直接成本!AR69*0.05 -> 59094 | AT9: =收入和直接成本!AS69*0.05 -> 60211.2 | AU9: =收入和直接成本!AT69*0.05 -> 61328.4 | AV9: =收入和直接成本!AU69*0.05 -> 62445.6 | AW9: =收入和直接成本!AV69*0.05 -> 61328.4 | AX9: =收入和直接成本!AW69*0.05 -> 60211.2 | AY9: =收入和直接成本!AX69*0.05 -> 51293.2 | AZ9: =收入和直接成本!AY69*0.05 -> 42375.2 | BA9: 984870.6
BA10: 0
B11: 固定费用合计 | E11: =E7+E8+E9 -> 162053.1 | F11: =F7+F8+F9 -> 2538.2 | G11: 3023.3 | H11: 3508.4 | I11: 3993.5 | J11: 5105.8 | K11: 6218.1 | L11: 7330.4 | M11: 8442.7 | N11: 9555 | O11: 9697.1 | P11: 9839.2 | Q11: 10111.15 | R11: 10253.25 | S11: 10395.35 | T11: 10537.45 | U11: 9224.25 | V11: 9851.45 | W11: 10478.65 | X11: 11105.85 | Y11: 11733.05 | Z11: 12360.25 | AA11: 12987.45 | AB11: 12360.25 | AC11: 13073.2 | AD11: 12446 | AE11: 11818.8 | AF11: 11191.6 | AG11: 10564.4 | AH11: 9937.2 | AI11: 9623.6 | AJ11: 10740.8 | AK11: 11858 | AL11: 12975.2 | AM11: 16042.6 | AN11: 19110 | AO11: 29272.6 | AP11: 38190.6 | AQ11: 49058.8 | AR11: 57976.8 | AS11: 59094 | AT11: 60211.2 | AU11: 61328.4 | AV11: 62445.6 | AW11: 61328.4 | AX11: 60211.2 | AY11: 51293.2 | AZ11: -17624.8 | BA11: 1084870.6
BA12: 0
B13: 营运费用【硬性】 | BA13: 0
BA14: 0
C15: 模特拍摄费用 | E15: =SUM(E16:E20) -> 7000 | F15: =SUM(F16:F20) -> 0 | G15: 0 | H15: 0 | I15: 0 | J15: 0 | K15: 0 | L15: 0 | M15: 0 | N15: 0 | O15: 0 | P15: 0 | Q15: 7000 | R15: 0 | S15: 0 | T15: 0 | U15: 0 | V15: 0 | W15: 0 | X15: 0 | Y15: 0 | Z15: 0 | AA15: 0 | AB15: 0 | AC15: 7000 | AD15: 0 | AE15: 0 | AF15: 0 | AG15: 0 | AH15: 0 | AI15: 0 | AJ15: 0 | AK15: 0 | AL15: 0 | AM15: 0 | AN15: 0 | AO15: 7000 | AP15: 0 | AQ15: 0 | AR15: 0 | AS15: 0 | AT15: 0 | AU15: 0 | AV15: 0 | AW15: 0 | AX15: 0 | AY15: 0 | AZ15: 0 | BA15: 28000
D16: 模特费 | E16: 2500 | F16: 0 | G16: 0 | H16: 0 | I16: 0 | J16: 0 | K16: 0 | L16: 0 | M16: 0 | N16: 0 | O16: 0 | P16: 0 | Q16: 2500 | R16: 0 | S16: 0 | T16: 0 | U16: 0 | V16: 0 | W16: 0 | X16: 0 | Y16: 0 | Z16: 0 | AA16: 0 | AB16: 0 | AC16: 2500 | AD16: =SUM(AD17:AD21) -> 0 | AE16: =SUM(AE17:AE21) -> 0 | AF16: =SUM(AF17:AF21) -> 0 | AG16: =SUM(AG17:AG21) -> 0 | AH16: =SUM(AH17:AH21) -> 0 | AI16: =SUM(AI17:AI21) -> 0 | AJ16: =SUM(AJ17:AJ21) -> 0 | AK16: =SUM(AK17:AK21) -> 0 | AL16: =SUM(AL17:AL21) -> 0 | AM16: =SUM(AM17:AM21) -> 0 | AN16: =SUM(AN17:AN21) -> 0 | AO16: 2500 | AP16: 0 | AQ16: 0 | AR16: 0 | AS16: 0 | AT16: 0 | AU16: 0 | AV16: 0 | AW16: 0 | AX16: 0 | AY16: 0 | AZ16: 0 | BA16: 10000
D17: 造型师 | E17: 500 | F17: 0 | G17: 0 | H17: 0 | I17: 0 | J17: 0 | K17: 0 | L17: 0 | M17: 0 | N17: 0 | O17: 0 | P17: 0 | Q17: 500 | R17: 0 | S17: 0 | T17: 0 | U17: 0 | V17: 0 | W17: 0 | X17: 0 | Y17: 0 | Z17: 0 | AA17: 0 | AB17: 0 | AC17: 500 | AD17: 0 | AE17: 0 | AF17: 0 | AG17: 0 | AH17: 0 | AI17: 0 | AJ17: 0 | AK17: 0 | AL17: 0 | AM17: 0 | AN17: 0 | AO17: 500 | AP17: 0 | AQ17: 0 | AR17: 0 | AS17: 0 | AT17: 0 | AU17: 0 | AV17: 0 | AW17: 0 | AX17: 0 | AY17: 0 | AZ17: 0 | BA17: 2000
D18: 摄影师 | E18: 1500 | F18: 0 | G18: 0 | H18: 0 | I18: 0 | J18: 0 | K18: 0 | L18: 0 | M18: 0 | N18: 0 | O18: 0 | P18: 0 | Q18: 1500 | R18: 0 | S18: 0 | T18: 0 | U18: 0 | V18: 0 | W18: 0 | X18: 0 | Y18: 0 | Z18: 0 | AA18: 0 | AB18: 0 | AC18: 1500 | AD18: 0 | AE18: 0 | AF18: 0 | AG18: 0 | AH18: 0 | AI18: 0 | AJ18: 0 | AK18: 0 | AL18: 0 | AM18: 0 | AN18: 0 | AO18: 1500 | AP18: 0 | AQ18: 0 | AR18: 0 | AS18: 0 | AT18: 0 | AU18: 0 | AV18: 0 | AW18: 0 | AX18: 0 | AY18: 0 | AZ18: 0 | BA18: 6000
D19: 影棚租赁 | E19: 1500 | F19: 0 | G19: 0 | H19: 0 | I19: 0 | J19: 0 | K19: 0 | L19: 0 | M19: 0 | N19: 0 | O19: 0 | P19: 0 | Q19: 1500 | R19: 0 | S19: 0 | T19: 0 | U19: 0 | V19: 0 | W19: 0 | X19: 0 | Y19: 0 | Z19: 0 | AA19: 0 | AB19: 0 | AC19: 1500 | AD19: 0 | AE19: 0 | AF19: 0 | AG19: 0 | AH19: 0 | AI19: 0 | AJ19: 0 | AK19: 0 | AL19: 0 | AM19: 0 | AN19: 0 | AO19: 1500 | AP19: 0 | AQ19: 0 | AR19: 0 | AS19: 0 | AT19: 0 | AU19: 0 | AV19: 0 | AW19: 0 | AX19: 0 | AY19: 0 | AZ19: 0 | BA19: 6000
D20: 不可预计 | E20: 1000 | F20: 0 | G20: 0 | H20: 0 | I20: 0 | J20: 0 | K20: 0 | L20: 0 | M20: 0 | N20: 0 | O20: 0 | P20: 0 | Q20: 1000 | R20: 0 | S20: 0 | T20: 0 | U20: 0 | V20: 0 | W20: 0 | X20: 0 | Y20: 0 | Z20: 0 | AA20: 0 | AB20: 0 | AC20: 1000 | AD20: 0 | AE20: 0 | AF20: 0 | AG20: 0 | AH20: 0 | AI20: 0 | AJ20: 0 | AK20: 0 | AL20: 0 | AM20: 0 | AN20: 0 | AO20: 1000 | AP20: 0 | AQ20: 0 | AR20: 0 | AS20: 0 | AT20: 0 | AU20: 0 | AV20: 0 | AW20: 0 | AX20: 0 | AY20: 0 | AZ20: 0 | BA20: 4000
BA21: 0
C22: 房租费用 | E22: =E23+E24 -> 20000 | F22: =F23+F24 -> 0 | G22: 0 | H22: 0 | I22: 0 | J22: 0 | K22: 0 | L22: 0 | M22: 0 | N22: 0 | O22: 0 | P22: 0 | Q22: 15000 | R22: 0 | S22: 0 | T22: 0 | U22: 0 | V22: 0 | W22: 0 | X22: 0 | Y22: 0 | Z22: 0 | AA22: 0 | AB22: 0 | AC22: 15000 | AD22: 0 | AE22: 0 | AF22: 0 | AG22: 0 | AH22: 0 | AI22: 0 | AJ22: 0 | AK22: 0 | AL22: 0 | AM22: 0 | AN22: 0 | AO22: 15000 | AP22: 0 | AQ22: 0 | AR22: 0 | AS22: 0 | AT22: 0 | AU22: 0 | AV22: 0 | AW22: 0 | AX22: 0 | AY22: 0 | AZ22: 0 | BA22: 65000
D23: 押金 | E23: 5000 | F23: 0 | G23: 0 | H23: 0 | I23: 0 | J23: 0 | K23: 0 | L23: 0 | M23: 0 | N23: 0 | O23: 0 | P23: 0 | Q23: 0 | R23: 0 | S23: 0 | T23: 0 | U23: 0 | V23: 0 | W23: 0 | X23: 0 | Y23: 0 | Z23: 0 | AA23: 0 | AB23: 0 | AC23: 0 | AD23: 0 | AE23: 0 | AF23: 0 | AG23: 0 | AH23: 0 | AI23: 0 | AJ23: 0 | AK23: 0 | AL23: 0 | AM23: 0 | AN23: 0 | AO23: 0 | AP23: 0 | AQ23: 0 | AR23: 0 | AS23: 0 | AT23: 0 | AU23: 0 | AV23: 0 | AW23: 0 | AX23: 0 | AY23: 0 | AZ23: 0 | BA23: 5000
D24: 房租 | E24: 15000 | F24: 0 | G24: 0 | H24: 0 | I24: 0 | J24: 0 | K24: 0 | L24: 0 | M24: 0 | N24: 0 | O24: 0 | P24: 0 | Q24: 15000 | R24: 0 | S24: 0 | T24: 0 | U24: 0 | V24: 0 | W24: 0 | X24: 0 | Y24: 0 | Z24: 0 | AA24: 0 | AB24: 0 | AC24: 15000 | AD24: 0 | AE24: 0 | AF24: 0 | AG24: 0 | AH24: 0 | AI24: 0 | AJ24: 0 | AK24: 0 | AL24: 0 | AM24: 0 | AN24: 0 | AO24: 15000 | AP24: 0 | AQ24: 0 | AR24: 0 | AS24: 0 | AT24: 0 | AU24: 0 | AV24: 0 | AW24: 0 | AX24: 0 | AY24: 0 | AZ24: 0 | BA24: 60000
BA25: 0
C26: 办公费用 | E26: =SUM(E27:E33) -> 50880 | F26: =SUM(F27:F33) -> 1680 | G26: 1680 | H26: 1680 | I26: 2880 | J26: 1680 | K26: 1680 | L26: 1680 | M26: 2880 | N26: 1680 | O26: 1680 | P26: 1680 | Q26: 2880 | R26: 1680 | S26: 1680 | T26: 1680 | U26: 2880 | V26: 1680 | W26: 1680 | X26: 1680 | Y26: 2880 | Z26: 1680 | AA26: 1680 | AB26: 1680 | AC26: 2880 | AD26: 1680 | AE26: 1680 | AF26: 1680 | AG26: 2880 | AH26: 1680 | AI26: 4680 | AJ26: 1680 | AK26: 2880 | AL26: 1680 | AM26: 1680 | AN26: 1680 | AO26: 2880 | AP26: 1680 | AQ26: 1680 | AR26: 1680 | AS26: 2880 | AT26: 1680 | AU26: 1680 | AV26: 1680 | AW26: 2880 | AX26: 1680 | AY26: 1680 | AZ26: 1680 | BA26: 146040
D27: 电脑 | E27: 40000 | F27: 0 | G27: 0 | H27: 0 | I27: 0 | J27: 0 | K27: 0 | L27: 0 | M27: 0 | N27: 0 | O27: 0 | P27: 0 | Q27: 0 | R27: 0 | S27: 0 | T27: 0 | U27: 0 | V27: 0 | W27: 0 | X27: 0 | Y27: 0 | Z27: 0 | AA27: 0 | AB27: 0 | AC27: 0 | AD27: 0 | AE27: 0 | AF27: 0 | AG27: 0 | AH27: 0 | AI27: 0 | AJ27: 0 | AK27: 0 | AL27: 0 | AM27: 0 | AN27: 0 | AO27: 0 | AP27: 0 | AQ27: 0 | AR27: 0 | AS27: 0 | AT27: 0 | AU27: 0 | AV27: 0 | AW27: 0 | AX27: 0 | AY27: 0 | AZ27: 0 | BA27: 40000
D28: 家具 | E28: 5000 | F28: 0 | G28: 0 | H28: 0 | I28: 0 | J28: 0 | K28: 0 | L28: 0 | M28: 0 | N28: 0 | O28: 0 | P28: 0 | Q28: 0 | R28: 0 | S28: 0 | T28: 0 | U28: 0 | V28: 0 | W28: 0 | X28: 0 | Y28: 0 | Z28: 0 | AA28: 0 | AB28: 0 | AC28: 0 | AD28: 0 | AE28: 0 | AF28: 0 | AG28: 0 | AH28: 0 | AI28: 0 | AJ28: 0 | AK28: 0 | AL28: 0 | AM28: 0 | AN28: 0 | AO28: 0 | AP28: 0 | AQ28: 0 | AR28: 0 | AS28: 0 | AT28: 0 | AU28: 0 | AV28: 0 | AW28: 0 | AX28: 0 | AY28: 0 | AZ28: 0 | BA28: 5000
D29: 纸张耗材 | E29: 100 | F29: 100 | G29: 100 | H29: 100 | I29: 100 | J29: 100 | K29: 100 | L29: 100 | M29: 100 | N29: 100 | O29: 100 | P29: 100 | Q29: 100 | R29: 100 | S29: 100 | T29: 100 | U29: 100 | V29: 100 | W29: 100 | X29: 100 | Y29: 100 | Z29: 100 | AA29: 100 | AB29: 100 | AC29: 100 | AD29: 100 | AE29: 100 | AF29: 100 | AG29: 100 | AH29: 100 | AI29: 100 | AJ29: 100 | AK29: 100 | AL29: 100 | AM29: 100 | AN29: 100 | AO29: 100 | AP29: 100 | AQ29: 100 | AR29: 100 | AS29: 100 | AT29: 100 | AU29: 100 | AV29: 100 | AW29: 100 | AX29: 100 | AY29: 100 | AZ29: 100 | BA29: 4800
D30: 水电 | E30: 1200 | F30: 0 | G30: 0 | H30: 0 | I30: 1200 | J30: 0 | K30: 0 | L30: 0 | M30: 1200 | N30: 0 | O30: 0 | P30: 0 | Q30: 1200 | R30: 0 | S30: 0 | T30: 0 | U30: 1200 | V30: 0 | W30: 0 | X30: 0 | Y30: 1200 | Z30: 0 | AA30: 0 | AB30: 0 | AC30: 1200 | AD30: 0 | AE30: 0 | AF30: 0 | AG30: 1200 | AH30: 0 | AI30: 0 | AJ30: 0 | AK30: 1200 | AL30: 0 | AM30: 0 | AN30: 0 | AO30: 1200 | AP30: 0 | AQ30: 0 | AR30: 0 | AS30: 1200 | AT30: 0 | AU30: 0 | AV30: 0 | AW30: 1200 | AX30: 0 | AY30: 0 | AZ30: 0 | BA30: 14400
D31: 货架 | E31: 3000 | F31: 0 | G31: 0 | H31: 0 | I31: 0 | J31: 0 | K31: 0 | L31: 0 | M31: 0 | N31: 0 | O31: 0 | P31: 0 | Q31: 0 | R31: 0 | S31: 0 | T31: 0 | U31: 0 | V31: 0 | W31: 0 | X31: 0 | Y31: 0 | Z31: 0 | AA31: 0 | AB31: 0 | AC31: 0 | AD31: 0 | AE31: 0 | AF31: 0 | AG31: 0 | AH31: 0 | AI31: 3000 | AJ31: 0 | AK31: 0 | AL31: 0 | AM31: 0 | AN31: 0 | AO31: 0 | AP31: 0 | AQ31: 0 | AR31: 0 | AS31: 0 | AT31: 0 | AU31: 0 | AV31: 0 | AW31: 0 | AX31: 0 | AY31: 0 | AZ31: 0 | BA31: 6000
D32: 员工福利 | E32: =(E73+E77+E81+E85+E89+E93+E97+E101)*6*20 -> 1080 | F32: =(F73+F77+F81+F85+F89+F93+F97+F101)*6*20 -> 1080 | G32: 1080 | H32: 1080 | I32: 1080 | J32: 1080 | K32: 1080 | L32: 1080 | M32: 1080 | N32: 1080 | O32: 1080 | P32: 1080 | Q32: 1080 | R32: 1080 | S32: 1080 | T32: 1080 | U32: 1080 | V32: 1080 | W32: 1080 | X32: 1080 | Y32: 1080 | Z32: 1080 | AA32: 1080 | AB32: 1080 | AC32: 1080 | AD32: 1080 | AE32: 1080 | AF32: 1080 | AG32: 1080 | AH32: 1080 | AI32: 1080 | AJ32: 1080 | AK32: 1080 | AL32: 1080 | AM32: 1080 | AN32: 1080 | AO32: 1080 | AP32: 1080 | AQ32: 1080 | AR32: 1080 | AS32: 1080 | AT32: 1080 | AU32: 1080 | AV32: 1080 | AW32: 1080 | AX32: 1080 | AY32: 1080 | AZ32: 1080 | BA32: 51840
D33: 不可预计 | E33: 500 | F33: 500 | G33: 500 | H33: 500 | I33: 500 | J33: 500 | K33: 500 | L33: 500 | M33: 500 | N33: 500 | O33: 500 | P33: 500 | Q33: 500 | R33: 500 | S33: 500 | T33: 500 | U33: 500 | V33: 500 | W33: 500 | X33: 500 | Y33: 500 | Z33: 500 | AA33: 500 | AB33: 500 | AC33: 500 | AD33: 500 | AE33: 500 | AF33: 500 | AG33: 500 | AH33: 500 | AI33: 500 | AJ33: 500 | AK33: 500 | AL33: 500 | AM33: 500 | AN33: 500 | AO33: 500 | AP33: 500 | AQ33: 500 | AR33: 500 | AS33: 500 | AT33: 500 | AU33: 500 | AV33: 500 | AW33: 500 | AX33: 500 | AY33: 500 | AZ33: 500 | BA33: 24000
BA34: 0
C35: 营销费用 | E35: =E36+E37 -> 857.5 | F35: =F36+F37 -> 1102.5 | G35: 1347.5 | H35: 1592.5 | I35: 1837.5 | J35: 2327.5 | K35: 2817.5 | L35: 3307.5 | M35: 3797.5 | N35: 4287.5 | O35: 4287.5 | P35: 4287.5 | Q35: 4532.5 | R35: 4532.5 | S35: 4532.5 | T35: 4532.5 | U35: 3797.5 | V35: 4042.5 | W35: 4287.5 | X35: 4532.5 | Y35: 4777.5 | Z35: 5022.5 | AA35: 5267.5 | AB35: 5022.5 | AC35: 4532.5 | AD35: 4287.5 | AE35: 4042.5 | AF35: 3797.5 | AG35: 3552.5 | AH35: 3307.5 | AI35: 2508.8 | AJ35: 2822.4 | AK35: 3136 | AL35: 3449.6 | AM35: 4076.8 | AN35: 4704 | AO35: 5644.8 | AP35: 7212.8 | AQ35: 9094.4 | AR35: 10662.4 | AS35: 10976 | AT35: 11289.6 | AU35: 11603.2 | AV35: 11916.8 | AW35: 11603.2 | AX35: 11289.6 | AY35: 9721.6 | AZ35: 8153.6 | BA35: 250115.6
D36: 包装盒 | E36: =(收入和直接成本!D10+收入和直接成本!D15+收入和直接成本!D20+收入和直接成本!D28+收入和直接成本!D32+收入和直接成本!D36+收入和直接成本!D40+收入和直接成本!D44+收入和直接成本!D48+收入和直接成本!D52+收入和直接成本!D56+收入和直接成本!D60+收入和直接成本!D64)*1.5 -> 514.5 | F36: =(收入和直接成本!E10+收入和直接成本!E15+收入和直接成本!E20+收入和直接成本!E28+收入和直接成本!E32+收入和直接成本!E36+收入和直接成本!E40+收入和直接成本!E44+收入和直接成本!E48+收入和直接成本!E52+收入和直接成本!E56+收入和直接成本!E60+收入和直接成本!E64)*1.5 -> 661.5 | G36: =(收入和直接成本!F10+收入和直接成本!F15+收入和直接成本!F20+收入和直接成本!F28+收入和直接成本!F32+收入和直接成本!F36+收入和直接成本!F40+收入和直接成本!F44+收入和直接成本!F48+收入和直接成本!F52+收入和直接成本!F56+收入和直接成本!F60+收入和直接成本!F64)*1.5 -> 808.5 | H36: =(收入和直接成本!G10+收入和直接成本!G15+收入和直接成本!G20+收入和直接成本!G28+收入和直接成本!G32+收入和直接成本!G36+收入和直接成本!G40+收入和直接成本!G44+收入和直接成本!G48+收入和直接成本!G52+收入和直接成本!G56+收入和直接成本!G60+收入和直接成本!G64)*1.5 -> 955.5 | I36: =(收入和直接成本!H10+收入和直接成本!H15+收入和直接成本!H20+收入和直接成本!H28+收入和直接成本!H32+收入和直接成本!H36+收入和直接成本!H40+收入和直接成本!H44+收入和直接成本!H48+收入和直接成本!H52+收入和直接成本!H56+收入和直接成本!H60+收入和直接成本!H64)*1.5 -> 1102.5 | J36: =(收入和直接成本!I10+收入和直接成本!I15+收入和直接成本!I20+收入和直接成本!I28+收入和直接成本!I32+收入和直接成本!I36+收入和直接成本!I40+收入和直接成本!I44+收入和直接成本!I48+收入和直接成本!I52+收入和直接成本!I56+收入和直接成本!I60+收入和直接成本!I64)*1.5 -> 1396.5 | K36: =(收入和直接成本!J10+收入和直接成本!J15+收入和直接成本!J20+收入和直接成本!J28+收入和直接成本!J32+收入和直接成本!J36+收入和直接成本!J40+收入和直接成本!J44+收入和直接成本!J48+收入和直接成本!J52+收入和直接成本!J56+收入和直接成本!J60+收入和直接成本!J64)*1.5 -> 1690.5 | L36: =(收入和直接成本!K10+收入和直接成本!K15+收入和直接成本!K20+收入和直接成本!K28+收入和直接成本!K32+收入和直接成本!K36+收入和直接成本!K40+收入和直接成本!K44+收入和直接成本!K48+收入和直接成本!K52+收入和直接成本!K56+收入和直接成本!K60+收入和直接成本!K64)*1.5 -> 1984.5 | M36: =(收入和直接成本!L10+收入和直接成本!L15+收入和直接成本!L20+收入和直接成本!L28+收入和直接成本!L32+收入和直接成本!L36+收入和直接成本!L40+收入和直接成本!L44+收入和直接成本!L48+收入和直接成本!L52+收入和直接成本!L56+收入和直接成本!L60+收入和直接成本!L64)*1.5 -> 2278.5 | N36: =(收入和直接成本!M10+收入和直接成本!M15+收入和直接成本!M20+收入和直接成本!M28+收入和直接成本!M32+收入和直接成本!M36+收入和直接成本!M40+收入和直接成本!M44+收入和直接成本!M48+收入和直接成本!M52+收入和直接成本!M56+收入和直接成本!M60+收入和直接成本!M64)*1.5 -> 2572.5 | O36: =(收入和直接成本!N10+收入和直接成本!N15+收入和直接成本!N20+收入和直接成本!N28+收入和直接成本!N32+收入和直接成本!N36+收入和直接成本!N40+收入和直接成本!N44+收入和直接成本!N48+收入和直接成本!N52+收入和直接成本!N56+收入和直接成本!N60+收入和直接成本!N64)*1.5 -> 2572.5 | P36: =(收入和直接成本!O10+收入和直接成本!O15+收入和直接成本!O20+收入和直接成本!O28+收入和直接成本!O32+收入和直接成本!O36+收入和直接成本!O40+收入和直接成本!O44+收入和直接成本!O48+收入和直接成本!O52+收入和直接成本!O56+收入和直接成本!O60+收入和直接成本!O64)*1.5 -> 2572.5 | Q36: =(收入和直接成本!P10+收入和直接成本!P15+收入和直接成本!P20+收入和直接成本!P28+收入和直接成本!P32+收入和直接成本!P36+收入和直接成本!P40+收入和直接成本!P44+收入和直接成本!P48+收入和直接成本!P52+收入和直接成本!P56+收入和直接成本!P60+收入和直接成本!P64)*1.5 -> 2719.5 | R36: =(收入和直接成本!Q10+收入和直接成本!Q15+收入和直接成本!Q20+收入和直接成本!Q28+收入和直接成本!Q32+收入和直接成本!Q36+收入和直接成本!Q40+收入和直接成本!Q44+收入和直接成本!Q48+收入和直接成本!Q52+收入和直接成本!Q56+收入和直接成本!Q60+收入和直接成本!Q64)*1.5 -> 2719.5 | S36: =(收入和直接成本!R10+收入和直接成本!R15+收入和直接成本!R20+收入和直接成本!R28+收入和直接成本!R32+收入和直接成本!R36+收入和直接成本!R40+收入和直接成本!R44+收入和直接成本!R48+收入和直接成本!R52+收入和直接成本!R56+收入和直接成本!R60+收入和直接成本!R64)*1.5 -> 2719.5 | T36: =(收入和直接成本!S10+收入和直接成本!S15+收入和直接成本!S20+收入和直接成本!S28+收入和直接成本!S32+收入和直接成本!S36+收入和直接成本!S40+收入和直接成本!S44+收入和直接成本!S48+收入和直接成本!S52+收入和直接成本!S56+收入和直接成本!S60+收入和直接成本!S64)*1.5 -> 2719.5 | U36: =(收入和直接成本!T10+收入和直接成本!T15+收入和直接成本!T20+收入和直接成本!T28+收入和直接成本!T32+收入和直接成本!T36+收入和直接成本!T40+收入和直接成本!T44+收入和直接成本!T48+收入和直接成本!T52+收入和直接成本!T56+收入和直接成本!T60+收入和直接成本!T64)*1.5 -> 2278.5 | V36: =(收入和直接成本!U10+收入和直接成本!U15+收入和直接成本!U20+收入和直接成本!U28+收入和直接成本!U32+收入和直接成本!U36+收入和直接成本!U40+收入和直接成本!U44+收入和直接成本!U48+收入和直接成本!U52+收入和直接成本!U56+收入和直接成本!U60+收入和直接成本!U64)*1.5 -> 2425.5 | W36: =(收入和直接成本!V10+收入和直接成本!V15+收入和直接成本!V20+收入和直接成本!V28+收入和直接成本!V32+收入和直接成本!V36+收入和直接成本!V40+收入和直接成本!V44+收入和直接成本!V48+收入和直接成本!V52+收入和直接成本!V56+收入和直接成本!V60+收入和直接成本!V64)*1.5 -> 2572.5 | X36: =(收入和直接成本!W10+收入和直接成本!W15+收入和直接成本!W20+收入和直接成本!W28+收入和直接成本!W32+收入和直接成本!W36+收入和直接成本!W40+收入和直接成本!W44+收入和直接成本!W48+收入和直接成本!W52+收入和直接成本!W56+收入和直接成本!W60+收入和直接成本!W64)*1.5 -> 2719.5 | Y36: =(收入和直接成本!X10+收入和直接成本!X15+收入和直接成本!X20+收入和直接成本!X28+收入和直接成本!X32+收入和直接成本!X36+收入和直接成本!X40+收入和直接成本!X44+收入和直接成本!X48+收入和直接成本!X52+收入和直接成本!X56+收入和直接成本!X60+收入和直接成本!X64)*1.5 -> 2866.5 | Z36: =(收入和直接成本!Y10+收入和直接成本!Y15+收入和直接成本!Y20+收入和直接成本!Y28+收入和直接成本!Y32+收入和直接成本!Y36+收入和直接成本!Y40+收入和直接成本!Y44+收入和直接成本!Y48+收入和直接成本!Y52+收入和直接成本!Y56+收入和直接成本!Y60+收入和直接成本!Y64)*1.5 -> 3013.5 | AA36: =(收入和直接成本!Z10+收入和直接成本!Z15+收入和直接成本!Z20+收入和直接成本!Z28+收入和直接成本!Z32+收入和直接成本!Z36+收入和直接成本!Z40+收入和直接成本!Z44+收入和直接成本!Z48+收入和直接成本!Z52+收入和直接成本!Z56+收入和直接成本!Z60+收入和直接成本!Z64)*1.5 -> 3160.5 | AB36: =(收入和直接成本!AA10+收入和直接成本!AA15+收入和直接成本!AA20+收入和直接成本!AA28+收入和直接成本!AA32+收入和直接成本!AA36+收入和直接成本!AA40+收入和直接成本!AA44+收入和直接成本!AA48+收入和直接成本!AA52+收入和直接成本!AA56+收入和直接成本!AA60+收入和直接成本!AA64)*1.5 -> 3013.5 | AC36: =(收入和直接成本!AB10+收入和直接成本!AB15+收入和直接成本!AB20+收入和直接成本!AB28+收入和直接成本!AB32+收入和直接成本!AB36+收入和直接成本!AB40+收入和直接成本!AB44+收入和直接成本!AB48+收入和直接成本!AB52+收入和直接成本!AB56+收入和直接成本!AB60+收入和直接成本!AB64)*1.5 -> 2719.5 | AD36: =(收入和直接成本!AC10+收入和直接成本!AC15+收入和直接成本!AC20+收入和直接成本!AC28+收入和直接成本!AC32+收入和直接成本!AC36+收入和直接成本!AC40+收入和直接成本!AC44+收入和直接成本!AC48+收入和直接成本!AC52+收入和直接成本!AC56+收入和直接成本!AC60+收入和直接成本!AC64)*1.5 -> 2572.5 | AE36: =(收入和直接成本!AD10+收入和直接成本!AD15+收入和直接成本!AD20+收入和直接成本!AD28+收入和直接成本!AD32+收入和直接成本!AD36+收入和直接成本!AD40+收入和直接成本!AD44+收入和直接成本!AD48+收入和直接成本!AD52+收入和直接成本!AD56+收入和直接成本!AD60+收入和直接成本!AD64)*1.5 -> 2425.5 | AF36: =(收入和直接成本!AE10+收入和直接成本!AE15+收入和直接成本!AE20+收入和直接成本!AE28+收入和直接成本!AE32+收入和直接成本!AE36+收入和直接成本!AE40+收入和直接成本!AE44+收入和直接成本!AE48+收入和直接成本!AE52+收入和直接成本!AE56+收入和直接成本!AE60+收入和直接成本!AE64)*1.5 -> 2278.5 | AG36: =(收入和直接成本!AF10+收入和直接成本!AF15+收入和直接成本!AF20+收入和直接成本!AF28+收入和直接成本!AF32+收入和直接成本!AF36+收入和直接成本!AF40+收入和直接成本!AF44+收入和直接成本!AF48+收入和直接成本!AF52+收入和直接成本!AF56+收入和直接成本!AF60+收入和直接成本!AF64)*1.5 -> 2131.5 | AH36: =(收入和直接成本!AG10+收入和直接成本!AG15+收入和直接成本!AG20+收入和直接成本!AG28+收入和直接成本!AG32+收入和直接成本!AG36+收入和直接成本!AG40+收入和直接成本!AG44+收入和直接成本!AG48+收入和直接成本!AG52+收入和直接成本!AG56+收入和直接成本!AG60+收入和直接成本!AG64)*1.5 -> 1984.5 | AI36: =(收入和直接成本!AH10+收入和直接成本!AH15+收入和直接成本!AH20+收入和直接成本!AH28+收入和直接成本!AH32+收入和直接成本!AH36+收入和直接成本!AH40+收入和直接成本!AH44+收入和直接成本!AH48+收入和直接成本!AH52+收入和直接成本!AH56+收入和直接成本!AH60+收入和直接成本!AH64)*2.2 -> 1724.8 | AJ36: =(收入和直接成本!AI10+收入和直接成本!AI15+收入和直接成本!AI20+收入和直接成本!AI28+收入和直接成本!AI32+收入和直接成本!AI36+收入和直接成本!AI40+收入和直接成本!AI44+收入和直接成本!AI48+收入和直接成本!AI52+收入和直接成本!AI56+收入和直接成本!AI60+收入和直接成本!AI64)*2.2 -> 1940.4 | AK36: =(收入和直接成本!AJ10+收入和直接成本!AJ15+收入和直接成本!AJ20+收入和直接成本!AJ28+收入和直接成本!AJ32+收入和直接成本!AJ36+收入和直接成本!AJ40+收入和直接成本!AJ44+收入和直接成本!AJ48+收入和直接成本!AJ52+收入和直接成本!AJ56+收入和直接成本!AJ60+收入和直接成本!AJ64)*2.2 -> 2156 | AL36: =(收入和直接成本!AK10+收入和直接成本!AK15+收入和直接成本!AK20+收入和直接成本!AK28+收入和直接成本!AK32+收入和直接成本!AK36+收入和直接成本!AK40+收入和直接成本!AK44+收入和直接成本!AK48+收入和直接成本!AK52+收入和直接成本!AK56+收入和直接成本!AK60+收入和直接成本!AK64)*2.2 -> 2371.6 | AM36: =(收入和直接成本!AL10+收入和直接成本!AL15+收入和直接成本!AL20+收入和直接成本!AL28+收入和直接成本!AL32+收入和直接成本!AL36+收入和直接成本!AL40+收入和直接成本!AL44+收入和直接成本!AL48+收入和直接成本!AL52+收入和直接成本!AL56+收入和直接成本!AL60+收入和直接成本!AL64)*2.2 -> 2802.8 | AN36: =(收入和直接成本!AM10+收入和直接成本!AM15+收入和直接成本!AM20+收入和直接成本!AM28+收入和直接成本!AM32+收入和直接成本!AM36+收入和直接成本!AM40+收入和直接成本!AM44+收入和直接成本!AM48+收入和直接成本!AM52+收入和直接成本!AM56+收入和直接成本!AM60+收入和直接成本!AM64)*2.2 -> 3234 | AO36: =(收入和直接成本!AN10+收入和直接成本!AN15+收入和直接成本!AN20+收入和直接成本!AN28+收入和直接成本!AN32+收入和直接成本!AN36+收入和直接成本!AN40+收入和直接成本!AN44+收入和直接成本!AN48+收入和直接成本!AN52+收入和直接成本!AN56+收入和直接成本!AN60+收入和直接成本!AN64)*2.2 -> 3880.8 | AP36: =(收入和直接成本!AO10+收入和直接成本!AO15+收入和直接成本!AO20+收入和直接成本!AO28+收入和直接成本!AO32+收入和直接成本!AO36+收入和直接成本!AO40+收入和直接成本!AO44+收入和直接成本!AO48+收入和直接成本!AO52+收入和直接成本!AO56+收入和直接成本!AO60+收入和直接成本!AO64)*2.2 -> 4958.8 | AQ36: =(收入和直接成本!AP10+收入和直接成本!AP15+收入和直接成本!AP20+收入和直接成本!AP28+收入和直接成本!AP32+收入和直接成本!AP36+收入和直接成本!AP40+收入和直接成本!AP44+收入和直接成本!AP48+收入和直接成本!AP52+收入和直接成本!AP56+收入和直接成本!AP60+收入和直接成本!AP64)*2.2 -> 6252.4 | AR36: =(收入和直接成本!AQ10+收入和直接成本!AQ15+收入和直接成本!AQ20+收入和直接成本!AQ28+收入和直接成本!AQ32+收入和直接成本!AQ36+收入和直接成本!AQ40+收入和直接成本!AQ44+收入和直接成本!AQ48+收入和直接成本!AQ52+收入和直接成本!AQ56+收入和直接成本!AQ60+收入和直接成本!AQ64)*2.2 -> 7330.4 | AS36: =(收入和直接成本!AR10+收入和直接成本!AR15+收入和直接成本!AR20+收入和直接成本!AR28+收入和直接成本!AR32+收入和直接成本!AR36+收入和直接成本!AR40+收入和直接成本!AR44+收入和直接成本!AR48+收入和直接成本!AR52+收入和直接成本!AR56+收入和直接成本!AR60+收入和直接成本!AR64)*2.2 -> 7546 | AT36: =(收入和直接成本!AS10+收入和直接成本!AS15+收入和直接成本!AS20+收入和直接成本!AS28+收入和直接成本!AS32+收入和直接成本!AS36+收入和直接成本!AS40+收入和直接成本!AS44+收入和直接成本!AS48+收入和直接成本!AS52+收入和直接成本!AS56+收入和直接成本!AS60+收入和直接成本!AS64)*2.2 -> 7761.6 | AU36: =(收入和直接成本!AT10+收入和直接成本!AT15+收入和直接成本!AT20+收入和直接成本!AT28+收入和直接成本!AT32+收入和直接成本!AT36+收入和直接成本!AT40+收入和直接成本!AT44+收入和直接成本!AT48+收入和直接成本!AT52+收入和直接成本!AT56+收入和直接成本!AT60+收入和直接成本!AT64)*2.2 -> 7977.2 | AV36: =(收入和直接成本!AU10+收入和直接成本!AU15+收入和直接成本!AU20+收入和直接成本!AU28+收入和直接成本!AU32+收入和直接成本!AU36+收入和直接成本!AU40+收入和直接成本!AU44+收入和直接成本!AU48+收入和直接成本!AU52+收入和直接成本!AU56+收入和直接成本!AU60+收入和直接成本!AU64)*2.2 -> 8192.8 | AW36: =(收入和直接成本!AV10+收入和直接成本!AV15+收入和直接成本!AV20+收入和直接成本!AV28+收入和直接成本!AV32+收入和直接成本!AV36+收入和直接成本!AV40+收入和直接成本!AV44+收入和直接成本!AV48+收入和直接成本!AV52+收入和直接成本!AV56+收入和直接成本!AV60+收入和直接成本!AV64)*2.2 -> 7977.2 | AX36: =(收入和直接成本!AW10+收入和直接成本!AW15+收入和直接成本!AW20+收入和直接成本!AW28+收入和直接成本!AW32+收入和直接成本!AW36+收入和直接成本!AW40+收入和直接成本!AW44+收入和直接成本!AW48+收入和直接成本!AW52+收入和直接成本!AW56+收入和直接成本!AW60+收入和直接成本!AW64)*2.2 -> 7761.6 | AY36: =(收入和直接成本!AX10+收入和直接成本!AX15+收入和直接成本!AX20+收入和直接成本!AX28+收入和直接成本!AX32+收入和直接成本!AX36+收入和直接成本!AX40+收入和直接成本!AX44+收入和直接成本!AX48+收入和直接成本!AX52+收入和直接成本!AX56+收入和直接成本!AX60+收入和直接成本!AX64)*2.2 -> 6683.6 | AZ36: =(收入和直接成本!AY10+收入和直接成本!AY15+收入和直接成本!AY20+收入和直接成本!AY28+收入和直接成本!AY32+收入和直接成本!AY36+收入和直接成本!AY40+收入和直接成本!AY44+收入和直接成本!AY48+收入和直接成本!AY52+收入和直接成本!AY56+收入和直接成本!AY60+收入和直接成本!AY64)*2.2 -> 5605.6 | BA36: 162307.6
D37: 小礼物 | E37: =(收入和直接成本!D10+收入和直接成本!D15+收入和直接成本!D20+收入和直接成本!D28+收入和直接成本!D32+收入和直接成本!D36+收入和直接成本!D40+收入和直接成本!D44+收入和直接成本!D48+收入和直接成本!D52+收入和直接成本!D56+收入和直接成本!D60+收入和直接成本!D64)*1 -> 343 | F37: =(收入和直接成本!E10+收入和直接成本!E15+收入和直接成本!E20+收入和直接成本!E28+收入和直接成本!E32+收入和直接成本!E36+收入和直接成本!E40+收入和直接成本!E44+收入和直接成本!E48+收入和直接成本!E52+收入和直接成本!E56+收入和直接成本!E60+收入和直接成本!E64)*1 -> 441 | G37: =(收入和直接成本!F10+收入和直接成本!F15+收入和直接成本!F20+收入和直接成本!F28+收入和直接成本!F32+收入和直接成本!F36+收入和直接成本!F40+收入和直接成本!F44+收入和直接成本!F48+收入和直接成本!F52+收入和直接成本!F56+收入和直接成本!F60+收入和直接成本!F64)*1 -> 539 | H37: =(收入和直接成本!G10+收入和直接成本!G15+收入和直接成本!G20+收入和直接成本!G28+收入和直接成本!G32+收入和直接成本!G36+收入和直接成本!G40+收入和直接成本!G44+收入和直接成本!G48+收入和直接成本!G52+收入和直接成本!G56+收入和直接成本!G60+收入和直接成本!G64)*1 -> 637 | I37: =(收入和直接成本!H10+收入和直接成本!H15+收入和直接成本!H20+收入和直接成本!H28+收入和直接成本!H32+收入和直接成本!H36+收入和直接成本!H40+收入和直接成本!H44+收入和直接成本!H48+收入和直接成本!H52+收入和直接成本!H56+收入和直接成本!H60+收入和直接成本!H64)*1 -> 735 | J37: =(收入和直接成本!I10+收入和直接成本!I15+收入和直接成本!I20+收入和直接成本!I28+收入和直接成本!I32+收入和直接成本!I36+收入和直接成本!I40+收入和直接成本!I44+收入和直接成本!I48+收入和直接成本!I52+收入和直接成本!I56+收入和直接成本!I60+收入和直接成本!I64)*1 -> 931 | K37: =(收入和直接成本!J10+收入和直接成本!J15+收入和直接成本!J20+收入和直接成本!J28+收入和直接成本!J32+收入和直接成本!J36+收入和直接成本!J40+收入和直接成本!J44+收入和直接成本!J48+收入和直接成本!J52+收入和直接成本!J56+收入和直接成本!J60+收入和直接成本!J64)*1 -> 1127 | L37: =(收入和直接成本!K10+收入和直接成本!K15+收入和直接成本!K20+收入和直接成本!K28+收入和直接成本!K32+收入和直接成本!K36+收入和直接成本!K40+收入和直接成本!K44+收入和直接成本!K48+收入和直接成本!K52+收入和直接成本!K56+收入和直接成本!K60+收入和直接成本!K64)*1 -> 1323 | M37: =(收入和直接成本!L10+收入和直接成本!L15+收入和直接成本!L20+收入和直接成本!L28+收入和直接成本!L32+收入和直接成本!L36+收入和直接成本!L40+收入和直接成本!L44+收入和直接成本!L48+收入和直接成本!L52+收入和直接成本!L56+收入和直接成本!L60+收入和直接成本!L64)*1 -> 1519 | N37: =(收入和直接成本!M10+收入和直接成本!M15+收入和直接成本!M20+收入和直接成本!M28+收入和直接成本!M32+收入和直接成本!M36+收入和直接成本!M40+收入和直接成本!M44+收入和直接成本!M48+收入和直接成本!M52+收入和直接成本!M56+收入和直接成本!M60+收入和直接成本!M64)*1 -> 1715 | O37: =(收入和直接成本!N10+收入和直接成本!N15+收入和直接成本!N20+收入和直接成本!N28+收入和直接成本!N32+收入和直接成本!N36+收入和直接成本!N40+收入和直接成本!N44+收入和直接成本!N48+收入和直接成本!N52+收入和直接成本!N56+收入和直接成本!N60+收入和直接成本!N64)*1 -> 1715 | P37: =(收入和直接成本!O10+收入和直接成本!O15+收入和直接成本!O20+收入和直接成本!O28+收入和直接成本!O32+收入和直接成本!O36+收入和直接成本!O40+收入和直接成本!O44+收入和直接成本!O48+收入和直接成本!O52+收入和直接成本!O56+收入和直接成本!O60+收入和直接成本!O64)*1 -> 1715 | Q37: =(收入和直接成本!P10+收入和直接成本!P15+收入和直接成本!P20+收入和直接成本!P28+收入和直接成本!P32+收入和直接成本!P36+收入和直接成本!P40+收入和直接成本!P44+收入和直接成本!P48+收入和直接成本!P52+收入和直接成本!P56+收入和直接成本!P60+收入和直接成本!P64)*1 -> 1813 | R37: =(收入和直接成本!Q10+收入和直接成本!Q15+收入和直接成本!Q20+收入和直接成本!Q28+收入和直接成本!Q32+收入和直接成本!Q36+收入和直接成本!Q40+收入和直接成本!Q44+收入和直接成本!Q48+收入和直接成本!Q52+收入和直接成本!Q56+收入和直接成本!Q60+收入和直接成本!Q64)*1 -> 1813 | S37: =(收入和直接成本!R10+收入和直接成本!R15+收入和直接成本!R20+收入和直接成本!R28+收入和直接成本!R32+收入和直接成本!R36+收入和直接成本!R40+收入和直接成本!R44+收入和直接成本!R48+收入和直接成本!R52+收入和直接成本!R56+收入和直接成本!R60+收入和直接成本!R64)*1 -> 1813 | T37: =(收入和直接成本!S10+收入和直接成本!S15+收入和直接成本!S20+收入和直接成本!S28+收入和直接成本!S32+收入和直接成本!S36+收入和直接成本!S40+收入和直接成本!S44+收入和直接成本!S48+收入和直接成本!S52+收入和直接成本!S56+收入和直接成本!S60+收入和直接成本!S64)*1 -> 1813 | U37: =(收入和直接成本!T10+收入和直接成本!T15+收入和直接成本!T20+收入和直接成本!T28+收入和直接成本!T32+收入和直接成本!T36+收入和直接成本!T40+收入和直接成本!T44+收入和直接成本!T48+收入和直接成本!T52+收入和直接成本!T56+收入和直接成本!T60+收入和直接成本!T64)*1 -> 1519 | V37: =(收入和直接成本!U10+收入和直接成本!U15+收入和直接成本!U20+收入和直接成本!U28+收入和直接成本!U32+收入和直接成本!U36+收入和直接成本!U40+收入和直接成本!U44+收入和直接成本!U48+收入和直接成本!U52+收入和直接成本!U56+收入和直接成本!U60+收入和直接成本!U64)*1 -> 1617 | W37: =(收入和直接成本!V10+收入和直接成本!V15+收入和直接成本!V20+收入和直接成本!V28+收入和直接成本!V32+收入和直接成本!V36+收入和直接成本!V40+收入和直接成本!V44+收入和直接成本!V48+收入和直接成本!V52+收入和直接成本!V56+收入和直接成本!V60+收入和直接成本!V64)*1 -> 1715 | X37: =(收入和直接成本!W10+收入和直接成本!W15+收入和直接成本!W20+收入和直接成本!W28+收入和直接成本!W32+收入和直接成本!W36+收入和直接成本!W40+收入和直接成本!W44+收入和直接成本!W48+收入和直接成本!W52+收入和直接成本!W56+收入和直接成本!W60+收入和直接成本!W64)*1 -> 1813 | Y37: =(收入和直接成本!X10+收入和直接成本!X15+收入和直接成本!X20+收入和直接成本!X28+收入和直接成本!X32+收入和直接成本!X36+收入和直接成本!X40+收入和直接成本!X44+收入和直接成本!X48+收入和直接成本!X52+收入和直接成本!X56+收入和直接成本!X60+收入和直接成本!X64)*1 -> 1911 | Z37: =(收入和直接成本!Y10+收入和直接成本!Y15+收入和直接成本!Y20+收入和直接成本!Y28+收入和直接成本!Y32+收入和直接成本!Y36+收入和直接成本!Y40+收入和直接成本!Y44+收入和直接成本!Y48+收入和直接成本!Y52+收入和直接成本!Y56+收入和直接成本!Y60+收入和直接成本!Y64)*1 -> 2009 | AA37: =(收入和直接成本!Z10+收入和直接成本!Z15+收入和直接成本!Z20+收入和直接成本!Z28+收入和直接成本!Z32+收入和直接成本!Z36+收入和直接成本!Z40+收入和直接成本!Z44+收入和直接成本!Z48+收入和直接成本!Z52+收入和直接成本!Z56+收入和直接成本!Z60+收入和直接成本!Z64)*1 -> 2107 | AB37: =(收入和直接成本!AA10+收入和直接成本!AA15+收入和直接成本!AA20+收入和直接成本!AA28+收入和直接成本!AA32+收入和直接成本!AA36+收入和直接成本!AA40+收入和直接成本!AA44+收入和直接成本!AA48+收入和直接成本!AA52+收入和直接成本!AA56+收入和直接成本!AA60+收入和直接成本!AA64)*1 -> 2009 | AC37: =(收入和直接成本!AB10+收入和直接成本!AB15+收入和直接成本!AB20+收入和直接成本!AB28+收入和直接成本!AB32+收入和直接成本!AB36+收入和直接成本!AB40+收入和直接成本!AB44+收入和直接成本!AB48+收入和直接成本!AB52+收入和直接成本!AB56+收入和直接成本!AB60+收入和直接成本!AB64)*1 -> 1813 | AD37: =(收入和直接成本!AC10+收入和直接成本!AC15+收入和直接成本!AC20+收入和直接成本!AC28+收入和直接成本!AC32+收入和直接成本!AC36+收入和直接成本!AC40+收入和直接成本!AC44+收入和直接成本!AC48+收入和直接成本!AC52+收入和直接成本!AC56+收入和直接成本!AC60+收入和直接成本!AC64)*1 -> 1715 | AE37: =(收入和直接成本!AD10+收入和直接成本!AD15+收入和直接成本!AD20+收入和直接成本!AD28+收入和直接成本!AD32+收入和直接成本!AD36+收入和直接成本!AD40+收入和直接成本!AD44+收入和直接成本!AD48+收入和直接成本!AD52+收入和直接成本!AD56+收入和直接成本!AD60+收入和直接成本!AD64)*1 -> 1617 | AF37: =(收入和直接成本!AE10+收入和直接成本!AE15+收入和直接成本!AE20+收入和直接成本!AE28+收入和直接成本!AE32+收入和直接成本!AE36+收入和直接成本!AE40+收入和直接成本!AE44+收入和直接成本!AE48+收入和直接成本!AE52+收入和直接成本!AE56+收入和直接成本!AE60+收入和直接成本!AE64)*1 -> 1519 | AG37: =(收入和直接成本!AF10+收入和直接成本!AF15+收入和直接成本!AF20+收入和直接成本!AF28+收入和直接成本!AF32+收入和直接成本!AF36+收入和直接成本!AF40+收入和直接成本!AF44+收入和直接成本!AF48+收入和直接成本!AF52+收入和直接成本!AF56+收入和直接成本!AF60+收入和直接成本!AF64)*1 -> 1421 | AH37: =(收入和直接成本!AG10+收入和直接成本!AG15+收入和直接成本!AG20+收入和直接成本!AG28+收入和直接成本!AG32+收入和直接成本!AG36+收入和直接成本!AG40+收入和直接成本!AG44+收入和直接成本!AG48+收入和直接成本!AG52+收入和直接成本!AG56+收入和直接成本!AG60+收入和直接成本!AG64)*1 -> 1323 | AI37: =(收入和直接成本!AH10+收入和直接成本!AH15+收入和直接成本!AH20+收入和直接成本!AH28+收入和直接成本!AH32+收入和直接成本!AH36+收入和直接成本!AH40+收入和直接成本!AH44+收入和直接成本!AH48+收入和直接成本!AH52+收入和直接成本!AH56+收入和直接成本!AH60+收入和直接成本!AH64)*1 -> 784 | AJ37: =(收入和直接成本!AI10+收入和直接成本!AI15+收入和直接成本!AI20+收入和直接成本!AI28+收入和直接成本!AI32+收入和直接成本!AI36+收入和直接成本!AI40+收入和直接成本!AI44+收入和直接成本!AI48+收入和直接成本!AI52+收入和直接成本!AI56+收入和直接成本!AI60+收入和直接成本!AI64)*1 -> 882 | AK37: =(收入和直接成本!AJ10+收入和直接成本!AJ15+收入和直接成本!AJ20+收入和直接成本!AJ28+收入和直接成本!AJ32+收入和直接成本!AJ36+收入和直接成本!AJ40+收入和直接成本!AJ44+收入和直接成本!AJ48+收入和直接成本!AJ52+收入和直接成本!AJ56+收入和直接成本!AJ60+收入和直接成本!AJ64)*1 -> 980 | AL37: =(收入和直接成本!AK10+收入和直接成本!AK15+收入和直接成本!AK20+收入和直接成本!AK28+收入和直接成本!AK32+收入和直接成本!AK36+收入和直接成本!AK40+收入和直接成本!AK44+收入和直接成本!AK48+收入和直接成本!AK52+收入和直接成本!AK56+收入和直接成本!AK60+收入和直接成本!AK64)*1 -> 1078 | AM37: =(收入和直接成本!AL10+收入和直接成本!AL15+收入和直接成本!AL20+收入和直接成本!AL28+收入和直接成本!AL32+收入和直接成本!AL36+收入和直接成本!AL40+收入和直接成本!AL44+收入和直接成本!AL48+收入和直接成本!AL52+收入和直接成本!AL56+收入和直接成本!AL60+收入和直接成本!AL64)*1 -> 1274 | AN37: =(收入和直接成本!AM10+收入和直接成本!AM15+收入和直接成本!AM20+收入和直接成本!AM28+收入和直接成本!AM32+收入和直接成本!AM36+收入和直接成本!AM40+收入和直接成本!AM44+收入和直接成本!AM48+收入和直接成本!AM52+收入和直接成本!AM56+收入和直接成本!AM60+收入和直接成本!AM64)*1 -> 1470 | AO37: =(收入和直接成本!AN10+收入和直接成本!AN15+收入和直接成本!AN20+收入和直接成本!AN28+收入和直接成本!AN32+收入和直接成本!AN36+收入和直接成本!AN40+收入和直接成本!AN44+收入和直接成本!AN48+收入和直接成本!AN52+收入和直接成本!AN56+收入和直接成本!AN60+收入和直接成本!AN64)*1 -> 1764 | AP37: =(收入和直接成本!AO10+收入和直接成本!AO15+收入和直接成本!AO20+收入和直接成本!AO28+收入和直接成本!AO32+收入和直接成本!AO36+收入和直接成本!AO40+收入和直接成本!AO44+收入和直接成本!AO48+收入和直接成本!AO52+收入和直接成本!AO56+收入和直接成本!AO60+收入和直接成本!AO64)*1 -> 2254 | AQ37: =(收入和直接成本!AP10+收入和直接成本!AP15+收入和直接成本!AP20+收入和直接成本!AP28+收入和直接成本!AP32+收入和直接成本!AP36+收入和直接成本!AP40+收入和直接成本!AP44+收入和直接成本!AP48+收入和直接成本!AP52+收入和直接成本!AP56+收入和直接成本!AP60+收入和直接成本!AP64)*1 -> 2842 | AR37: =(收入和直接成本!AQ10+收入和直接成本!AQ15+收入和直接成本!AQ20+收入和直接成本!AQ28+收入和直接成本!AQ32+收入和直接成本!AQ36+收入和直接成本!AQ40+收入和直接成本!AQ44+收入和直接成本!AQ48+收入和直接成本!AQ52+收入和直接成本!AQ56+收入和直接成本!AQ60+收入和直接成本!AQ64)*1 -> 3332 | AS37: =(收入和直接成本!AR10+收入和直接成本!AR15+收入和直接成本!AR20+收入和直接成本!AR28+收入和直接成本!AR32+收入和直接成本!AR36+收入和直接成本!AR40+收入和直接成本!AR44+收入和直接成本!AR48+收入和直接成本!AR52+收入和直接成本!AR56+收入和直接成本!AR60+收入和直接成本!AR64)*1 -> 3430 | AT37: =(收入和直接成本!AS10+收入和直接成本!AS15+收入和直接成本!AS20+收入和直接成本!AS28+收入和直接成本!AS32+收入和直接成本!AS36+收入和直接成本!AS40+收入和直接成本!AS44+收入和直接成本!AS48+收入和直接成本!AS52+收入和直接成本!AS56+收入和直接成本!AS60+收入和直接成本!AS64)*1 -> 3528 | AU37: =(收入和直接成本!AT10+收入和直接成本!AT15+收入和直接成本!AT20+收入和直接成本!AT28+收入和直接成本!AT32+收入和直接成本!AT36+收入和直接成本!AT40+收入和直接成本!AT44+收入和直接成本!AT48+收入和直接成本!AT52+收入和直接成本!AT56+收入和直接成本!AT60+收入和直接成本!AT64)*1 -> 3626 | AV37: =(收入和直接成本!AU10+收入和直接成本!AU15+收入和直接成本!AU20+收入和直接成本!AU28+收入和直接成本!AU32+收入和直接成本!AU36+收入和直接成本!AU40+收入和直接成本!AU44+收入和直接成本!AU48+收入和直接成本!AU52+收入和直接成本!AU56+收入和直接成本!AU60+收入和直接成本!AU64)*1 -> 3724 | AW37: =(收入和直接成本!AV10+收入和直接成本!AV15+收入和直接成本!AV20+收入和直接成本!AV28+收入和直接成本!AV32+收入和直接成本!AV36+收入和直接成本!AV40+收入和直接成本!AV44+收入和直接成本!AV48+收入和直接成本!AV52+收入和直接成本!AV56+收入和直接成本!AV60+收入和直接成本!AV64)*1 -> 3626 | AX37: =(收入和直接成本!AW10+收入和直接成本!AW15+收入和直接成本!AW20+收入和直接成本!AW28+收入和直接成本!AW32+收入和直接成本!AW36+收入和直接成本!AW40+收入和直接成本!AW44+收入和直接成本!AW48+收入和直接成本!AW52+收入和直接成本!AW56+收入和直接成本!AW60+收入和直接成本!AW64)*1 -> 3528 | AY37: =(收入和直接成本!AX10+收入和直接成本!AX15+收入和直接成本!AX20+收入和直接成本!AX28+收入和直接成本!AX32+收入和直接成本!AX36+收入和直接成本!AX40+收入和直接成本!AX44+收入和直接成本!AX48+收入和直接成本!AX52+收入和直接成本!AX56+收入和直接成本!AX60+收入和直接成本!AX64)*1 -> 3038 | AZ37: =(收入和直接成本!AY10+收入和直接成本!AY15+收入和直接成本!AY20+收入和直接成本!AY28+收入和直接成本!AY32+收入和直接成本!AY36+收入和直接成本!AY40+收入和直接成本!AY44+收入和直接成本!AY48+收入和直接成本!AY52+收入和直接成本!AY56+收入和直接成本!AY60+收入和直接成本!AY64)*1 -> 2548 | BA37: 87808
BA38: 0
C39: 软件费用 | E39: =E40+E41+E42+E43 -> 960 | F39: =F40+F41+F42+F43 -> 0 | G39: 0 | H39: 0 | I39: 0 | J39: 0 | K39: 0 | L39: 0 | M39: 0 | N39: 0 | O39: 0 | P39: 0 | Q39: 0 | R39: 0 | S39: 0 | T39: 0 | U39: 0 | V39: 0 | W39: 0 | X39: 0 | Y39: 0 | Z39: 0 | AA39: 0 | AB39: 0 | AC39: 0 | AD39: 0 | AE39: 0 | AF39: 0 | AG39: 0 | AH39: 0 | AI39: 0 | AJ39: 0 | AK39: 0 | AL39: 0 | AM39: 0 | AN39: 0 | AO39: 0 | AP39: 0 | AQ39: 0 | AR39: 0 | AS39: 0 | AT39: 0 | AU39: 0 | AV39: 0 | AW39: 0 | AX39: 0 | AY39: 0 | AZ39: 0 | BA39: 960
D40: 量子 | E40: 0 | F40: 0 | G40: 0 | H40: 0 | I40: 0 | J40: 0 | K40: 0 | L40: 0 | M40: 0 | N40: 0 | O40: 0 | P40: 0 | Q40: 0 | R40: 0 | S40: 0 | T40: 0 | U40: 0 | V40: 0 | W40: 0 | X40: 0 | Y40: 0 | Z40: 0 | AA40: 0 | AB40: 0 | AC40: 0 | AD40: 0 | AE40: 0 | AF40: 0 | AG40: 0 | AH40: 0 | AI40: 0 | AJ40: 0 | AK40: 0 | AL40: 0 | AM40: 0 | AN40: 0 | AO40: 0 | AP40: 0 | AQ40: 0 | AR40: 0 | AS40: 0 | AT40: 0 | AU40: 0 | AV40: 0 | AW40: 0 | AX40: 0 | AY40: 0 | AZ40: 0 | BA40: 0
D41: 生E经 | E41: 600 | F41: 0 | G41: 0 | H41: 0 | I41: 0 | J41: 0 | K41: 0 | L41: 0 | M41: 0 | N41: 0 | O41: 0 | P41: 0 | Q41: 0 | R41: 0 | S41: 0 | T41: 0 | U41: 0 | V41: 0 | W41: 0 | X41: 0 | Y41: 0 | Z41: 0 | AA41: 0 | AB41: 0 | AC41: 0 | AD41: 0 | AE41: 0 | AF41: 0 | AG41: 0 | AH41: 0 | AI41: 0 | AJ41: 0 | AK41: 0 | AL41: 0 | AM41: 0 | AN41: 0 | AO41: 0 | AP41: 0 | AQ41: 0 | AR41: 0 | AS41: 0 | AT41: 0 | AU41: 0 | AV41: 0 | AW41: 0 | AX41: 0 | AY41: 0 | AZ41: 0 | BA41: 600
D42: 数据魔方 | E42: 360 | F42: 0 | G42: 0 | H42: 0 | I42: 0 | J42: 0 | K42: 0 | L42: 0 | M42: 0 | N42: 0 | O42: 0 | P42: 0 | Q42: 0 | R42: 0 | S42: 0 | T42: 0 | U42: 0 | V42: 0 | W42: 0 | X42: 0 | Y42: 0 | Z42: 0 | AA42: 0 | AB42: 0 | AC42: 0 | AD42: 0 | AE42: 0 | AF42: 0 | AG42: 0 | AH42: 0 | AI42: 0 | AJ42: 0 | AK42: 0 | AL42: 0 | AM42: 0 | AN42: 0 | AO42: 0 | AP42: 0 | AQ42: 0 | AR42: 0 | AS42: 0 | AT42: 0 | AU42: 0 | AV42: 0 | AW42: 0 | AX42: 0 | AY42: 0 | AZ42: 0 | BA42: 360
D43: 老A工具箱 | E43: 0 | F43: 0 | G43: 0 | H43: 0 | I43: 0 | J43: 0 | K43: 0 | L43: 0 | M43: 0 | N43: 0 | O43: 0 | P43: 0 | Q43: 0 | R43: 0 | S43: 0 | T43: 0 | U43: 0 | V43: 0 | W43: 0 | X43: 0 | Y43: 0 | Z43: 0 | AA43: 0 | AB43: 0 | AC43: 0 | AD43: 0 | AE43: 0 | AF43: 0 | AG43: 0 | AH43: 0 | AI43: 0 | AJ43: 0 | AK43: 0 | AL43: 0 | AM43: 0 | AN43: 0 | AO43: 0 | AP43: 0 | AQ43: 0 | AR43: 0 | AS43: 0 | AT43: 0 | AU43: 0 | AV43: 0 | AW43: 0 | AX43: 0 | AY43: 0 | AZ43: 0 | BA43: 0
BA44: 0
C45: 物流费用 | E45: =E46 -> 2744 | F45: =F46 -> 3528 | G45: 4312 | H45: 5096 | I45: 5880 | J45: 7448 | K45: 9016 | L45: 10584 | M45: 12152 | N45: 13720 | O45: 13720 | P45: 13720 | Q45: 14504 | R45: 14504 | S45: 14504 | T45: 14504 | U45: 12152 | V45: 12936 | W45: 13720 | X45: 14504 | Y45: 15288 | Z45: 16072 | AA45: 16856 | AB45: 16072 | AC45: 14504 | AD45: 13720 | AE45: 12936 | AF45: 12152 | AG45: 11368 | AH45: 10584 | AI45: 6272 | AJ45: 7056 | AK45: 7840 | AL45: 8624 | AM45: 10192 | AN45: 11760 | AO45: 14112 | AP45: 18032 | AQ45: 22736 | AR45: 26656 | AS45: 27440 | AT45: 28224 | AU45: 29008 | AV45: 29792 | AW45: 29008 | AX45: 28224 | AY45: 24304 | AZ45: 20384 | BA45: 702464
D46: 快递费 | E46: =(收入和直接成本!D10+收入和直接成本!D15+收入和直接成本!D20+收入和直接成本!D28+收入和直接成本!D32+收入和直接成本!D36+收入和直接成本!D40+收入和直接成本!D44+收入和直接成本!D48+收入和直接成本!D52+收入和直接成本!D56+收入和直接成本!D60+收入和直接成本!D64)*8 -> 2744 | F46: =(收入和直接成本!E10+收入和直接成本!E15+收入和直接成本!E20+收入和直接成本!E28+收入和直接成本!E32+收入和直接成本!E36+收入和直接成本!E40+收入和直接成本!E44+收入和直接成本!E48+收入和直接成本!E52+收入和直接成本!E56+收入和直接成本!E60+收入和直接成本!E64)*8 -> 3528 | G46: =(收入和直接成本!F10+收入和直接成本!F15+收入和直接成本!F20+收入和直接成本!F28+收入和直接成本!F32+收入和直接成本!F36+收入和直接成本!F40+收入和直接成本!F44+收入和直接成本!F48+收入和直接成本!F52+收入和直接成本!F56+收入和直接成本!F60+收入和直接成本!F64)*8 -> 4312 | H46: =(收入和直接成本!G10+收入和直接成本!G15+收入和直接成本!G20+收入和直接成本!G28+收入和直接成本!G32+收入和直接成本!G36+收入和直接成本!G40+收入和直接成本!G44+收入和直接成本!G48+收入和直接成本!G52+收入和直接成本!G56+收入和直接成本!G60+收入和直接成本!G64)*8 -> 5096 | I46: =(收入和直接成本!H10+收入和直接成本!H15+收入和直接成本!H20+收入和直接成本!H28+收入和直接成本!H32+收入和直接成本!H36+收入和直接成本!H40+收入和直接成本!H44+收入和直接成本!H48+收入和直接成本!H52+收入和直接成本!H56+收入和直接成本!H60+收入和直接成本!H64)*8 -> 5880 | J46: =(收入和直接成本!I10+收入和直接成本!I15+收入和直接成本!I20+收入和直接成本!I28+收入和直接成本!I32+收入和直接成本!I36+收入和直接成本!I40+收入和直接成本!I44+收入和直接成本!I48+收入和直接成本!I52+收入和直接成本!I56+收入和直接成本!I60+收入和直接成本!I64)*8 -> 7448 | K46: =(收入和直接成本!J10+收入和直接成本!J15+收入和直接成本!J20+收入和直接成本!J28+收入和直接成本!J32+收入和直接成本!J36+收入和直接成本!J40+收入和直接成本!J44+收入和直接成本!J48+收入和直接成本!J52+收入和直接成本!J56+收入和直接成本!J60+收入和直接成本!J64)*8 -> 9016 | L46: =(收入和直接成本!K10+收入和直接成本!K15+收入和直接成本!K20+收入和直接成本!K28+收入和直接成本!K32+收入和直接成本!K36+收入和直接成本!K40+收入和直接成本!K44+收入和直接成本!K48+收入和直接成本!K52+收入和直接成本!K56+收入和直接成本!K60+收入和直接成本!K64)*8 -> 10584 | M46: =(收入和直接成本!L10+收入和直接成本!L15+收入和直接成本!L20+收入和直接成本!L28+收入和直接成本!L32+收入和直接成本!L36+收入和直接成本!L40+收入和直接成本!L44+收入和直接成本!L48+收入和直接成本!L52+收入和直接成本!L56+收入和直接成本!L60+收入和直接成本!L64)*8 -> 12152 | N46: =(收入和直接成本!M10+收入和直接成本!M15+收入和直接成本!M20+收入和直接成本!M28+收入和直接成本!M32+收入和直接成本!M36+收入和直接成本!M40+收入和直接成本!M44+收入和直接成本!M48+收入和直接成本!M52+收入和直接成本!M56+收入和直接成本!M60+收入和直接成本!M64)*8 -> 13720 | O46: =(收入和直接成本!N10+收入和直接成本!N15+收入和直接成本!N20+收入和直接成本!N28+收入和直接成本!N32+收入和直接成本!N36+收入和直接成本!N40+收入和直接成本!N44+收入和直接成本!N48+收入和直接成本!N52+收入和直接成本!N56+收入和直接成本!N60+收入和直接成本!N64)*8 -> 13720 | P46: =(收入和直接成本!O10+收入和直接成本!O15+收入和直接成本!O20+收入和直接成本!O28+收入和直接成本!O32+收入和直接成本!O36+收入和直接成本!O40+收入和直接成本!O44+收入和直接成本!O48+收入和直接成本!O52+收入和直接成本!O56+收入和直接成本!O60+收入和直接成本!O64)*8 -> 13720 | Q46: =(收入和直接成本!P10+收入和直接成本!P15+收入和直接成本!P20+收入和直接成本!P28+收入和直接成本!P32+收入和直接成本!P36+收入和直接成本!P40+收入和直接成本!P44+收入和直接成本!P48+收入和直接成本!P52+收入和直接成本!P56+收入和直接成本!P60+收入和直接成本!P64)*8 -> 14504 | R46: =(收入和直接成本!Q10+收入和直接成本!Q15+收入和直接成本!Q20+收入和直接成本!Q28+收入和直接成本!Q32+收入和直接成本!Q36+收入和直接成本!Q40+收入和直接成本!Q44+收入和直接成本!Q48+收入和直接成本!Q52+收入和直接成本!Q56+收入和直接成本!Q60+收入和直接成本!Q64)*8 -> 14504 | S46: =(收入和直接成本!R10+收入和直接成本!R15+收入和直接成本!R20+收入和直接成本!R28+收入和直接成本!R32+收入和直接成本!R36+收入和直接成本!R40+收入和直接成本!R44+收入和直接成本!R48+收入和直接成本!R52+收入和直接成本!R56+收入和直接成本!R60+收入和直接成本!R64)*8 -> 14504 | T46: =(收入和直接成本!S10+收入和直接成本!S15+收入和直接成本!S20+收入和直接成本!S28+收入和直接成本!S32+收入和直接成本!S36+收入和直接成本!S40+收入和直接成本!S44+收入和直接成本!S48+收入和直接成本!S52+收入和直接成本!S56+收入和直接成本!S60+收入和直接成本!S64)*8 -> 14504 | U46: =(收入和直接成本!T10+收入和直接成本!T15+收入和直接成本!T20+收入和直接成本!T28+收入和直接成本!T32+收入和直接成本!T36+收入和直接成本!T40+收入和直接成本!T44+收入和直接成本!T48+收入和直接成本!T52+收入和直接成本!T56+收入和直接成本!T60+收入和直接成本!T64)*8 -> 12152 | V46: =(收入和直接成本!U10+收入和直接成本!U15+收入和直接成本!U20+收入和直接成本!U28+收入和直接成本!U32+收入和直接成本!U36+收入和直接成本!U40+收入和直接成本!U44+收入和直接成本!U48+收入和直接成本!U52+收入和直接成本!U56+收入和直接成本!U60+收入和直接成本!U64)*8 -> 12936 | W46: =(收入和直接成本!V10+收入和直接成本!V15+收入和直接成本!V20+收入和直接成本!V28+收入和直接成本!V32+收入和直接成本!V36+收入和直接成本!V40+收入和直接成本!V44+收入和直接成本!V48+收入和直接成本!V52+收入和直接成本!V56+收入和直接成本!V60+收入和直接成本!V64)*8 -> 13720 | X46: =(收入和直接成本!W10+收入和直接成本!W15+收入和直接成本!W20+收入和直接成本!W28+收入和直接成本!W32+收入和直接成本!W36+收入和直接成本!W40+收入和直接成本!W44+收入和直接成本!W48+收入和直接成本!W52+收入和直接成本!W56+收入和直接成本!W60+收入和直接成本!W64)*8 -> 14504 | Y46: =(收入和直接成本!X10+收入和直接成本!X15+收入和直接成本!X20+收入和直接成本!X28+收入和直接成本!X32+收入和直接成本!X36+收入和直接成本!X40+收入和直接成本!X44+收入和直接成本!X48+收入和直接成本!X52+收入和直接成本!X56+收入和直接成本!X60+收入和直接成本!X64)*8 -> 15288 | Z46: =(收入和直接成本!Y10+收入和直接成本!Y15+收入和直接成本!Y20+收入和直接成本!Y28+收入和直接成本!Y32+收入和直接成本!Y36+收入和直接成本!Y40+收入和直接成本!Y44+收入和直接成本!Y48+收入和直接成本!Y52+收入和直接成本!Y56+收入和直接成本!Y60+收入和直接成本!Y64)*8 -> 16072 | AA46: =(收入和直接成本!Z10+收入和直接成本!Z15+收入和直接成本!Z20+收入和直接成本!Z28+收入和直接成本!Z32+收入和直接成本!Z36+收入和直接成本!Z40+收入和直接成本!Z44+收入和直接成本!Z48+收入和直接成本!Z52+收入和直接成本!Z56+收入和直接成本!Z60+收入和直接成本!Z64)*8 -> 16856 | AB46: =(收入和直接成本!AA10+收入和直接成本!AA15+收入和直接成本!AA20+收入和直接成本!AA28+收入和直接成本!AA32+收入和直接成本!AA36+收入和直接成本!AA40+收入和直接成本!AA44+收入和直接成本!AA48+收入和直接成本!AA52+收入和直接成本!AA56+收入和直接成本!AA60+收入和直接成本!AA64)*8 -> 16072 | AC46: =(收入和直接成本!AB10+收入和直接成本!AB15+收入和直接成本!AB20+收入和直接成本!AB28+收入和直接成本!AB32+收入和直接成本!AB36+收入和直接成本!AB40+收入和直接成本!AB44+收入和直接成本!AB48+收入和直接成本!AB52+收入和直接成本!AB56+收入和直接成本!AB60+收入和直接成本!AB64)*8 -> 14504 | AD46: =(收入和直接成本!AC10+收入和直接成本!AC15+收入和直接成本!AC20+收入和直接成本!AC28+收入和直接成本!AC32+收入和直接成本!AC36+收入和直接成本!AC40+收入和直接成本!AC44+收入和直接成本!AC48+收入和直接成本!AC52+收入和直接成本!AC56+收入和直接成本!AC60+收入和直接成本!AC64)*8 -> 13720 | AE46: =(收入和直接成本!AD10+收入和直接成本!AD15+收入和直接成本!AD20+收入和直接成本!AD28+收入和直接成本!AD32+收入和直接成本!AD36+收入和直接成本!AD40+收入和直接成本!AD44+收入和直接成本!AD48+收入和直接成本!AD52+收入和直接成本!AD56+收入和直接成本!AD60+收入和直接成本!AD64)*8 -> 12936 | AF46: =(收入和直接成本!AE10+收入和直接成本!AE15+收入和直接成本!AE20+收入和直接成本!AE28+收入和直接成本!AE32+收入和直接成本!AE36+收入和直接成本!AE40+收入和直接成本!AE44+收入和直接成本!AE48+收入和直接成本!AE52+收入和直接成本!AE56+收入和直接成本!AE60+收入和直接成本!AE64)*8 -> 12152 | AG46: =(收入和直接成本!AF10+收入和直接成本!AF15+收入和直接成本!AF20+收入和直接成本!AF28+收入和直接成本!AF32+收入和直接成本!AF36+收入和直接成本!AF40+收入和直接成本!AF44+收入和直接成本!AF48+收入和直接成本!AF52+收入和直接成本!AF56+收入和直接成本!AF60+收入和直接成本!AF64)*8 -> 11368 | AH46: =(收入和直接成本!AG10+收入和直接成本!AG15+收入和直接成本!AG20+收入和直接成本!AG28+收入和直接成本!AG32+收入和直接成本!AG36+收入和直接成本!AG40+收入和直接成本!AG44+收入和直接成本!AG48+收入和直接成本!AG52+收入和直接成本!AG56+收入和直接成本!AG60+收入和直接成本!AG64)*8 -> 10584 | AI46: =(收入和直接成本!AH10+收入和直接成本!AH15+收入和直接成本!AH20+收入和直接成本!AH28+收入和直接成本!AH32+收入和直接成本!AH36+收入和直接成本!AH40+收入和直接成本!AH44+收入和直接成本!AH48+收入和直接成本!AH52+收入和直接成本!AH56+收入和直接成本!AH60+收入和直接成本!AH64)*8 -> 6272 | AJ46: =(收入和直接成本!AI10+收入和直接成本!AI15+收入和直接成本!AI20+收入和直接成本!AI28+收入和直接成本!AI32+收入和直接成本!AI36+收入和直接成本!AI40+收入和直接成本!AI44+收入和直接成本!AI48+收入和直接成本!AI52+收入和直接成本!AI56+收入和直接成本!AI60+收入和直接成本!AI64)*8 -> 7056 | AK46: =(收入和直接成本!AJ10+收入和直接成本!AJ15+收入和直接成本!AJ20+收入和直接成本!AJ28+收入和直接成本!AJ32+收入和直接成本!AJ36+收入和直接成本!AJ40+收入和直接成本!AJ44+收入和直接成本!AJ48+收入和直接成本!AJ52+收入和直接成本!AJ56+收入和直接成本!AJ60+收入和直接成本!AJ64)*8 -> 7840 | AL46: =(收入和直接成本!AK10+收入和直接成本!AK15+收入和直接成本!AK20+收入和直接成本!AK28+收入和直接成本!AK32+收入和直接成本!AK36+收入和直接成本!AK40+收入和直接成本!AK44+收入和直接成本!AK48+收入和直接成本!AK52+收入和直接成本!AK56+收入和直接成本!AK60+收入和直接成本!AK64)*8 -> 8624 | AM46: =(收入和直接成本!AL10+收入和直接成本!AL15+收入和直接成本!AL20+收入和直接成本!AL28+收入和直接成本!AL32+收入和直接成本!AL36+收入和直接成本!AL40+收入和直接成本!AL44+收入和直接成本!AL48+收入和直接成本!AL52+收入和直接成本!AL56+收入和直接成本!AL60+收入和直接成本!AL64)*8 -> 10192 | AN46: =(收入和直接成本!AM10+收入和直接成本!AM15+收入和直接成本!AM20+收入和直接成本!AM28+收入和直接成本!AM32+收入和直接成本!AM36+收入和直接成本!AM40+收入和直接成本!AM44+收入和直接成本!AM48+收入和直接成本!AM52+收入和直接成本!AM56+收入和直接成本!AM60+收入和直接成本!AM64)*8 -> 11760 | AO46: =(收入和直接成本!AN10+收入和直接成本!AN15+收入和直接成本!AN20+收入和直接成本!AN28+收入和直接成本!AN32+收入和直接成本!AN36+收入和直接成本!AN40+收入和直接成本!AN44+收入和直接成本!AN48+收入和直接成本!AN52+收入和直接成本!AN56+收入和直接成本!AN60+收入和直接成本!AN64)*8 -> 14112 | AP46: =(收入和直接成本!AO10+收入和直接成本!AO15+收入和直接成本!AO20+收入和直接成本!AO28+收入和直接成本!AO32+收入和直接成本!AO36+收入和直接成本!AO40+收入和直接成本!AO44+收入和直接成本!AO48+收入和直接成本!AO52+收入和直接成本!AO56+收入和直接成本!AO60+收入和直接成本!AO64)*8 -> 18032 | AQ46: =(收入和直接成本!AP10+收入和直接成本!AP15+收入和直接成本!AP20+收入和直接成本!AP28+收入和直接成本!AP32+收入和直接成本!AP36+收入和直接成本!AP40+收入和直接成本!AP44+收入和直接成本!AP48+收入和直接成本!AP52+收入和直接成本!AP56+收入和直接成本!AP60+收入和直接成本!AP64)*8 -> 22736 | AR46: =(收入和直接成本!AQ10+收入和直接成本!AQ15+收入和直接成本!AQ20+收入和直接成本!AQ28+收入和直接成本!AQ32+收入和直接成本!AQ36+收入和直接成本!AQ40+收入和直接成本!AQ44+收入和直接成本!AQ48+收入和直接成本!AQ52+收入和直接成本!AQ56+收入和直接成本!AQ60+收入和直接成本!AQ64)*8 -> 26656 | AS46: =(收入和直接成本!AR10+收入和直接成本!AR15+收入和直接成本!AR20+收入和直接成本!AR28+收入和直接成本!AR32+收入和直接成本!AR36+收入和直接成本!AR40+收入和直接成本!AR44+收入和直接成本!AR48+收入和直接成本!AR52+收入和直接成本!AR56+收入和直接成本!AR60+收入和直接成本!AR64)*8 -> 27440 | AT46: =(收入和直接成本!AS10+收入和直接成本!AS15+收入和直接成本!AS20+收入和直接成本!AS28+收入和直接成本!AS32+收入和直接成本!AS36+收入和直接成本!AS40+收入和直接成本!AS44+收入和直接成本!AS48+收入和直接成本!AS52+收入和直接成本!AS56+收入和直接成本!AS60+收入和直接成本!AS64)*8 -> 28224 | AU46: =(收入和直接成本!AT10+收入和直接成本!AT15+收入和直接成本!AT20+收入和直接成本!AT28+收入和直接成本!AT32+收入和直接成本!AT36+收入和直接成本!AT40+收入和直接成本!AT44+收入和直接成本!AT48+收入和直接成本!AT52+收入和直接成本!AT56+收入和直接成本!AT60+收入和直接成本!AT64)*8 -> 29008 | AV46: =(收入和直接成本!AU10+收入和直接成本!AU15+收入和直接成本!AU20+收入和直接成本!AU28+收入和直接成本!AU32+收入和直接成本!AU36+收入和直接成本!AU40+收入和直接成本!AU44+收入和直接成本!AU48+收入和直接成本!AU52+收入和直接成本!AU56+收入和直接成本!AU60+收入和直接成本!AU64)*8 -> 29792 | AW46: =(收入和直接成本!AV10+收入和直接成本!AV15+收入和直接成本!AV20+收入和直接成本!AV28+收入和直接成本!AV32+收入和直接成本!AV36+收入和直接成本!AV40+收入和直接成本!AV44+收入和直接成本!AV48+收入和直接成本!AV52+收入和直接成本!AV56+收入和直接成本!AV60+收入和直接成本!AV64)*8 -> 29008 | AX46: =(收入和直接成本!AW10+收入和直接成本!AW15+收入和直接成本!AW20+收入和直接成本!AW28+收入和直接成本!AW32+收入和直接成本!AW36+收入和直接成本!AW40+收入和直接成本!AW44+收入和直接成本!AW48+收入和直接成本!AW52+收入和直接成本!AW56+收入和直接成本!AW60+收入和直接成本!AW64)*8 -> 28224 | AY46: =(收入和直接成本!AX10+收入和直接成本!AX15+收入和直接成本!AX20+收入和直接成本!AX28+收入和直接成本!AX32+收入和直接成本!AX36+收入和直接成本!AX40+收入和直接成本!AX44+收入和直接成本!AX48+收入和直接成本!AX52+收入和直接成本!AX56+收入和直接成本!AX60+收入和直接成本!AX64)*8 -> 24304 | AZ46: =(收入和直接成本!AY10+收入和直接成本!AY15+收入和直接成本!AY20+收入和直接成本!AY28+收入和直接成本!AY32+收入和直接成本!AY36+收入和直接成本!AY40+收入和直接成本!AY44+收入和直接成本!AY48+收入和直接成本!AY52+收入和直接成本!AY56+收入和直接成本!AY60+收入和直接成本!AY64)*8 -> 20384 | BA46: 702464
D47: 换货率 | E47: 0.03 | F47: 0.03 | G47: 0.03 | H47: 0.03 | I47: 0.03 | J47: 0.03 | K47: 0.03 | L47: 0.03 | M47: 0.03 | N47: 0.03 | O47: 0.03 | P47: 0.03 | Q47: 0.03 | R47: 0.03 | S47: 0.03 | T47: 0.03 | U47: 0.03 | V47: 0.03 | W47: 0.03 | X47: 0.03 | Y47: 0.03 | Z47: 0.03 | AA47: 0.03 | AB47: 0.03 | AC47: 0.03 | AD47: 0.03 | AE47: 0.03 | AF47: 0.03 | AG47: 0.03 | AH47: 0.03 | AI47: 0.03 | AJ47: 0.03 | AK47: 0.03 | AL47: 0.03 | AM47: 0.03 | AN47: 0.03 | AO47: 0.03 | AP47: 0.03 | AQ47: 0.03 | AR47: 0.03 | AS47: 0.03 | AT47: 0.03 | AU47: 0.03 | AV47: 0.03 | AW47: 0.03 | AX47: 0.03 | AY47: 0.03 | AZ47: 0.03 | BA47: 1.44
BA48: 0
C49: 其他不可预计费用 | E49: 1200 | F49: 1200 | G49: 1200 | H49: 1200 | I49: 1200 | J49: 1200 | K49: 1200 | L49: 1200 | M49: 1200 | N49: 1200 | O49: 1200 | P49: 1200 | Q49: 1200 | R49: 1200 | S49: 1200 | T49: 1200 | U49: 1200 | V49: 1200 | W49: 1200 | X49: 1200 | Y49: 1200 | Z49: 1200 | AA49: 1200 | AB49: 1200 | AC49: 1200 | AD49: 1200 | AE49: 1200 | AF49: 1200 | AG49: 1200 | AH49: 1200 | AI49: 1200 | AJ49: 1200 | AK49: 1200 | AL49: 1200 | AM49: 1200 | AN49: 1200 | AO49: 1200 | AP49: 1200 | AQ49: 1200 | AR49: 1200 | AS49: 1200 | AT49: 1200 | AU49: 1200 | AV49: 1200 | AW49: 1200 | AX49: 1200 | AY49: 1200 | AZ49: 1200 | BA49: 57600
B50: 硬运费费用合计 | E50: =E15+E22+E26+E35+E39+E45+E49 -> 83641.5 | F50: =F15+F22+F26+F35+F39+F45+F49 -> 7510.5 | G50: 8539.5 | H50: 9568.5 | I50: 11797.5 | J50: 12655.5 | K50: 14713.5 | L50: 16771.5 | M50: 20029.5 | N50: 20887.5 | O50: 20887.5 | P50: 20887.5 | Q50: 45116.5 | R50: 21916.5 | S50: 21916.5 | T50: 21916.5 | U50: 20029.5 | V50: 19858.5 | W50: 20887.5 | X50: 21916.5 | Y50: 24145.5 | Z50: 23974.5 | AA50: 25003.5 | AB50: 23974.5 | AC50: 45116.5 | AD50: 20887.5 | AE50: 19858.5 | AF50: 18829.5 | AG50: 19000.5 | AH50: 16771.5 | AI50: 14660.8 | AJ50: 12758.4 | AK50: 15056 | AL50: 14953.6 | AM50: 17148.8 | AN50: 19344 | AO50: 45836.8 | AP50: 28124.8 | AQ50: 34710.4 | AR50: 40198.4 | AS50: 42496 | AT50: 42393.6 | AU50: 43491.2 | AV50: 44588.8 | AW50: 44691.2 | AX50: 42393.6 | AY50: 36905.6 | AZ50: 31417.6 | BA50: 1250179.6
BA51: 0
B52: 营运费用【软性】 | BA52: 0
C53: 直通车爆款 | E53: =(收入和直接成本!D28+收入和直接成本!D32+收入和直接成本!D36+收入和直接成本!D40)/0.03*1.5 -> 3500 | F53: =(收入和直接成本!E28+收入和直接成本!E32+收入和直接成本!E36+收入和直接成本!E40)/0.03*1.5 -> 7000 | G53: =(收入和直接成本!F28+收入和直接成本!F32+收入和直接成本!F36+收入和直接成本!F40)/0.03*1.5 -> 10500 | H53: =(收入和直接成本!G28+收入和直接成本!G32+收入和直接成本!G36+收入和直接成本!G40)/0.03*1.5 -> 14000 | I53: =(收入和直接成本!H28+收入和直接成本!H32+收入和直接成本!H36+收入和直接成本!H40)/0.03*1.5 -> 17500 | J53: =(收入和直接成本!I28+收入和直接成本!I32+收入和直接成本!I36+收入和直接成本!I40)/0.03*1.5 -> 24500 | K53: =(收入和直接成本!J28+收入和直接成本!J32+收入和直接成本!J36+收入和直接成本!J40)/0.03*1.5 -> 31500 | L53: =(收入和直接成本!K28+收入和直接成本!K32+收入和直接成本!K36+收入和直接成本!K40)/0.03*1.5 -> 38500 | M53: =(收入和直接成本!L28+收入和直接成本!L32+收入和直接成本!L36+收入和直接成本!L40)/0.03*1.5 -> 45500 | N53: =(收入和直接成本!M28+收入和直接成本!M32+收入和直接成本!M36+收入和直接成本!M40)/0.03*1.5 -> 52500 | O53: =(收入和直接成本!N28+收入和直接成本!N32+收入和直接成本!N36+收入和直接成本!N40)/0.03*1.5 -> 52500 | P53: =(收入和直接成本!O28+收入和直接成本!O32+收入和直接成本!O36+收入和直接成本!O40)/0.03*1.5 -> 52500 | Q53: =(收入和直接成本!P28+收入和直接成本!P32+收入和直接成本!P36+收入和直接成本!P40)/0.03*1.5 -> 52500 | R53: =(收入和直接成本!Q28+收入和直接成本!Q32+收入和直接成本!Q36+收入和直接成本!Q40)/0.03*1.5 -> 52500 | S53: =(收入和直接成本!R28+收入和直接成本!R32+收入和直接成本!R36+收入和直接成本!R40)/0.03*1.5 -> 52500 | T53: =(收入和直接成本!S28+收入和直接成本!S32+收入和直接成本!S36+收入和直接成本!S40)/0.03*1.5 -> 52500 | U53: =(收入和直接成本!T28+收入和直接成本!T32+收入和直接成本!T36+收入和直接成本!T40)/0.03*1.5 -> 42000 | V53: =(收入和直接成本!U28+收入和直接成本!U32+收入和直接成本!U36+收入和直接成本!U40)/0.03*1.5 -> 45500 | W53: =(收入和直接成本!V28+收入和直接成本!V32+收入和直接成本!V36+收入和直接成本!V40)/0.03*1.5 -> 49000 | X53: =(收入和直接成本!W28+收入和直接成本!W32+收入和直接成本!W36+收入和直接成本!W40)/0.03*1.5 -> 52500 | Y53: =(收入和直接成本!X28+收入和直接成本!X32+收入和直接成本!X36+收入和直接成本!X40)/0.03*1.5 -> 56000 | Z53: =(收入和直接成本!Y28+收入和直接成本!Y32+收入和直接成本!Y36+收入和直接成本!Y40)/0.03*1.5 -> 59500 | AA53: =(收入和直接成本!Z28+收入和直接成本!Z32+收入和直接成本!Z36+收入和直接成本!Z40)/0.03*1.5 -> 63000 | AB53: =(收入和直接成本!AA28+收入和直接成本!AA32+收入和直接成本!AA36+收入和直接成本!AA40)/0.03*1.5 -> 59500 | AC53: =(收入和直接成本!AB28+收入和直接成本!AB32+收入和直接成本!AB36+收入和直接成本!AB40)/0.03*1.5 -> 56000 | AD53: =(收入和直接成本!AC28+收入和直接成本!AC32+收入和直接成本!AC36+收入和直接成本!AC40)/0.03*1.5 -> 52500 | AE53: =(收入和直接成本!AD28+收入和直接成本!AD32+收入和直接成本!AD36+收入和直接成本!AD40)/0.03*1.5 -> 49000 | AF53: =(收入和直接成本!AE28+收入和直接成本!AE32+收入和直接成本!AE36+收入和直接成本!AE40)/0.03*1.5 -> 45500 | AG53: =(收入和直接成本!AF28+收入和直接成本!AF32+收入和直接成本!AF36+收入和直接成本!AF40)/0.03*1.5 -> 42000 | AH53: =(收入和直接成本!AG28+收入和直接成本!AG32+收入和直接成本!AG36+收入和直接成本!AG40)/0.03*1.5 -> 38500 | AI53: =(收入和直接成本!AH28+收入和直接成本!AH32+收入和直接成本!AH36+收入和直接成本!AH40)/0.03*1.5 -> 3500 | AJ53: =(收入和直接成本!AI28+收入和直接成本!AI32+收入和直接成本!AI36+收入和直接成本!AI40)/0.03*1.5 -> 7000 | AK53: =(收入和直接成本!AJ28+收入和直接成本!AJ32+收入和直接成本!AJ36+收入和直接成本!AJ40)/0.03*1.5 -> 10500 | AL53: =(收入和直接成本!AK28+收入和直接成本!AK32+收入和直接成本!AK36+收入和直接成本!AK40)/0.03*1.5 -> 14000 | AM53: =(收入和直接成本!AL28+收入和直接成本!AL32+收入和直接成本!AL36+收入和直接成本!AL40)/0.03*1.5 -> 21000 | AN53: =(收入和直接成本!AM28+收入和直接成本!AM32+收入和直接成本!AM36+收入和直接成本!AM40)/0.03*1.5 -> 28000 | AO53: =(收入和直接成本!AN28+收入和直接成本!AN32+收入和直接成本!AN36+收入和直接成本!AN40)/0.03*1.5 -> 38500 | AP53: =(收入和直接成本!AO28+收入和直接成本!AO32+收入和直接成本!AO36+收入和直接成本!AO40)/0.03*1.5 -> 56000 | AQ53: =(收入和直接成本!AP28+收入和直接成本!AP32+收入和直接成本!AP36+收入和直接成本!AP40)/0.03*1.5 -> 73500 | AR53: =(收入和直接成本!AQ28+收入和直接成本!AQ32+收入和直接成本!AQ36+收入和直接成本!AQ40)/0.03*1.5 -> 91000 | AS53: =(收入和直接成本!AR28+收入和直接成本!AR32+收入和直接成本!AR36+收入和直接成本!AR40)/0.03*1.5 -> 94500 | AT53: =(收入和直接成本!AS28+收入和直接成本!AS32+收入和直接成本!AS36+收入和直接成本!AS40)/0.03*1.5 -> 98000 | AU53: =(收入和直接成本!AT28+收入和直接成本!AT32+收入和直接成本!AT36+收入和直接成本!AT40)/0.03*1.5 -> 101500 | AV53: =(收入和直接成本!AU28+收入和直接成本!AU32+收入和直接成本!AU36+收入和直接成本!AU40)/0.03*1.5 -> 105000 | AW53: =(收入和直接成本!AV28+收入和直接成本!AV32+收入和直接成本!AV36+收入和直接成本!AV40)/0.03*1.5 -> 101500 | AX53: =(收入和直接成本!AW28+收入和直接成本!AW32+收入和直接成本!AW36+收入和直接成本!AW40)/0.03*1.5 -> 98000 | AY53: =(收入和直接成本!AX28+收入和直接成本!AX32+收入和直接成本!AX36+收入和直接成本!AX40)/0.03*1.5 -> 80500 | AZ53: =(收入和直接成本!AY28+收入和直接成本!AY32+收入和直接成本!AY36+收入和直接成本!AY40)/0.03*1.5 -> 63000 | BA53: 2355500
D54: 转化率 | E54: 0.03 | F54: 0.03 | G54: 0.03 | H54: 0.03 | I54: 0.03 | J54: 0.03 | K54: 0.03 | L54: 0.03 | M54: 0.03 | N54: 0.03 | O54: 0.03 | P54: 0.03 | Q54: 0.03 | R54: 0.03 | S54: 0.03 | T54: 0.03 | U54: 0.03 | V54: 0.03 | W54: 0.03 | X54: 0.03 | Y54: 0.03 | Z54: 0.03 | AA54: 0.03 | AB54: 0.03 | AC54: 0.03 | AD54: 0.03 | AE54: 0.03 | AF54: 0.03 | AG54: 0.03 | AH54: 0.03 | AI54: 0.03 | AJ54: 0.03 | AK54: 0.03 | AL54: 0.03 | AM54: 0.03 | AN54: 0.03 | AO54: 0.03 | AP54: 0.03 | AQ54: 0.03 | AR54: 0.03 | AS54: 0.03 | AT54: 0.03 | AU54: 0.03 | AV54: 0.03 | AW54: 0.03 | AX54: 0.03 | AY54: 0.03 | AZ54: 0.03 | BA54: 1.44
D55: PPC | E55: 1.5 | F55: 1.5 | G55: 1.5 | H55: 1.5 | I55: 1.5 | J55: 1.5 | K55: 1.5 | L55: 1.5 | M55: 1.5 | N55: 1.5 | O55: 1.5 | P55: 1.5 | Q55: 1.5 | R55: 1.5 | S55: 1.5 | T55: 1.5 | U55: 1.5 | V55: 1.5 | W55: 1.5 | X55: 1.5 | Y55: 1.5 | Z55: 1.5 | AA55: 1.5 | AB55: 1.5 | AC55: 1.5 | AD55: 1.5 | AE55: 1.5 | AF55: 1.5 | AG55: 1.5 | AH55: 1.5 | AI55: 1.5 | AJ55: 1.5 | AK55: 1.5 | AL55: 1.5 | AM55: 1.5 | AN55: 1.5 | AO55: 1.5 | AP55: 1.5 | AQ55: 1.5 | AR55: 1.5 | AS55: 1.5 | AT55: 1.5 | AU55: 1.5 | AV55: 1.5 | AW55: 1.5 | AX55: 1.5 | AY55: 1.5 | AZ55: 1.5 | BA55: 72
BA56: 0
C57: 直通车常规 | E57: =收入和直接成本!D10/0.02*2.2 -> 15400 | F57: =收入和直接成本!E10/0.02*2.2 -> 15400 | G57: =收入和直接成本!F10/0.02*2.2 -> 15400 | H57: =收入和直接成本!G10/0.02*2.2 -> 15400 | I57: =收入和直接成本!H10/0.02*2.2 -> 15400 | J57: =收入和直接成本!I10/0.02*2.2 -> 15400 | K57: =收入和直接成本!J10/0.02*2.2 -> 15400 | L57: =收入和直接成本!K10/0.02*2.2 -> 15400 | M57: =收入和直接成本!L10/0.02*2.2 -> 15400 | N57: =收入和直接成本!M10/0.02*2.2 -> 15400 | O57: =收入和直接成本!N10/0.02*2.2 -> 15400 | P57: =收入和直接成本!O10/0.02*2.2 -> 15400 | Q57: =收入和直接成本!P10/0.02*2.2 -> 23100 | R57: =收入和直接成本!Q10/0.02*2.2 -> 23100 | S57: =收入和直接成本!R10/0.02*2.2 -> 23100 | T57: =收入和直接成本!S10/0.02*2.2 -> 23100 | U57: =收入和直接成本!T10/0.02*2.2 -> 23100 | V57: =收入和直接成本!U10/0.02*2.2 -> 23100 | W57: =收入和直接成本!V10/0.02*2.2 -> 23100 | X57: =收入和直接成本!W10/0.02*2.2 -> 23100 | Y57: =收入和直接成本!X10/0.02*2.2 -> 23100 | Z57: =收入和直接成本!Y10/0.02*2.2 -> 23100 | AA57: =收入和直接成本!Z10/0.02*2.2 -> 23100 | AB57: =收入和直接成本!AA10/0.02*2.2 -> 23100 | AC57: =收入和直接成本!AB10/0.02*2.2 -> 15400 | AD57: =收入和直接成本!AC10/0.02*2.2 -> 15400 | AE57: =收入和直接成本!AD10/0.02*2.2 -> 15400 | AF57: =收入和直接成本!AE10/0.02*2.2 -> 15400 | AG57: =收入和直接成本!AF10/0.02*2.2 -> 15400 | AH57: =收入和直接成本!AG10/0.02*2.2 -> 15400 | AI57: =收入和直接成本!AH10/0.02*2.2 -> 38500 | AJ57: =收入和直接成本!AI10/0.02*2.2 -> 38500 | AK57: =收入和直接成本!AJ10/0.02*2.2 -> 38500 | AL57: =收入和直接成本!AK10/0.02*2.2 -> 38500 | AM57: =收入和直接成本!AL10/0.02*2.2 -> 38500 | AN57: =收入和直接成本!AM10/0.02*2.2 -> 38500 | AO57: =收入和直接成本!AN10/0.02*2.2 -> 38500 | AP57: =收入和直接成本!AO10/0.02*2.2 -> 38500 | AQ57: =收入和直接成本!AP10/0.02*2.2 -> 46200 | AR57: =收入和直接成本!AQ10/0.02*2.2 -> 46200 | AS57: =收入和直接成本!AR10/0.02*2.2 -> 46200 | AT57: =收入和直接成本!AS10/0.02*2.2 -> 46200 | AU57: =收入和直接成本!AT10/0.02*2.2 -> 46200 | AV57: =收入和直接成本!AU10/0.02*2.2 -> 46200 | AW57: =收入和直接成本!AV10/0.02*2.2 -> 46200 | AX57: =收入和直接成本!AW10/0.02*2.2 -> 46200 | AY57: =收入和直接成本!AX10/0.02*2.2 -> 46200 | AZ57: =收入和直接成本!AY10/0.02*2.2 -> 46200 | BA57: 1324400
D58: 转化率 | E58: 0.02 | F58: 0.02 | G58: 0.02 | H58: 0.02 | I58: 0.02 | J58: 0.02 | K58: 0.02 | L58: 0.02 | M58: 0.02 | N58: 0.02 | O58: 0.02 | P58: 0.02 | Q58: 0.02 | R58: 0.02 | S58: 0.02 | T58: 0.02 | U58: 0.02 | V58: 0.02 | W58: 0.02 | X58: 0.02 | Y58: 0.02 | Z58: 0.02 | AA58: 0.02 | AB58: 0.02 | AC58: 0.02 | AD58: 0.02 | AE58: 0.02 | AF58: 0.02 | AG58: 0.02 | AH58: 0.02 | AI58: 0.02 | AJ58: 0.02 | AK58: 0.02 | AL58: 0.02 | AM58: 0.02 | AN58: 0.02 | AO58: 0.02 | AP58: 0.02 | AQ58: 0.02 | AR58: 0.02 | AS58: 0.02 | AT58: 0.02 | AU58: 0.02 | AV58: 0.02 | AW58: 0.02 | AX58: 0.02 | AY58: 0.02 | AZ58: 0.02 | BA58: 0.96
D59: PPC | E59: 2.2 | F59: 2.2 | G59: 2.2 | H59: 2.2 | I59: 2.2 | J59: 2.2 | K59: 2.2 | L59: 2.2 | M59: 2.2 | N59: 2.2 | O59: 2.2 | P59: 2.2 | Q59: 2.2 | R59: 2.2 | S59: 2.2 | T59: 2.2 | U59: 2.2 | V59: 2.2 | W59: 2.2 | X59: 2.2 | Y59: 2.2 | Z59: 2.2 | AA59: 2.2 | AB59: 2.2 | AC59: 2.2 | AD59: 2.2 | AE59: 2.2 | AF59: 2.2 | AG59: 2.2 | AH59: 2.2 | AI59: 2.2 | AJ59: 2.2 | AK59: 2.2 | AL59: 2.2 | AM59: 2.2 | AN59: 2.2 | AO59: 2.2 | AP59: 2.2 | AQ59: 2.2 | AR59: 2.2 | AS59: 2.2 | AT59: 2.2 | AU59: 2.2 | AV59: 2.2 | AW59: 2.2 | AX59: 2.2 | AY59: 2.2 | AZ59: 2.2 | BA59: 105.6
BA60: 0
C61: 钻展 | E61: =收入和直接成本!D15/0.01*1.5 -> 5250 | F61: =收入和直接成本!E15/0.01*1.5 -> 5250 | G61: =收入和直接成本!F15/0.01*1.5 -> 5250 | H61: =收入和直接成本!G15/0.01*1.5 -> 5250 | I61: =收入和直接成本!H15/0.01*1.5 -> 5250 | J61: =收入和直接成本!I15/0.01*1.5 -> 5250 | K61: =收入和直接成本!J15/0.01*1.5 -> 5250 | L61: =收入和直接成本!K15/0.01*1.5 -> 5250 | M61: =收入和直接成本!L15/0.01*1.5 -> 5250 | N61: =收入和直接成本!M15/0.01*1.5 -> 5250 | O61: =收入和直接成本!N15/0.01*1.5 -> 5250 | P61: =收入和直接成本!O15/0.01*1.5 -> 5250 | Q61: =收入和直接成本!P15/0.01*1.5 -> 5250 | R61: =收入和直接成本!Q15/0.01*1.5 -> 5250 | S61: =收入和直接成本!R15/0.01*1.5 -> 5250 | T61: =收入和直接成本!S15/0.01*1.5 -> 5250 | U61: =收入和直接成本!T15/0.01*1.5 -> 5250 | V61: =收入和直接成本!U15/0.01*1.5 -> 5250 | W61: =收入和直接成本!V15/0.01*1.5 -> 5250 | X61: =收入和直接成本!W15/0.01*1.5 -> 5250 | Y61: =收入和直接成本!X15/0.01*1.5 -> 5250 | Z61: =收入和直接成本!Y15/0.01*1.5 -> 5250 | AA61: =收入和直接成本!Z15/0.01*1.5 -> 5250 | AB61: =收入和直接成本!AA15/0.01*1.5 -> 5250 | AC61: =收入和直接成本!AB15/0.01*1.5 -> 5250 | AD61: =收入和直接成本!AC15/0.01*1.5 -> 5250 | AE61: =收入和直接成本!AD15/0.01*1.5 -> 5250 | AF61: =收入和直接成本!AE15/0.01*1.5 -> 5250 | AG61: =收入和直接成本!AF15/0.01*1.5 -> 5250 | AH61: =收入和直接成本!AG15/0.01*1.5 -> 5250 | AI61: =收入和直接成本!AH15/0.01*1.5 -> 21000 | AJ61: =收入和直接成本!AI15/0.01*1.5 -> 21000 | AK61: =收入和直接成本!AJ15/0.01*1.5 -> 21000 | AL61: =收入和直接成本!AK15/0.01*1.5 -> 21000 | AM61: =收入和直接成本!AL15/0.01*1.5 -> 21000 | AN61: =收入和直接成本!AM15/0.01*1.5 -> 21000 | AO61: =收入和直接成本!AN15/0.01*1.5 -> 21000 | AP61: =收入和直接成本!AO15/0.01*1.5 -> 21000 | AQ61: =收入和直接成本!AP15/0.01*1.5 -> 21000 | AR61: =收入和直接成本!AQ15/0.01*1.5 -> 21000 | AS61: =收入和直接成本!AR15/0.01*1.5 -> 21000 | AT61: =收入和直接成本!AS15/0.01*1.5 -> 21000 | AU61: =收入和直接成本!AT15/0.01*1.5 -> 21000 | AV61: =收入和直接成本!AU15/0.01*1.5 -> 21000 | AW61: =收入和直接成本!AV15/0.01*1.5 -> 21000 | AX61: =收入和直接成本!AW15/0.01*1.5 -> 21000 | AY61: =收入和直接成本!AX15/0.01*1.5 -> 21000 | AZ61: =收入和直接成本!AY15/0.01*1.5 -> 21000 | BA61: 535500
D62: 转化率 | E62: 0.01 | F62: 0.01 | G62: 0.01 | H62: 0.01 | I62: 0.01 | J62: 0.01 | K62: 0.01 | L62: 0.01 | M62: 0.01 | N62: 0.01 | O62: 0.01 | P62: 0.01 | Q62: 0.01 | R62: 0.01 | S62: 0.01 | T62: 0.01 | U62: 0.01 | V62: 0.01 | W62: 0.01 | X62: 0.01 | Y62: 0.01 | Z62: 0.01 | AA62: 0.01 | AB62: 0.01 | AC62: 0.01 | AD62: 0.01 | AE62: 0.01 | AF62: 0.01 | AG62: 0.01 | AH62: 0.01 | AI62: 0.01 | AJ62: 0.01 | AK62: 0.01 | AL62: 0.01 | AM62: 0.01 | AN62: 0.01 | AO62: 0.01 | AP62: 0.01 | AQ62: 0.01 | AR62: 0.01 | AS62: 0.01 | AT62: 0.01 | AU62: 0.01 | AV62: 0.01 | AW62: 0.01 | AX62: 0.01 | AY62: 0.01 | AZ62: 0.01 | BA62: 0.48
D63: PPC | E63: 1.5 | F63: 1.5 | G63: 1.5 | H63: 1.5 | I63: 1.5 | J63: 1.5 | K63: 1.5 | L63: 1.5 | M63: 1.5 | N63: 1.5 | O63: 1.5 | P63: 1.5 | Q63: 1.5 | R63: 1.5 | S63: 1.5 | T63: 1.5 | U63: 1.5 | V63: 1.5 | W63: 1.5 | X63: 1.5 | Y63: 1.5 | Z63: 1.5 | AA63: 1.5 | AB63: 1.5 | AC63: 1.5 | AD63: 1.5 | AE63: 1.5 | AF63: 1.5 | AG63: 1.5 | AH63: 1.5 | AI63: 1.5 | AJ63: 1.5 | AK63: 1.5 | AL63: 1.5 | AM63: 1.5 | AN63: 1.5 | AO63: 1.5 | AP63: 1.5 | AQ63: 1.5 | AR63: 1.5 | AS63: 1.5 | AT63: 1.5 | AU63: 1.5 | AV63: 1.5 | AW63: 1.5 | AX63: 1.5 | AY63: 1.5 | AZ63: 1.5 | BA63: 72
BA64: 0
C65: 淘宝客 | E65: 0 | F65: 0 | G65: 0 | H65: 0 | I65: 0 | J65: 0 | K65: 0 | L65: 0 | M65: 0 | N65: 0 | O65: 0 | P65: 0 | Q65: 0 | R65: 0 | S65: 0 | T65: 0 | U65: 0 | V65: 0 | W65: 0 | X65: 0 | Y65: 0 | Z65: 0 | AA65: 0 | AB65: 0 | AC65: 0 | AD65: 0 | AE65: 0 | AF65: 0 | AG65: 0 | AH65: 0 | AI65: 0 | AJ65: 0 | AK65: 0 | AL65: 0 | AM65: 0 | AN65: 0 | AO65: 0 | AP65: 0 | AQ65: 0 | AR65: 0 | AS65: 0 | AT65: 0 | AU65: 0 | AV65: 0 | AW65: 0 | AX65: 0 | AY65: 0 | AZ65: 0 | BA65: 0
BA66: 0
C67: 硬广 | E67: 0 | F67: 0 | G67: 0 | H67: 0 | I67: 0 | J67: 0 | K67: 0 | L67: 0 | M67: 0 | N67: 0 | O67: 0 | P67: 0 | Q67: 0 | R67: 0 | S67: 0 | T67: 0 | U67: 0 | V67: 0 | W67: 0 | X67: 0 | Y67: 0 | Z67: 0 | AA67: 0 | AB67: 0 | AC67: 0 | AD67: 0 | AE67: 0 | AF67: 0 | AG67: 0 | AH67: 0 | AI67: 0 | AJ67: 0 | AK67: 0 | AL67: 0 | AM67: 0 | AN67: 0 | AO67: 0 | AP67: 0 | AQ67: 0 | AR67: 0 | AS67: 0 | AT67: 0 | AU67: 0 | AV67: 0 | AW67: 0 | AX67: 0 | AY67: 0 | AZ67: 0 | BA67: 0
BA68: 0
B69: 软运营费用合计 | E69: =E53+E57+E61+E65+E67 -> 24150 | F69: =F53+F57+F61+F65+F67 -> 27650 | G69: 31150 | H69: 34650 | I69: 38150 | J69: 45150 | K69: 52150 | L69: 59150 | M69: 66150 | N69: 73150 | O69: 73150 | P69: 73150 | Q69: 80850 | R69: 80850 | S69: 80850 | T69: 80850 | U69: 70350 | V69: 73850 | W69: 77350 | X69: 80850 | Y69: 84350 | Z69: 87850 | AA69: 91350 | AB69: 87850 | AC69: 76650 | AD69: 73150 | AE69: 69650 | AF69: 66150 | AG69: 62650 | AH69: 59150 | AI69: 63000 | AJ69: 66500 | AK69: 70000 | AL69: 73500 | AM69: 80500 | AN69: 87500 | AO69: 98000 | AP69: 115500 | AQ69: 140700 | AR69: 158200 | AS69: 161700 | AT69: 165200 | AU69: 168700 | AV69: 172200 | AW69: 168700 | AX69: 165200 | AY69: 147700 | AZ69: 130200 | BA69: 4215400
BA70: =SUM(E70:AZ70) -> 0
B71: 人员成本 | BA71: 0
BA72: 0
C73: 设计师 | D73: 数量 | E73: 1 | F73: 1 | G73: 1 | H73: 1 | I73: 1 | J73: 1 | K73: 1 | L73: 1 | M73: 1 | N73: 1 | O73: 1 | P73: 1 | Q73: 1 | R73: 1 | S73: 1 | T73: 1 | U73: 1 | V73: 1 | W73: 1 | X73: 1 | Y73: 1 | Z73: 1 | AA73: 1 | AB73: 1 | AC73: 1 | AD73: 1 | AE73: 1 | AF73: 1 | AG73: 1 | AH73: 1 | AI73: 1 | AJ73: 1 | AK73: 1 | AL73: 1 | AM73: 1 | AN73: 1 | AO73: 1 | AP73: 1 | AQ73: 1 | AR73: 1 | AS73: 1 | AT73: 1 | AU73: 1 | AV73: 1 | AW73: 1 | AX73: 1 | AY73: 1 | AZ73: 1 | BA73: 48
D74: 薪资 | E74: 8000 | F74: 0 | G74: 0 | H74: 0 | I74: 8000 | J74: 0 | K74: 0 | L74: 0 | M74: 8000 | N74: 0 | O74: 0 | P74: 0 | Q74: 8000 | R74: 0 | S74: 0 | T74: 0 | U74: 8000 | V74: 0 | W74: 0 | X74: 0 | Y74: 8000 | Z74: 0 | AA74: 0 | AB74: 0 | AC74: 8000 | AD74: 0 | AE74: 0 | AF74: 0 | AG74: 8000 | AH74: 0 | AI74: 0 | AJ74: 0 | AK74: 8000 | AL74: 0 | AM74: 0 | AN74: 0 | AO74: 8000 | AP74: 0 | AQ74: 0 | AR74: 0 | AS74: 8000 | AT74: 0 | AU74: 0 | AV74: 0 | AW74: 8000 | AX74: 0 | AY74: 0 | AZ74: 0 | BA74: 96000
D75: 合计 | E75: =E73*E74 -> 8000 | F75: =F73*F74 -> 0 | G75: 0 | H75: 0 | I75: 8000 | J75: 0 | K75: 0 | L75: 0 | M75: 8000 | N75: 0 | O75: 0 | P75: 0 | Q75: 8000 | R75: 0 | S75: 0 | T75: 0 | U75: 8000 | V75: 0 | W75: 0 | X75: 0 | Y75: 8000 | Z75: 0 | AA75: 0 | AB75: 0 | AC75: 8000 | AD75: 0 | AE75: 0 | AF75: 0 | AG75: 8000 | AH75: 0 | AI75: 0 | AJ75: 0 | AK75: 8000 | AL75: 0 | AM75: 0 | AN75: 0 | AO75: 8000 | AP75: 0 | AQ75: 0 | AR75: 0 | AS75: 8000 | AT75: 0 | AU75: 0 | AV75: 0 | AW75: 8000 | AX75: 0 | AY75: 0 | AZ75: 0 | BA75: 96000
BA76: 0
C77: 设计助理 | D77: 数量 | E77: 1 | F77: 1 | G77: 1 | H77: 1 | I77: 1 | J77: 1 | K77: 1 | L77: 1 | M77: 1 | N77: 1 | O77: 1 | P77: 1 | Q77: 1 | R77: 1 | S77: 1 | T77: 1 | U77: 1 | V77: 1 | W77: 1 | X77: 1 | Y77: 1 | Z77: 1 | AA77: 1 | AB77: 1 | AC77: 1 | AD77: 1 | AE77: 1 | AF77: 1 | AG77: 1 | AH77: 1 | AI77: 1 | AJ77: 1 | AK77: 1 | AL77: 1 | AM77: 1 | AN77: 1 | AO77: 1 | AP77: 1 | AQ77: 1 | AR77: 1 | AS77: 1 | AT77: 1 | AU77: 1 | AV77: 1 | AW77: 1 | AX77: 1 | AY77: 1 | AZ77: 1 | BA77: 48
D78: 薪资 | E78: 3500 | F78: 0 | G78: 0 | H78: 0 | I78: 3500 | J78: 0 | K78: 0 | L78: 0 | M78: 3500 | N78: 0 | O78: 0 | P78: 0 | Q78: 3500 | R78: 0 | S78: 0 | T78: 0 | U78: 3500 | V78: 0 | W78: 0 | X78: 0 | Y78: 3500 | Z78: 0 | AA78: 0 | AB78: 0 | AC78: 3500 | AD78: 0 | AE78: 0 | AF78: 0 | AG78: 3500 | AH78: 0 | AI78: 0 | AJ78: 0 | AK78: 3500 | AL78: 0 | AM78: 0 | AN78: 0 | AO78: 3500 | AP78: 0 | AQ78: 0 | AR78: 0 | AS78: 3500 | AT78: 0 | AU78: 0 | AV78: 0 | AW78: 3500 | AX78: 0 | AY78: 0 | AZ78: 0 | BA78: 42000
D79: 合计 | E79: =E77*E78 -> 3500 | F79: =F77*F78 -> 0 | G79: 0 | H79: 0 | I79: 3500 | J79: =J77*J78 -> 0 | K79: =K77*K78 -> 0 | L79: =L77*L78 -> 0 | M79: 3500 | N79: =N77*N78 -> 0 | O79: =O77*O78 -> 0 | P79: =P77*P78 -> 0 | Q79: 3500 | R79: =R77*R78 -> 0 | S79: =S77*S78 -> 0 | T79: =T77*T78 -> 0 | U79: 3500 | V79: =V77*V78 -> 0 | W79: =W77*W78 -> 0 | X79: =X77*X78 -> 0 | Y79: 3500 | Z79: =Z77*Z78 -> 0 | AA79: =AA77*AA78 -> 0 | AB79: =AB77*AB78 -> 0 | AC79: 3500 | AD79: =AD77*AD78 -> 0 | AE79: =AE77*AE78 -> 0 | AF79: =AF77*AF78 -> 0 | AG79: 3500 | AH79: =AH77*AH78 -> 0 | AI79: =AI77*AI78 -> 0 | AJ79: =AJ77*AJ78 -> 0 | AK79: 3500 | AL79: =AL77*AL78 -> 0 | AM79: =AM77*AM78 -> 0 | AN79: =AN77*AN78 -> 0 | AO79: 3500 | AP79: =AP77*AP78 -> 0 | AQ79: =AQ77*AQ78 -> 0 | AR79: =AR77*AR78 -> 0 | AS79: 3500 | AT79: =AT77*AT78 -> 0 | AU79: =AU77*AU78 -> 0 | AV79: =AV77*AV78 -> 0 | AW79: 3500 | AX79: =AX77*AX78 -> 0 | AY79: =AY77*AY78 -> 0 | AZ79: =AZ77*AZ78 -> 0 | BA79: 42000
BA80: 0
C81: 采购及跟单 | D81: 数量 | E81: 1 | F81: 1 | G81: 1 | H81: 1 | I81: 1 | J81: 1 | K81: 1 | L81: 1 | M81: 1 | N81: 1 | O81: 1 | P81: 1 | Q81: 1 | R81: 1 | S81: 1 | T81: 1 | U81: 1 | V81: 1 | W81: 1 | X81: 1 | Y81: 1 | Z81: 1 | AA81: 1 | AB81: 1 | AC81: 1 | AD81: 1 | AE81: 1 | AF81: 1 | AG81: 1 | AH81: 1 | AI81: 1 | AJ81: 1 | AK81: 1 | AL81: 1 | AM81: 1 | AN81: 1 | AO81: 1 | AP81: 1 | AQ81: 1 | AR81: 1 | AS81: 1 | AT81: 1 | AU81: 1 | AV81: 1 | AW81: 1 | AX81: 1 | AY81: 1 | AZ81: 1 | BA81: 48
D82: 薪资 | E82: 5000 | F82: 0 | G82: 0 | H82: 0 | I82: 5000 | J82: 0 | K82: 0 | L82: 0 | M82: 5000 | N82: 0 | O82: 0 | P82: 0 | Q82: 5000 | R82: 0 | S82: 0 | T82: 0 | U82: 5000 | V82: 0 | W82: 0 | X82: 0 | Y82: 5000 | Z82: 0 | AA82: 0 | AB82: 0 | AC82: 5000 | AD82: 0 | AE82: 0 | AF82: 0 | AG82: 5000 | AH82: 0 | AI82: 0 | AJ82: 0 | AK82: 5000 | AL82: 0 | AM82: 0 | AN82: 0 | AO82: 5000 | AP82: 0 | AQ82: 0 | AR82: 0 | AS82: 5000 | AT82: 0 | AU82: 0 | AV82: 0 | AW82: 5000 | AX82: 0 | AY82: 0 | AZ82: 0 | BA82: 60000
D83: 合计 | E83: =E81*E82 -> 5000 | F83: =F81*F82 -> 0 | G83: 0 | H83: 0 | I83: 5000 | J83: 0 | K83: 0 | L83: 0 | M83: 5000 | N83: 0 | O83: 0 | P83: 0 | Q83: 5000 | R83: 0 | S83: 0 | T83: 0 | U83: 5000 | V83: 0 | W83: 0 | X83: 0 | Y83: 5000 | Z83: 0 | AA83: 0 | AB83: 0 | AC83: 5000 | AD83: 0 | AE83: 0 | AF83: 0 | AG83: 5000 | AH83: 0 | AI83: 0 | AJ83: 0 | AK83: 5000 | AL83: 0 | AM83: 0 | AN83: 0 | AO83: 5000 | AP83: 0 | AQ83: 0 | AR83: 0 | AS83: 5000 | AT83: 0 | AU83: 0 | AV83: 0 | AW83: 5000 | AX83: 0 | AY83: 0 | AZ83: 0 | BA83: 60000
BA84: 0
C85: 仓库管理 | D85: 数量 | E85: 1 | F85: 1 | G85: 1 | H85: 1 | I85: 1 | J85: 1 | K85: 1 | L85: 1 | M85: 1 | N85: 1 | O85: 1 | P85: 1 | Q85: 1 | R85: 1 | S85: 1 | T85: 1 | U85: 1 | V85: 1 | W85: 1 | X85: 1 | Y85: 1 | Z85: 1 | AA85: 1 | AB85: 1 | AC85: 1 | AD85: 1 | AE85: 1 | AF85: 1 | AG85: 1 | AH85: 1 | AI85: 1 | AJ85: 1 | AK85: 1 | AL85: 1 | AM85: 1 | AN85: 1 | AO85: 1 | AP85: 1 | AQ85: 1 | AR85: 1 | AS85: 1 | AT85: 1 | AU85: 1 | AV85: 1 | AW85: 1 | AX85: 1 | AY85: 1 | AZ85: 1 | BA85: 48
D86: 薪资 | E86: 4000 | F86: 0 | G86: 0 | H86: 0 | I86: 4000 | J86: 0 | K86: 0 | L86: 0 | M86: 4000 | N86: 0 | O86: 0 | P86: 0 | Q86: 4000 | R86: 0 | S86: 0 | T86: 0 | U86: 4000 | V86: 0 | W86: 0 | X86: 0 | Y86: 4000 | Z86: 0 | AA86: 0 | AB86: 0 | AC86: 4000 | AD86: 0 | AE86: 0 | AF86: 0 | AG86: 4000 | AH86: 0 | AI86: 0 | AJ86: 0 | AK86: 4000 | AL86: 0 | AM86: 0 | AN86: 0 | AO86: 4000 | AP86: 0 | AQ86: 0 | AR86: 0 | AS86: 4000 | AT86: 0 | AU86: 0 | AV86: 0 | AW86: 4000 | AX86: 0 | AY86: 0 | AZ86: 0 | BA86: 48000
D87: 合计 | E87: =E85*E86 -> 4000 | F87: =F85*F86 -> 0 | G87: 0 | H87: 0 | I87: 4000 | J87: 0 | K87: 0 | L87: 0 | M87: 4000 | N87: 0 | O87: 0 | P87: 0 | Q87: 4000 | R87: 0 | S87: 0 | T87: 0 | U87: 4000 | V87: 0 | W87: 0 | X87: 0 | Y87: 4000 | Z87: 0 | AA87: 0 | AB87: 0 | AC87: 4000 | AD87: 0 | AE87: 0 | AF87: 0 | AG87: 4000 | AH87: 0 | AI87: 0 | AJ87: 0 | AK87: 4000 | AL87: 0 | AM87: 0 | AN87: 0 | AO87: 4000 | AP87: 0 | AQ87: 0 | AR87: 0 | AS87: 4000 | AT87: 0 | AU87: 0 | AV87: 0 | AW87: 4000 | AX87: 0 | AY87: 0 | AZ87: 0 | BA87: 48000
BA88: 0
C89: 运营及数据分析 | D89: 数量 | E89: 1 | F89: 1 | G89: 1 | H89: 1 | I89: 1 | J89: 1 | K89: 1 | L89: 1 | M89: 1 | N89: 1 | O89: 1 | P89: 1 | Q89: 1 | R89: 1 | S89: 1 | T89: 1 | U89: 1 | V89: 1 | W89: 1 | X89: 1 | Y89: 1 | Z89: 1 | AA89: 1 | AB89: 1 | AC89: 1 | AD89: 1 | AE89: 1 | AF89: 1 | AG89: 1 | AH89: 1 | AI89: 1 | AJ89: 1 | AK89: 1 | AL89: 1 | AM89: 1 | AN89: 1 | AO89: 1 | AP89: 1 | AQ89: 1 | AR89: 1 | AS89: 1 | AT89: 1 | AU89: 1 | AV89: 1 | AW89: 1 | AX89: 1 | AY89: 1 | AZ89: 1 | BA89: 48
D90: 薪资 | E90: 10000 | F90: 0 | G90: 0 | H90: 0 | I90: 10000 | J90: 0 | K90: 0 | L90: 0 | M90: 10000 | N90: 0 | O90: 0 | P90: 0 | Q90: 10000 | R90: 0 | S90: 0 | T90: 0 | U90: 10000 | V90: 0 | W90: 0 | X90: 0 | Y90: 10000 | Z90: 0 | AA90: 0 | AB90: 0 | AC90: 10000 | AD90: 0 | AE90: 0 | AF90: 0 | AG90: 10000 | AH90: 0 | AI90: 0 | AJ90: 0 | AK90: 10000 | AL90: 0 | AM90: 0 | AN90: 0 | AO90: 10000 | AP90: 0 | AQ90: 0 | AR90: 0 | AS90: 10000 | AT90: 0 | AU90: 0 | AV90: 0 | AW90: 10000 | AX90: 0 | AY90: 0 | AZ90: 0 | BA90: 120000
D91: 合计 | E91: =E89*E90 -> 10000 | F91: =F89*F90 -> 0 | G91: 0 | H91: 0 | I91: 10000 | J91: 0 | K91: 0 | L91: 0 | M91: 10000 | N91: 0 | O91: 0 | P91: 0 | Q91: 10000 | R91: 0 | S91: 0 | T91: 0 | U91: 10000 | V91: 0 | W91: 0 | X91: 0 | Y91: 10000 | Z91: 0 | AA91: 0 | AB91: 0 | AC91: 10000 | AD91: 0 | AE91: 0 | AF91: 0 | AG91: 10000 | AH91: 0 | AI91: 0 | AJ91: 0 | AK91: 10000 | AL91: 0 | AM91: 0 | AN91: 0 | AO91: 10000 | AP91: 0 | AQ91: 0 | AR91: 0 | AS91: 10000 | AT91: 0 | AU91: 0 | AV91: 0 | AW91: 10000 | AX91: 0 | AY91: 0 | AZ91: 0 | BA91: 120000
BA92: 0
C93: 推广专员 | D93: 数量 | E93: 1 | F93: 1 | G93: 1 | H93: 1 | I93: 1 | J93: 1 | K93: 1 | L93: 1 | M93: 1 | N93: 1 | O93: 1 | P93: 1 | Q93: 1 | R93: 1 | S93: 1 | T93: 1 | U93: 1 | V93: 1 | W93: 1 | X93: 1 | Y93: 1 | Z93: 1 | AA93: 1 | AB93: 1 | AC93: 1 | AD93: 1 | AE93: 1 | AF93: 1 | AG93: 1 | AH93: 1 | AI93: 1 | AJ93: 1 | AK93: 1 | AL93: 1 | AM93: 1 | AN93: 1 | AO93: 1 | AP93: 1 | AQ93: 1 | AR93: 1 | AS93: 1 | AT93: 1 | AU93: 1 | AV93: 1 | AW93: 1 | AX93: 1 | AY93: 1 | AZ93: 1 | BA93: 48
D94: 薪资 | E94: 6000 | F94: 0 | G94: 0 | H94: 0 | I94: 6000 | J94: 0 | K94: 0 | L94: 0 | M94: 6000 | N94: 0 | O94: 0 | P94: 0 | Q94: 6000 | R94: 0 | S94: 0 | T94: 0 | U94: 6000 | V94: 0 | W94: 0 | X94: 0 | Y94: 6000 | Z94: 0 | AA94: 0 | AB94: 0 | AC94: 6000 | AD94: 0 | AE94: 0 | AF94: 0 | AG94: 6000 | AH94: 0 | AI94: 0 | AJ94: 0 | AK94: 6000 | AL94: 0 | AM94: 0 | AN94: 0 | AO94: 6000 | AP94: 0 | AQ94: 0 | AR94: 0 | AS94: 6000 | AT94: 0 | AU94: 0 | AV94: 0 | AW94: 6000 | AX94: 0 | AY94: 0 | AZ94: 0 | BA94: 72000
D95: 合计 | E95: =E93*E94 -> 6000 | F95: =F93*F94 -> 0 | G95: 0 | H95: 0 | I95: 6000 | J95: 0 | K95: 0 | L95: 0 | M95: 6000 | N95: 0 | O95: 0 | P95: 0 | Q95: 6000 | R95: 0 | S95: 0 | T95: 0 | U95: 6000 | V95: 0 | W95: 0 | X95: 0 | Y95: 6000 | Z95: 0 | AA95: 0 | AB95: 0 | AC95: 6000 | AD95: 0 | AE95: 0 | AF95: 0 | AG95: 6000 | AH95: 0 | AI95: 0 | AJ95: 0 | AK95: 6000 | AL95: 0 | AM95: 0 | AN95: 0 | AO95: 6000 | AP95: 0 | AQ95: 0 | AR95: 0 | AS95: 6000 | AT95: 0 | AU95: 0 | AV95: 0 | AW95: 6000 | AX95: 0 | AY95: 0 | AZ95: 0 | BA95: 72000
BA96: 0
C97: 平面设计 | D97: 数量 | E97: 1 | F97: 1 | G97: 1 | H97: 1 | I97: 1 | J97: 1 | K97: 1 | L97: 1 | M97: 1 | N97: 1 | O97: 1 | P97: 1 | Q97: 1 | R97: 1 | S97: 1 | T97: 1 | U97: 1 | V97: 1 | W97: 1 | X97: 1 | Y97: 1 | Z97: 1 | AA97: 1 | AB97: 1 | AC97: 1 | AD97: 1 | AE97: 1 | AF97: 1 | AG97: 1 | AH97: 1 | AI97: 1 | AJ97: 1 | AK97: 1 | AL97: 1 | AM97: 1 | AN97: 1 | AO97: 1 | AP97: 1 | AQ97: 1 | AR97: 1 | AS97: 1 | AT97: 1 | AU97: 1 | AV97: 1 | AW97: 1 | AX97: 1 | AY97: 1 | AZ97: 1 | BA97: 48
D98: 薪资 | E98: 4000 | F98: 0 | G98: 0 | H98: 0 | I98: 4000 | J98: 0 | K98: 0 | L98: 0 | M98: 4000 | N98: 0 | O98: 0 | P98: 0 | Q98: 4000 | R98: 0 | S98: 0 | T98: 0 | U98: 4000 | V98: 0 | W98: 0 | X98: 0 | Y98: 4000 | Z98: 0 | AA98: 0 | AB98: 0 | AC98: 4000 | AD98: 0 | AE98: 0 | AF98: 0 | AG98: 4000 | AH98: 0 | AI98: 0 | AJ98: 0 | AK98: 4000 | AL98: 0 | AM98: 0 | AN98: 0 | AO98: 4000 | AP98: 0 | AQ98: 0 | AR98: 0 | AS98: 4000 | AT98: 0 | AU98: 0 | AV98: 0 | AW98: 4000 | AX98: 0 | AY98: 0 | AZ98: 0 | BA98: 48000
D99: 合计 | E99: =E97*E98 -> 4000 | F99: =F97*F98 -> 0 | G99: 0 | H99: 0 | I99: 4000 | J99: 0 | K99: 0 | L99: 0 | M99: 4000 | N99: 0 | O99: 0 | P99: 0 | Q99: 4000 | R99: 0 | S99: 0 | T99: 0 | U99: 4000 | V99: 0 | W99: 0 | X99: 0 | Y99: 4000 | Z99: 0 | AA99: 0 | AB99: 0 | AC99: 4000 | AD99: 0 | AE99: 0 | AF99: 0 | AG99: 4000 | AH99: 0 | AI99: 0 | AJ99: 0 | AK99: 4000 | AL99: 0 | AM99: 0 | AN99: 0 | AO99: 4000 | AP99: 0 | AQ99: 0 | AR99: 0 | AS99: 4000 | AT99: 0 | AU99: 0 | AV99: 0 | AW99: 4000 | AX99: 0 | AY99: 0 | AZ99: 0 | BA99: 48000
BA100: 0
C101: 客服 | D101: 数量 | E101: 2 | F101: 2 | G101: 2 | H101: 2 | I101: 2 | J101: 2 | K101: 2 | L101: 2 | M101: 2 | N101: 2 | O101: 2 | P101: 2 | Q101: 2 | R101: 2 | S101: 2 | T101: 2 | U101: 2 | V101: 2 | W101: 2 | X101: 2 | Y101: 2 | Z101: 2 | AA101: 2 | AB101: 2 | AC101: 2 | AD101: 2 | AE101: 2 | AF101: 2 | AG101: 2 | AH101: 2 | AI101: 2 | AJ101: 2 | AK101: 2 | AL101: 2 | AM101: 2 | AN101: 2 | AO101: 2 | AP101: 2 | AQ101: 2 | AR101: 2 | AS101: 2 | AT101: 2 | AU101: 2 | AV101: 2 | AW101: 2 | AX101: 2 | AY101: 2 | AZ101: 2 | BA101: 96
D102: 薪资 | E102: 3000 | F102: 0 | G102: 0 | H102: 0 | I102: 3000 | J102: 0 | K102: 0 | L102: 0 | M102: 3000 | N102: 0 | O102: 0 | P102: 0 | Q102: 3000 | R102: 0 | S102: 0 | T102: 0 | U102: 3000 | V102: 0 | W102: 0 | X102: 0 | Y102: 3000 | Z102: 0 | AA102: 0 | AB102: 0 | AC102: 3000 | AD102: 0 | AE102: 0 | AF102: 0 | AG102: 3000 | AH102: 0 | AI102: 0 | AJ102: 0 | AK102: 3000 | AL102: 0 | AM102: 0 | AN102: 0 | AO102: 3000 | AP102: 0 | AQ102: 0 | AR102: 0 | AS102: 3000 | AT102: 0 | AU102: 0 | AV102: 0 | AW102: 3000 | AX102: 0 | AY102: 0 | AZ102: 0 | BA102: 36000
D103: 合计 | E103: =E101*E102 -> 6000 | F103: =F101*F102 -> 0 | G103: 0 | H103: 0 | I103: 6000 | J103: 0 | K103: 0 | L103: 0 | M103: 6000 | N103: 0 | O103: 0 | P103: 0 | Q103: 6000 | R103: 0 | S103: 0 | T103: 0 | U103: 6000 | V103: 0 | W103: 0 | X103: 0 | Y103: 6000 | Z103: 0 | AA103: 0 | AB103: 0 | AC103: 6000 | AD103: 0 | AE103: 0 | AF103: 0 | AG103: 6000 | AH103: 0 | AI103: 0 | AJ103: 0 | AK103: 6000 | AL103: 0 | AM103: 0 | AN103: 0 | AO103: 6000 | AP103: 0 | AQ103: 0 | AR103: 0 | AS103: 6000 | AT103: 0 | AU103: 0 | AV103: 0 | AW103: 6000 | AX103: 0 | AY103: 0 | AZ103: 0 | BA103: 72000
BA104: 0
B105: 人员成本合计 | E105: =E75+E79+E83+E87+E91+E95+E99+E103 -> 46500 | F105: =F75+F79+F83+F87+F91+F95+F99+F103 -> 0 | G105: 0 | H105: 0 | I105: 46500 | J105: 0 | K105: 0 | L105: 0 | M105: 46500 | N105: 0 | O105: 0 | P105: 0 | Q105: 46500 | R105: 0 | S105: 0 | T105: 0 | U105: 46500 | V105: 0 | W105: 0 | X105: 0 | Y105: 46500 | Z105: 0 | AA105: 0 | AB105: 0 | AC105: 46500 | AD105: 0 | AE105: 0 | AF105: 0 | AG105: 46500 | AH105: 0 | AI105: 0 | AJ105: 0 | AK105: 46500 | AL105: 0 | AM105: 0 | AN105: 0 | AO105: 46500 | AP105: 0 | AQ105: 0 | AR105: 0 | AS105: 46500 | AT105: 0 | AU105: 0 | AV105: 0 | AW105: 46500 | AX105: 0 | AY105: 0 | AZ105: 0 | BA105: 558000

Sheet 收入和直接成本
I1: XX旗舰店收入及直接成本报表
D4: Jan | H4: Feb | L4: Mar | P4: Apr | T4: May | X4: Jun | AB4: Jul | AF4: Aug | AJ4: Sep | AN4: Oct | AR4: Nov | AV4: Dec
D5: 1st | E5: 2nd | F5: 3rd | G5: 4th | H5: 1st | I5: 2nd | J5: 3rd | K5: 4th | L5: 1st | M5: 2nd | N5: 3rd | O5: 4th | P5: 1st | Q5: 2nd | R5: 3rd | S5: 4th | T5: 1st | U5: 2nd | V5: 3rd | W5: 4th | X5: 1st | Y5: 2nd | Z5: 3rd | AA5: 4th | AB5: 1st | AC5: 2nd | AD5: 3rd | AE5: 4th | AF5: 1st | AG5: 2nd | AH5: 3rd | AI5: 4th | AJ5: 1st | AK5: 2nd | AL5: 3rd | AM5: 4th | AN5: 1st | AO5: 2nd | AP5: 3rd | AQ5: 4th | AR5: 1st | AS5: 2nd | AT5: 3rd | AU5: 4th | AV5: 1st | AW5: 2nd | AX5: 3rd | AY5: 4th | AZ5: 合计
AZ6: =SUM(D6:AY6) -> 0
A7: 主营业务收入 | AZ7: =SUM(D7:AY7) -> 0
AZ8: 0
B9: 直通车销量 | AZ9: 0
C10: 数量 | D10: 140 | E10: 140 | F10: 140 | G10: 140 | H10: 140 | I10: 140 | J10: 140 | K10: 140 | L10: 140 | M10: 140 | N10: 140 | O10: 140 | P10: 210 | Q10: 210 | R10: 210 | S10: 210 | T10: 210 | U10: 210 | V10: 210 | W10: 210 | X10: 210 | Y10: 210 | Z10: 210 | AA10: 210 | AB10: 140 | AC10: 140 | AD10: 140 | AE10: 140 | AF10: 140 | AG10: 140 | AH10: 350 | AI10: 350 | AJ10: 350 | AK10: 350 | AL10: 350 | AM10: 350 | AN10: 350 | AO10: 350 | AP10: 420 | AQ10: 420 | AR10: 420 | AS10: 420 | AT10: 420 | AU10: 420 | AV10: 420 | AW10: 420 | AX10: 420 | AY10: 420 | AZ10: 12040
C11: 平均单价 | D11: 128 | E11: 128 | F11: 128 | G11: 128 | H11: 128 | I11: 128 | J11: 128 | K11: 128 | L11: 128 | M11: 128 | N11: 128 | O11: 128 | P11: 99 | Q11: 99 | R11: 99 | S11: 99 | T11: 99 | U11: 99 | V11: 99 | W11: 99 | X11: 99 | Y11: 99 | Z11: 99 | AA11: 99 | AB11: 248 | AC11: 248 | AD11: 248 | AE11: 248 | AF11: 248 | AG11: 248 | AH11: 248 | AI11: 248 | AJ11: 248 | AK11: 248 | AL11: 248 | AM11: 248 | AN11: 398 | AO11: 398 | AP11: 398 | AQ11: 398 | AR11: 398 | AS11: 398 | AT11: 398 | AU11: 398 | AV11: 398 | AW11: 398 | AX11: 398 | AY11: 398 | AZ11: 10476
C12: 小计 | D12: =D10*D11 -> 17920 | E12: =E10*E11 -> 17920 | F12: 17920 | G12: 17920 | H12: 17920 | I12: 17920 | J12: 17920 | K12: 17920 | L12: 17920 | M12: 17920 | N12: 17920 | O12: 17920 | P12: 20790 | Q12: 20790 | R12: 20790 | S12: 20790 | T12: 20790 | U12: 20790 | V12: 20790 | W12: 20790 | X12: 20790 | Y12: 20790 | Z12: 20790 | AA12: 20790 | AB12: 34720 | AC12: 34720 | AD12: 34720 | AE12: 34720 | AF12: 34720 | AG12: 34720 | AH12: 86800 | AI12: 86800 | AJ12: 86800 | AK12: 86800 | AL12: 86800 | AM12: 86800 | AN12: 139300 | AO12: 139300 | AP12: 167160 | AQ12: 167160 | AR12: 167160 | AS12: 167160 | AT12: 167160 | AU12: 167160 | AV12: 167160 | AW12: 167160 | AX12: 167160 | AY12: 167160 | AZ12: 3143840
AZ13: 0
B14: 钻展 | AZ14: 0
C15: 数量 | D15: 35 | E15: 35 | F15: 35 | G15: 35 | H15: 35 | I15: 35 | J15: 35 | K15: 35 | L15: 35 | M15: 35 | N15: 35 | O15: 35 | P15: 35 | Q15: 35 | R15: 35 | S15: 35 | T15: 35 | U15: 35 | V15: 35 | W15: 35 | X15: 35 | Y15: 35 | Z15: 35 | AA15: 35 | AB15: 35 | AC15: 35 | AD15: 35 | AE15: 35 | AF15: 35 | AG15: 35 | AH15: 140 | AI15: 140 | AJ15: 140 | AK15: 140 | AL15: 140 | AM15: 140 | AN15: 140 | AO15: 140 | AP15: 140 | AQ15: 140 | AR15: 140 | AS15: 140 | AT15: 140 | AU15: 140 | AV15: 140 | AW15: 140 | AX15: 140 | AY15: 140 | AZ15: 3570
C16: 平均单价 | D16: =D11 -> 128 | E16: =E11 -> 128 | F16: 128 | G16: 128 | H16: 128 | I16: 128 | J16: 128 | K16: 128 | L16: 128 | M16: 128 | N16: 128 | O16: 128 | P16: 99 | Q16: 99 | R16: 99 | S16: 99 | T16: 99 | U16: 99 | V16: 99 | W16: 99 | X16: 99 | Y16: 99 | Z16: 99 | AA16: 99 | AB16: 248 | AC16: 248 | AD16: 248 | AE16: 248 | AF16: 248 | AG16: 248 | AH16: 248 | AI16: 248 | AJ16: 248 | AK16: 248 | AL16: 248 | AM16: 248 | AN16: 398 | AO16: 398 | AP16: 398 | AQ16: 398 | AR16: 398 | AS16: 398 | AT16: 398 | AU16: 398 | AV16: 398 | AW16: 398 | AX16: 398 | AY16: 398 | AZ16: 10476
C17: 小计 | D17: =D15*D16 -> 4480 | E17: =E15*E16 -> 4480 | F17: 4480 | G17: 4480 | H17: 4480 | I17: 4480 | J17: 4480 | K17: 4480 | L17: 4480 | M17: 4480 | N17: 4480 | O17: 4480 | P17: 3465 | Q17: 3465 | R17: 3465 | S17: 3465 | T17: 3465 | U17: 3465 | V17: 3465 | W17: 3465 | X17: 3465 | Y17: 3465 | Z17: 3465 | AA17: 3465 | AB17: 8680 | AC17: 8680 | AD17: 8680 | AE17: 8680 | AF17: 8680 | AG17: 8680 | AH17: 34720 | AI17: 34720 | AJ17: 34720 | AK17: 34720 | AL17: 34720 | AM17: 34720 | AN17: 55720 | AO17: 55720 | AP17: 55720 | AQ17: 55720 | AR17: 55720 | AS17: 55720 | AT17: 55720 | AU17: 55720 | AV17: 55720 | AW17: 55720 | AX17: 55720 | AY17: 55720 | AZ17: 1024380
AZ18: 0
B19: 自然流量销量 | AZ19: 0
C20: 数量 | D20: =(D10+D15)*0.4 -> 70 | E20: =(E10+E15)*0.4 -> 70 | F20: 70 | G20: 70 | H20: 70 | I20: 70 | J20: 70 | K20: 70 | L20: 70 | M20: 70 | N20: 70 | O20: 70 | P20: 98 | Q20: 98 | R20: 98 | S20: 98 | T20: 98 | U20: 98 | V20: 98 | W20: 98 | X20: 98 | Y20: 98 | Z20: 98 | AA20: 98 | AB20: 70 | AC20: 70 | AD20: 70 | AE20: 70 | AF20: 70 | AG20: 70 | AH20: 196 | AI20: 196 | AJ20: 196 | AK20: 196 | AL20: 196 | AM20: 196 | AN20: 196 | AO20: 196 | AP20: 224 | AQ20: 224 | AR20: 224 | AS20: 224 | AT20: 224 | AU20: 224 | AV20: 224 | AW20: 224 | AX20: 224 | AY20: 224 | AZ20: 6244
C21: 平均单价 | D21: =D16 -> 128 | E21: =E16 -> 128 | F21: 128 | G21: 128 | H21: 128 | I21: 128 | J21: 128 | K21: 128 | L21: 128 | M21: 128 | N21: 128 | O21: 128 | P21: 99 | Q21: 99 | R21: 99 | S21: 99 | T21: 99 | U21: 99 | V21: 99 | W21: 99 | X21: 99 | Y21: 99 | Z21: 99 | AA21: 99 | AB21: 248 | AC21: 248 | AD21: 248 | AE21: 248 | AF21: 248 | AG21: 248 | AH21: 248 | AI21: 248 | AJ21: 248 | AK21: 248 | AL21: 248 | AM21: 248 | AN21: 398 | AO21: 398 | AP21: 398 | AQ21: 398 | AR21: 398 | AS21: 398 | AT21: 398 | AU21: 398 | AV21: 398 | AW21: 398 | AX21: 398 | AY21: 398 | AZ21: 10476
C22: 小计 | D22: =D20*D21 -> 8960 | E22: =E20*E21 -> 8960 | F22: 8960 | G22: 8960 | H22: 8960 | I22: 8960 | J22: 8960 | K22: 8960 | L22: 8960 | M22: 8960 | N22: 8960 | O22: 8960 | P22: 9702 | Q22: 9702 | R22: 9702 | S22: 9702 | T22: 9702 | U22: 9702 | V22: 9702 | W22: 9702 | X22: 9702 | Y22: 9702 | Z22: 9702 | AA22: 9702 | AB22: 17360 | AC22: 17360 | AD22: 17360 | AE22: 17360 | AF22: 17360 | AG22: 17360 | AH22: 48608 | AI22: 48608 | AJ22: 48608 | AK22: 48608 | AL22: 48608 | AM22: 48608 | AN22: 78008 | AO22: 78008 | AP22: 89152 | AQ22: 89152 | AR22: 89152 | AS22: 89152 | AT22: 89152 | AU22: 89152 | AV22: 89152 | AW22: 89152 | AX22: 89152 | AY22: 89152 | AZ22: 1667288
AZ23: 0
A24: 主营业务收入合计 | D24: =D12+D17+D22 -> 31360 | E24: =E12+E17+E22 -> 31360 | F24: 31360 | G24: 31360 | H24: 31360 | I24: 31360 | J24: 31360 | K24: 31360 | L24: 31360 | M24: 31360 | N24: 31360 | O24: 31360 | P24: 33957 | Q24: 33957 | R24: 33957 | S24: 33957 | T24: 33957 | U24: 33957 | V24: 33957 | W24: 33957 | X24: 33957 | Y24: 33957 | Z24: 33957 | AA24: 33957 | AB24: 60760 | AC24: 60760 | AD24: 60760 | AE24: 60760 | AF24: 60760 | AG24: 60760 | AH24: 170128 | AI24: 170128 | AJ24: 170128 | AK24: 170128 | AL24: 170128 | AM24: 170128 | AN24: 273028 | AO24: 273028 | AP24: 312032 | AQ24: 312032 | AR24: 312032 | AS24: 312032 | AT24: 312032 | AU24: 312032 | AV24: 312032 | AW24: 312032 | AX24: 312032 | AY24: 312032 | AZ24: 5835508
AZ25: 0
A26: 其他业务收入（爆款） | AZ26: 0
AZ27: 0
B28: 直通车销量（春） | C28: 数量 | D28: 70 | E28: 140 | F28: 210 | G28: 280 | H28: 350 | I28: 420 | J28: 490 | K28: 560 | L28: 630 | M28: 700 | N28: 630 | O28: 560 | P28: 490 | Q28: 420 | R28: 350 | S28: 280 | T28: 0 | U28: 0 | V28: 0 | W28: 0 | X28: 0 | Y28: 0 | Z28: 0 | AA28: 0 | AB28: 0 | AC28: 0 | AD28: 0 | AE28: 0 | AF28: 0 | AG28: 0 | AH28: 0 | AI28: 0 | AJ28: 0 | AK28: 0 | AL28: 0 | AM28: 0 | AN28: 0 | AO28: 0 | AP28: 0 | AQ28: 0 | AR28: 0 | AS28: 0 | AT28: 0 | AU28: 0 | AV28: 0 | AW28: 0 | AX28: 0 | AY28: 0 | AZ28: 6580
C29: 平均单价 | D29: 99 | E29: 99 | F29: 99 | G29: 99 | H29: 99 | I29: 99 | J29: 99 | K29: 99 | L29: 99 | M29: 99 | N29: 99 | O29: 99 | P29: 99 | Q29: 99 | R29: 99 | S29: 99 | T29: 99 | U29: 99 | V29: 99 | W29: 99 | X29: 99 | Y29: 99 | Z29: 99 | AA29: 99 | AB29: 99 | AC29: 99 | AD29: 99 | AE29: 99 | AF29: 99 | AG29: 99 | AH29: 99 | AI29: 99 | AJ29: 99 | AK29: 99 | AL29: 99 | AM29: 99 | AN29: 99 | AO29: 99 | AP29: 99 | AQ29: 99 | AR29: 99 | AS29: 99 | AT29: 99 | AU29: 99 | AV29: 99 | AW29: 99 | AX29: 99 | AY29: 99 | AZ29: 4752
C30: 小计 | D30: =D28*D29 -> 6930 | E30: =E28*E29 -> 13860 | F30: 20790 | G30: 27720 | H30: 34650 | I30: 41580 | J30: 48510 | K30: 55440 | L30: 62370 | M30: 69300 | N30: 62370 | O30: 55440 | P30: 48510 | Q30: 41580 | R30: 34650 | S30: 27720 | T30: 0 | U30: 0 | V30: 0 | W30: 0 | X30: 0 | Y30: 0 | Z30: 0 | AA30: 0 | AB30: 0 | AC30: 0 | AD30: 0 | AE30: 0 | AF30: 0 | AG30: 0 | AH30: 0 | AI30: 0 | AJ30: 0 | AK30: 0 | AL30: 0 | AM30: 0 | AN30: 0 | AO30: 0 | AP30: 0 | AQ30: 0 | AR30: 0 | AS30: 0 | AT30: 0 | AU30: 0 | AV30: 0 | AW30: 0 | AX30: 0 | AY30: 0 | AZ30: 651420
AZ31: 0
B32: 直通车销量（夏） | C32: 数量 | D32: 0 | E32: 0 | F32: 0 | G32: 0 | H32: 0 | I32: 70 | J32: 140 | K32: 210 | L32: 280 | M32: 350 | N32: 420 | O32: 490 | P32: 560 | Q32: 630 | R32: 700 | S32: 770 | T32: 840 | U32: 910 | V32: 980 | W32: 1050 | X32: 1120 | Y32: 1190 | Z32: 1260 | AA32: 1190 | AB32: 1120 | AC32: 1050 | AD32: 980 | AE32: 910 | AF32: 840 | AG32: 770 | AH32: 0 | AI32: 0 | AJ32: 0 | AK32: 0 | AL32: 0 | AM32: 0 | AN32: 0 | AO32: 0 | AP32: 0 | AQ32: 0 | AR32: 0 | AS32: 0 | AT32: 0 | AU32: 0 | AV32: 0 | AW32: 0 | AX32: 0 | AY32: 0 | AZ32: 18830
C33: 平均单价 | D33: 128 | E33: 128 | F33: 128 | G33: 128 | H33: 128 | I33: 128 | J33: 128 | K33: 128 | L33: 128 | M33: 128 | N33: 128 | O33: 128 | P33: 128 | Q33: 128 | R33: 128 | S33: 128 | T33: 128 | U33: 128 | V33: 128 | W33: 128 | X33: 128 | Y33: 128 | Z33: 128 | AA33: 128 | AB33: 128 | AC33: 128 | AD33: 128 | AE33: 128 | AF33: 128 | AG33: 128 | AH33: 128 | AI33: 128 | AJ33: 128 | AK33: 128 | AL33: 128 | AM33: 128 | AN33: 128 | AO33: 128 | AP33: 128 | AQ33: 128 | AR33: 128 | AS33: 128 | AT33: 128 | AU33: 128 | AV33: 128 | AW33: 128 | AX33: 128 | AY33: 128 | AZ33: 6144
C34: 小计 | D34: =D32*D33 -> 0 | E34: =E32*E33 -> 0 | F34: 0 | G34: 0 | H34: 0 | I34: 8960 | J34: 17920 | K34: 26880 | L34: 35840 | M34: 44800 | N34: 53760 | O34: 62720 | P34: 71680 | Q34: 80640 | R34: 89600 | S34: 98560 | T34: 107520 | U34: 116480 | V34: 125440 | W34: 134400 | X34: 143360 | Y34: 152320 | Z34: 161280 | AA34: 152320 | AB34: 143360 | AC34: 134400 | AD34: 125440 | AE34: 116480 | AF34: 107520 | AG34: 98560 | AH34: 0 | AI34: 0 | AJ34: 0 | AK34: 0 | AL34: 0 | AM34: 0 | AN34: 0 | AO34: 0 | AP34: 0 | AQ34: 0 | AR34: 0 | AS34: 0 | AT34: 0 | AU34: 0 | AV34: 0 | AW34: 0 | AX34: 0 | AY34: 0 | AZ34: 2410240
AZ35: 0
B36: 直通车销量（秋） | C36: 数量 | D36: 0 | E36: 0 | F36: 0 | G36: 0 | H36: 0 | I36: 0 | J36: 0 | K36: 0 | L36: 0 | M36: 0 | N36: 0 | O36: 0 | P36: 0 | Q36: 0 | R36: 0 | S36: 0 | T36: 0 | U36: 0 | V36: 0 | W36: 0 | X36: 0 | Y36: 0 | Z36: 0 | AA36: 0 | AB36: 0 | AC36: 0 | AD36: 0 | AE36: 0 | AF36: 0 | AG36: 0 | AH36: 70 | AI36: 140 | AJ36: 210 | AK36: 280 | AL36: 350 | AM36: 420 | AN36: 490 | AO36: 560 | AP36: 630 | AQ36: 700 | AR36: 770 | AS36: 840 | AT36: 910 | AU36: 980 | AV36: 910 | AW36: 840 | AX36: 770 | AY36: 700 | AZ36: 10570
C37: 平均单价 | D37: 228 | E37: 228 | F37: 228 | G37: 228 | H37: 228 | I37: 228 | J37: 228 | K37: 228 | L37: 228 | M37: 228 | N37: 228 | O37: 228 | P37: 228 | Q37: 228 | R37: 228 | S37: 228 | T37: 228 | U37: 228 | V37: 228 | W37: 228 | X37: 228 | Y37: 228 | Z37: 228 | AA37: 228 | AB37: 228 | AC37: 228 | AD37: 228 | AE37: 228 | AF37: 228 | AG37: 228 | AH37: 228 | AI37: 228 | AJ37: 228 | AK37: 228 | AL37: 228 | AM37: 228 | AN37: 228 | AO37: 228 | AP37: 228 | AQ37: 228 | AR37: 228 | AS37: 228 | AT37: 228 | AU37: 228 | AV37: 228 | AW37: 228 | AX37: 228 | AY37: 228 | AZ37: 10944
C38: 小计 | D38: =D36*D37 -> 0 | E38: =E36*E37 -> 0 | F38: 0 | G38: 0 | H38: 0 | I38: 0 | J38: 0 | K38: 0 | L38: 0 | M38: 0 | N38: 0 | O38: 0 | P38: 0 | Q38: 0 | R38: 0 | S38: 0 | T38: 0 | U38: 0 | V38: 0 | W38: 0 | X38: 0 | Y38: 0 | Z38: 0 | AA38: 0 | AB38: 0 | AC38: 0 | AD38: 0 | AE38: 0 | AF38: 0 | AG38: 0 | AH38: 15960 | AI38: 31920 | AJ38: 47880 | AK38: 63840 | AL38: 79800 | AM38: 95760 | AN38: 111720 | AO38: 127680 | AP38: 143640 | AQ38: 159600 | AR38: 175560 | AS38: 191520 | AT38: 207480 | AU38: 223440 | AV38: 207480 | AW38: 191520 | AX38: 175560 | AY38: 159600 | AZ38: 2409960
AZ39: 0
B40: 直通车销量（冬） | C40: 数量 | D40: 0 | E40: 0 | F40: 0 | G40: 0 | H40: 0 | I40: 0 | J40: 0 | K40: 0 | L40: 0 | M40: 0 | N40: 0 | O40: 0 | P40: 0 | Q40: 0 | R40: 0 | S40: 0 | T40: 0 | U40: 0 | V40: 0 | W40: 0 | X40: 0 | Y40: 0 | Z40: 0 | AA40: 0 | AB40: 0 | AC40: 0 | AD40: 0 | AE40: 0 | AF40: 0 | AG40: 0 | AH40: 0 | AI40: 0 | AJ40: 0 | AK40: 0 | AL40: 70 | AM40: 140 | AN40: 280 | AO40: 560 | AP40: 840 | AQ40: 1120 | AR40: 1120 | AS40: 1120 | AT40: 1120 | AU40: 1120 | AV40: 1120 | AW40: 1120 | AX40: 840 | AY40: 560 | AZ40: 11130
C41: 平均单价 | D41: 398 | E41: 398 | F41: 398 | G41: 398 | H41: 398 | I41: 398 | J41: 398 | K41: 398 | L41: 398 | M41: 398 | N41: 398 | O41: 398 | P41: 398 | Q41: 398 | R41: 398 | S41: 398 | T41: 398 | U41: 398 | V41: 398 | W41: 398 | X41: 398 | Y41: 398 | Z41: 398 | AA41: 398 | AB41: 398 | AC41: 398 | AD41: 398 | AE41: 398 | AF41: 398 | AG41: 398 | AH41: 398 | AI41: 398 | AJ41: 398 | AK41: 398 | AL41: 398 | AM41: 398 | AN41: 398 | AO41: 398 | AP41: 398 | AQ41: 398 | AR41: 398 | AS41: 398 | AT41: 398 | AU41: 398 | AV41: 398 | AW41: 398 | AX41: 398 | AY41: 398 | AZ41: 19104
C42: 小计 | D42: =D40*D41 -> 0 | E42: =E40*E41 -> 0 | F42: 0 | G42: 0 | H42: 0 | I42: 0 | J42: 0 | K42: 0 | L42: 0 | M42: 0 | N42: 0 | O42: 0 | P42: 0 | Q42: 0 | R42: 0 | S42: 0 | T42: 0 | U42: 0 | V42: 0 | W42: 0 | X42: 0 | Y42: 0 | Z42: 0 | AA42: 0 | AB42: 0 | AC42: 0 | AD42: 0 | AE42: 0 | AF42: 0 | AG42: 0 | AH42: 0 | AI42: 0 | AJ42: 0 | AK42: 0 | AL42: 27860 | AM42: 55720 | AN42: 111440 | AO42: 222880 | AP42: 334320 | AQ42: 445760 | AR42: 445760 | AS42: 445760 | AT42: 445760 | AU42: 445760 | AV42: 445760 | AW42: 445760 | AX42: 334320 | AY42: 222880 | AZ42: 4429740
AZ43: 0
B44: 自然流量销量（春） | C44: 数量 | D44: =D28*0.4 -> 28 | E44: =E28*0.4 -> 56 | F44: 84 | G44: 112 | H44: 140 | I44: 168 | J44: 196 | K44: 224 | L44: 252 | M44: 280 | N44: 252 | O44: 224 | P44: 196 | Q44: 168 | R44: 140 | S44: 112 | T44: 0 | U44: 0 | V44: 0 | W44: 0 | X44: 0 | Y44: 0 | Z44: 0 | AA44: 0 | AB44: 0 | AC44: 0 | AD44: 0 | AE44: 0 | AF44: 0 | AG44: 0 | AH44: 0 | AI44: 0 | AJ44: 0 | AK44: 0 | AL44: 0 | AM44: 0 | AN44: 0 | AO44: 0 | AP44: 0 | AQ44: 0 | AR44: 0 | AS44: 0 | AT44: 0 | AU44: 0 | AV44: 0 | AW44: 0 | AX44: 0 | AY44: 0 | AZ44: 2632
C45: 平均单价 | D45: =D29 -> 99 | E45: =E29 -> 99 | F45: 99 | G45: 99 | H45: 99 | I45: 99 | J45: 99 | K45: 99 | L45: 99 | M45: 99 | N45: 99 | O45: 99 | P45: 99 | Q45: 99 | R45: 99 | S45: 99 | T45: 99 | U45: 99 | V45: 99 | W45: 99 | X45: 99 | Y45: 99 | Z45: 99 | AA45: 99 | AB45: 99 | AC45: 99 | AD45: 99 | AE45: 99 | AF45: 99 | AG45: 99 | AH45: 99 | AI45: 99 | AJ45: 99 | AK45: 99 | AL45: 99 | AM45: 99 | AN45: 99 | AO45: 99 | AP45: 99 | AQ45: 99 | AR45: 99 | AS45: 99 | AT45: 99 | AU45: 99 | AV45: 99 | AW45: 99 | AX45: 99 | AY45: 99 | AZ45: 4752
C46: 小计 | D46: =D44*D45 -> 2772 | E46: 5544 | F46: 8316 | G46: 11088 | H46: 13860 | I46: 16632 | J46: 19404 | K46: 22176 | L46: 24948 | M46: 27720 | N46: 24948 | O46: 22176 | P46: 19404 | Q46: 16632 | R46: 13860 | S46: 11088 | T46: 0 | U46: 0 | V46: 0 | W46: 0 | X46: 0 | Y46: 0 | Z46: 0 | AA46: 0 | AB46: 0 | AC46: 0 | AD46: 0 | AE46: 0 | AF46: 0 | AG46: 0 | AH46: 0 | AI46: 0 | AJ46: 0 | AK46: 0 | AL46: 0 | AM46: 0 | AN46: 0 | AO46: 0 | AP46: 0 | AQ46: 0 | AR46: 0 | AS46: 0 | AT46: 0 | AU46: 0 | AV46: 0 | AW46: 0 | AX46: 0 | AY46: 0 | AZ46: 260568
AZ47: 0
B48: 自然流量销量（夏） | C48: 数量 | D48: =D32*0.4 -> 0 | E48: =E32*0.4 -> 0 | F48: 0 | G48: 0 | H48: 0 | I48: 28 | J48: 56 | K48: 84 | L48: 112 | M48: 140 | N48: 168 | O48: 196 | P48: 224 | Q48: 252 | R48: 280 | S48: 308 | T48: 336 | U48: 364 | V48: 392 | W48: 420 | X48: 448 | Y48: 476 | Z48: 504 | AA48: 476 | AB48: 448 | AC48: 420 | AD48: 392 | AE48: 364 | AF48: 336 | AG48: 308 | AH48: 0 | AI48: 0 | AJ48: 0 | AK48: 0 | AL48: 0 | AM48: 0 | AN48: 0 | AO48: 0 | AP48: 0 | AQ48: 0 | AR48: 0 | AS48: 0 | AT48: 0 | AU48: 0 | AV48: 0 | AW48: 0 | AX48: 0 | AY48: 0 | AZ48: 7532
C49: 平均单价 | D49: =D33 -> 128 | E49: =E33 -> 128 | F49: 128 | G49: 128 | H49: 128 | I49: 128 | J49: 128 | K49: 128 | L49: 128 | M49: 128 | N49: 128 | O49: 128 | P49: 128 | Q49: 128 | R49: 128 | S49: 128 | T49: 128 | U49: 128 | V49: 128 | W49: 128 | X49: 128 | Y49: 128 | Z49: 128 | AA49: 128 | AB49: 128 | AC49: 128 | AD49: 128 | AE49: 128 | AF49: 128 | AG49: 128 | AH49: 128 | AI49: 128 | AJ49: 128 | AK49: 128 | AL49: 128 | AM49: 128 | AN49: 128 | AO49: 128 | AP49: 128 | AQ49: 128 | AR49: 128 | AS49: 128 | AT49: 128 | AU49: 128 | AV49: 128 | AW49: 128 | AX49: 128 | AY49: 128 | AZ49: 6144
C50: 小计 | D50: =D48*D49 -> 0 | E50: =E48*E49 -> 0 | F50: 0 | G50: 0 | H50: 0 | I50: 3584 | J50: 7168 | K50: 10752 | L50: 14336 | M50: 17920 | N50: 21504 | O50: 25088 | P50: 28672 | Q50: 32256 | R50: 35840 | S50: 39424 | T50: 43008 | U50: 46592 | V50: 50176 | W50: 53760 | X50: 57344 | Y50: 60928 | Z50: 64512 | AA50: 60928 | AB50: 57344 | AC50: 53760 | AD50: 50176 | AE50: 46592 | AF50: 43008 | AG50: 39424 | AH50: 0 | AI50: 0 | AJ50: 0 | AK50: 0 | AL50: 0 | AM50: 0 | AN50: 0 | AO50: 0 | AP50: 0 | AQ50: 0 | AR50: 0 | AS50: 0 | AT50: 0 | AU50: 0 | AV50: 0 | AW50: 0 | AX50: 0 | AY50: 0 | AZ50: 964096
AZ51: 0
B52: 自然流量销量（秋） | C52: 数量 | D52: =D36*0.4 -> 0 | E52: =E36*0.4 -> 0 | F52: 0 | G52: 0 | H52: 0 | I52: 0 | J52: 0 | K52: 0 | L52: 0 | M52: 0 | N52: 0 | O52: 0 | P52: 0 | Q52: 0 | R52: 0 | S52: 0 | T52: 0 | U52: 0 | V52: 0 | W52: 0 | X52: 0 | Y52: 0 | Z52: 0 | AA52: 0 | AB52: 0 | AC52: 0 | AD52: 0 | AE52: 0 | AF52: 0 | AG52: 0 | AH52: 28 | AI52: 56 | AJ52: 84 | AK52: 112 | AL52: 140 | AM52: 168 | AN52: 196 | AO52: 224 | AP52: 252 | AQ52: 280 | AR52: 308 | AS52: 336 | AT52: 364 | AU52: 392 | AV52: 364 | AW52: 336 | AX52: 308 | AY52: 280 | AZ52: 4228
C53: 平均单价 | D53: =D37 -> 228 | E53: =E37 -> 228 | F53: 228 | G53: 228 | H53: 228 | I53: 228 | J53: 228 | K53: 228 | L53: 228 | M53: 228 | N53: 228 | O53: 228 | P53: 228 | Q53: 228 | R53: 228 | S53: 228 | T53: 228 | U53: 228 | V53: 228 | W53: 228 | X53: 228 | Y53: 228 | Z53: 228 | AA53: 228 | AB53: 228 | AC53: 228 | AD53: 228 | AE53: 228 | AF53: 228 | AG53: 228 | AH53: 228 | AI53: 228 | AJ53: 228 | AK53: 228 | AL53: 228 | AM53: 228 | AN53: 228 | AO53: 228 | AP53: 228 | AQ53: 228 | AR53: 228 | AS53: 228 | AT53: 228 | AU53: 228 | AV53: 228 | AW53: 228 | AX53: 228 | AY53: 228 | AZ53: 10944
C54: 小计 | D54: =D52*D53 -> 0 | E54: =E52*E53 -> 0 | F54: 0 | G54: 0 | H54: 0 | I54: 0 | J54: 0 | K54: 0 | L54: 0 | M54: 0 | N54: 0 | O54: 0 | P54: 0 | Q54: 0 | R54: 0 | S54: 0 | T54: 0 | U54: 0 | V54: 0 | W54: 0 | X54: 0 | Y54: 0 | Z54: 0 | AA54: 0 | AB54: 0 | AC54: 0 | AD54: 0 | AE54: 0 | AF54: 0 | AG54: 0 | AH54: 6384 | AI54: 12768 | AJ54: 19152 | AK54: 25536 | AL54: 31920 | AM54: 38304 | AN54: 44688 | AO54: 51072 | AP54: 57456 | AQ54: 63840 | AR54: 70224 | AS54: 76608 | AT54: 82992 | AU54: 89376 | AV54: 82992 | AW54: 76608 | AX54: 70224 | AY54: 63840 | AZ54: 963984
AZ55: 0
B56: 自然流量销量（冬） | C56: 数量 | D56: =D40*0.4 -> 0 | E56: =E40*0.4 -> 0 | F56: 0 | G56: 0 | H56: 0 | I56: 0 | J56: 0 | K56: 0 | L56: 0 | M56: 0 | N56: 0 | O56: 0 | P56: 0 | Q56: 0 | R56: 0 | S56: 0 | T56: 0 | U56: 0 | V56: 0 | W56: 0 | X56: 0 | Y56: 0 | Z56: 0 | AA56: 0 | AB56: 0 | AC56: 0 | AD56: 0 | AE56: 0 | AF56: 0 | AG56: 0 | AH56: 0 | AI56: 0 | AJ56: 0 | AK56: 0 | AL56: 28 | AM56: 56 | AN56: 112 | AO56: 224 | AP56: 336 | AQ56: 448 | AR56: 448 | AS56: 448 | AT56: 448 | AU56: 448 | AV56: 448 | AW56: 448 | AX56: 336 | AY56: 224 | AZ56: 4452
C57: 平均单价 | D57: =D41 -> 398 | E57: =E41 -> 398 | F57: 398 | G57: 398 | H57: 398 | I57: 398 | J57: 398 | K57: 398 | L57: 398 | M57: 398 | N57: 398 | O57: 398 | P57: 398 | Q57: 398 | R57: 398 | S57: 398 | T57: 398 | U57: 398 | V57: 398 | W57: 398 | X57: 398 | Y57: 398 | Z57: 398 | AA57: 398 | AB57: 398 | AC57: 398 | AD57: 398 | AE57: 398 | AF57: 398 | AG57: 398 | AH57: 398 | AI57: 398 | AJ57: 398 | AK57: 398 | AL57: 398 | AM57: 398 | AN57: 398 | AO57: 398 | AP57: 398 | AQ57: 398 | AR57: 398 | AS57: 398 | AT57: 398 | AU57: 398 | AV57: 398 | AW57: 398 | AX57: 398 | AY57: 398 | AZ57: 19104
C58: 小计 | D58: =D56*D57 -> 0 | E58: =E56*E57 -> 0 | F58: 0 | G58: 0 | H58: 0 | I58: 0 | J58: 0 | K58: 0 | L58: 0 | M58: 0 | N58: 0 | O58: 0 | P58: 0 | Q58: 0 | R58: 0 | S58: 0 | T58: 0 | U58: 0 | V58: 0 | W58: 0 | X58: 0 | Y58: 0 | Z58: 0 | AA58: 0 | AB58: 0 | AC58: 0 | AD58: 0 | AE58: 0 | AF58: 0 | AG58: 0 | AH58: 0 | AI58: 0 | AJ58: 0 | AK58: 0 | AL58: 11144 | AM58: 22288 | AN58: 44576 | AO58: 89152 | AP58: 133728 | AQ58: 178304 | AR58: 178304 | AS58: 178304 | AT58: 178304 | AU58: 178304 | AV58: 178304 | AW58: 178304 | AX58: 133728 | AY58: 89152 | AZ58: 1771896
AZ59: 0
B60: 活动销量 | C60: 数量 | D60: 0 | E60: 0 | F60: 0 | G60: 0 | H60: 0 | I60: 0 | J60: 0 | K60: 0 | L60: 0 | M60: 0 | N60: 0 | O60: 0 | P60: 0 | Q60: 0 | R60: 0 | S60: 0 | T60: 0 | U60: 0 | V60: 0 | W60: 0 | X60: 0 | Y60: 0 | Z60: 0 | AA60: 0 | AB60: 0 | AC60: 0 | AD60: 0 | AE60: 0 | AF60: 0 | AG60: 0 | AH60: 0 | AI60: 0 | AJ60: 0 | AK60: 0 | AL60: 0 | AM60: 0 | AN60: 0 | AO60: 0 | AP60: 0 | AQ60: 0 | AR60: 0 | AS60: 0 | AT60: 0 | AU60: 0 | AV60: 0 | AW60: 0 | AX60: 0 | AY60: 0 | AZ60: 0
C61: 平均单价 | D61: 0 | E61: 0 | F61: 0 | G61: 0 | H61: 0 | I61: 0 | J61: 0 | K61: 0 | L61: 0 | M61: 0 | N61: 0 | O61: 0 | P61: 0 | Q61: 0 | R61: 0 | S61: 0 | T61: 0 | U61: 0 | V61: 0 | W61: 0 | X61: 0 | Y61: 0 | Z61: 0 | AA61: 0 | AB61: 0 | AC61: 0 | AD61: 0 | AE61: 0 | AF61: 0 | AG61: 0 | AH61: 0 | AI61: 0 | AJ61: 0 | AK61: 0 | AL61: 0 | AM61: 0 | AN61: 0 | AO61: 0 | AP61: 0 | AQ61: 0 | AR61: 0 | AS61: 0 | AT61: 0 | AU61: 0 | AV61: 0 | AW61: 0 | AX61: 0 | AY61: 0 | AZ61: 0
C62: 小计 | D62: =D60*D61 -> 0 | E62: =E60*E61 -> 0 | F62: 0 | G62: 0 | H62: 0 | I62: 0 | J62: 0 | K62: 0 | L62: 0 | M62: 0 | N62: 0 | O62: 0 | P62: 0 | Q62: 0 | R62: 0 | S62: 0 | T62: 0 | U62: 0 | V62: 0 | W62: 0 | X62: 0 | Y62: 0 | Z62: 0 | AA62: 0 | AB62: 0 | AC62: 0 | AD62: 0 | AE62: 0 | AF62: 0 | AG62: 0 | AH62: 0 | AI62: 0 | AJ62: 0 | AK62: 0 | AL62: 0 | AM62: 0 | AN62: 0 | AO62: 0 | AP62: 0 | AQ62: 0 | AR62: 0 | AS62: 0 | AT62: 0 | AU62: 0 | AV62: 0 | AW62: 0 | AX62: 0 | AY62: 0 | AZ62: 0
AZ63: 0
B64: 淘宝客销量 | C64: 数量 | D64: 0 | E64: 0 | F64: 0 | G64: 0 | H64: 0 | I64: 0 | J64: 0 | K64: 0 | L64: 0 | M64: 0 | N64: 0 | O64: 0 | P64: 0 | Q64: 0 | R64: 0 | S64: 0 | T64: 0 | U64: 0 | V64: 0 | W64: 0 | X64: 0 | Y64: 0 | Z64: 0 | AA64: 0 | AB64: 0 | AC64: 0 | AD64: 0 | AE64: 0 | AF64: 0 | AG64: 0 | AH64: 0 | AI64: 0 | AJ64: 0 | AK64: 0 | AL64: 0 | AM64: 0 | AN64: 0 | AO64: 0 | AP64: 0 | AQ64: 0 | AR64: 0 | AS64: 0 | AT64: 0 | AU64: 0 | AV64: 0 | AW64: 0 | AX64: 0 | AY64: 0 | AZ64: 0
C65: 平均单价 | D65: 0 | E65: 0 | F65: 0 | G65: 0 | H65: 0 | I65: 0 | J65: 0 | K65: 0 | L65: 0 | M65: 0 | N65: 0 | O65: 0 | P65: 0 | Q65: 0 | R65: 0 | S65: 0 | T65: 0 | U65: 0 | V65: 0 | W65: 0 | X65: 0 | Y65: 0 | Z65: 0 | AA65: 0 | AB65: 0 | AC65: 0 | AD65: 0 | AE65: 0 | AF65: 0 | AG65: 0 | AH65: 0 | AI65: 0 | AJ65: 0 | AK65: 0 | AL65: 0 | AM65: 0 | AN65: 0 | AO65: 0 | AP65: 0 | AQ65: 0 | AR65: 0 | AS65: 0 | AT65: 0 | AU65: 0 | AV65: 0 | AW65: 0 | AX65: 0 | AY65: 0 | AZ65: 0
C66: 小计 | D66: =D64*D65 -> 0 | E66: =E64*E65 -> 0 | F66: 0 | G66: 0 | H66: 0 | I66: 0 | J66: 0 | K66: 0 | L66: 0 | M66: 0 | N66: 0 | O66: 0 | P66: 0 | Q66: 0 | R66: 0 | S66: 0 | T66: 0 | U66: 0 | V66: 0 | W66: 0 | X66: 0 | Y66: 0 | Z66: 0 | AA66: 0 | AB66: 0 | AC66: 0 | AD66: 0 | AE66: 0 | AF66: 0 | AG66: 0 | AH66: 0 | AI66: 0 | AJ66: 0 | AK66: 0 | AL66: 0 | AM66: 0 | AN66: 0 | AO66: 0 | AP66: 0 | AQ66: 0 | AR66: 0 | AS66: 0 | AT66: 0 | AU66: 0 | AV66: 0 | AW66: 0 | AX66: 0 | AY66: 0 | AZ66: 0
AZ67: 0
A68: 其他业务收入合计 | D68: =D30+D34+D38+D42+D46+D50+D54+D58+D62+D66 -> 9702 | E68: =E30+E34+E38+E42+E46+E50+E54+E58+E62+E66 -> 19404 | F68: 29106 | G68: 38808 | H68: 48510 | I68: 70756 | J68: 93002 | K68: 115248 | L68: 137494 | M68: 159740 | N68: 162582 | O68: 165424 | P68: 168266 | Q68: 171108 | R68: 173950 | S68: 176792 | T68: 150528 | U68: 163072 | V68: 175616 | W68: 188160 | X68: 200704 | Y68: 213248 | Z68: 225792 | AA68: 213248 | AB68: 200704 | AC68: 188160 | AD68: 175616 | AE68: 163072 | AF68: 150528 | AG68: 137984 | AH68: 22344 | AI68: 44688 | AJ68: 67032 | AK68: 89376 | AL68: 150724 | AM68: 212072 | AN68: 312424 | AO68: 490784 | AP68: 669144 | AQ68: 847504 | AR68: 869848 | AS68: 892192 | AT68: 914536 | AU68: 936880 | AV68: 914536 | AW68: 892192 | AX68: 713832 | AY68: 535472 | AZ68: 13861904
A69: 总收入合计 | D69: =D24+D68 -> 41062 | E69: =E24+E68 -> 50764 | F69: 60466 | G69: 70168 | H69: 79870 | I69: 102116 | J69: 124362 | K69: 146608 | L69: 168854 | M69: 191100 | N69: 193942 | O69: 196784 | P69: 202223 | Q69: 205065 | R69: 207907 | S69: 210749 | T69: 184485 | U69: 197029 | V69: 209573 | W69: 222117 | X69: 234661 | Y69: 247205 | Z69: 259749 | AA69: 247205 | AB69: 261464 | AC69: 248920 | AD69: 236376 | AE69: 223832 | AF69: 211288 | AG69: 198744 | AH69: 192472 | AI69: 214816 | AJ69: 237160 | AK69: 259504 | AL69: 320852 | AM69: 382200 | AN69: 585452 | AO69: 763812 | AP69: 981176 | AQ69: 1159536 | AR69: 1181880 | AS69: 1204224 | AT69: 1226568 | AU69: 1248912 | AV69: 1226568 | AW69: 1204224 | AX69: 1025864 | AY69: 847504 | AZ69: 19697412
AZ70: 0
A71: 直接成本 | AZ71: =SUM(D71:AY71) -> 0
B72: 投入 | D72: 300000 | K72: 300000 | O72: 300000 | P72: 300000 | Q72: 300000 | R72: 100000 | Z72: 2000000 | AO72: 3000000 | AU72: 2000000 | AY72: 400000 | AZ72: 9000000
A73: 主营业务收入直接成本 | AZ73: 0
AZ74: 0
B75: 直通车 | C75: 成本率 | D75: 0.39 | E75: 0.39 | F75: 0.39 | G75: 0.39 | H75: 0.39 | I75: 0.39 | J75: 0.39 | K75: 0.39 | L75: 0.39 | M75: 0.39 | N75: 0.39 | O75: 0.39 | P75: 0.2 | Q75: 0.2 | R75: 0.2 | S75: 0.2 | T75: 0.2 | U75: 0.2 | V75: 0.2 | W75: 0.2 | X75: 0.2 | Y75: 0.2 | Z75: 0.2 | AA75: 0.2 | AB75: 0.46 | AC75: 0.46 | AD75: 0.46 | AE75: 0.46 | AF75: 0.46 | AG75: 0.46 | AH75: 0.46 | AI75: 0.46 | AJ75: 0.46 | AK75: 0.46 | AL75: 0.46 | AM75: 0.46 | AN75: 0.4 | AO75: 0.4 | AP75: 0.4 | AQ75: 0.4 | AR75: 0.4 | AS75: 0.4 | AT75: 0.4 | AU75: 0.4 | AV75: 0.4 | AW75: 0.4 | AX75: 0.4 | AY75: 0.4 | AZ75: 17.4
C76: 直接成本 | D76: =D12*D75 -> 6988.8 | E76: =E12*E75 -> 6988.8 | F76: 6988.8 | G76: 6988.8 | H76: 6988.8 | I76: 6988.8 | J76: 6988.8 | K76: 6988.8 | L76: 6988.8 | M76: 6988.8 | N76: 6988.8 | O76: 6988.8 | P76: 4158 | Q76: 4158 | R76: 4158 | S76: 4158 | T76: 4158 | U76: 4158 | V76: 4158 | W76: 4158 | X76: 4158 | Y76: 4158 | Z76: 4158 | AA76: 4158 | AB76: 15971.2 | AC76: 15971.2 | AD76: 15971.2 | AE76: 15971.2 | AF76: 15971.2 | AG76: 15971.2 | AH76: 39928 | AI76: 39928 | AJ76: 39928 | AK76: 39928 | AL76: 39928 | AM76: 39928 | AN76: 55720 | AO76: 55720 | AP76: 66864 | AQ76: 66864 | AR76: 66864 | AS76: 66864 | AT76: 66864 | AU76: 66864 | AV76: 66864 | AW76: 66864 | AX76: 66864 | AY76: 66864 | AZ76: 1249236.8
AZ77: 0
B78: 钻展 | C78: 成本率 | D78: =D75 -> 0.39 | E78: =E75 -> 0.39 | F78: 0.39 | G78: 0.39 | H78: 0.39 | I78: 0.39 | J78: 0.39 | K78: 0.39 | L78: 0.39 | M78: 0.39 | N78: 0.39 | O78: 0.39 | P78: 0.2 | Q78: 0.2 | R78: 0.2 | S78: 0.2 | T78: 0.2 | U78: 0.2 | V78: 0.2 | W78: 0.2 | X78: 0.2 | Y78: 0.2 | Z78: 0.2 | AA78: 0.2 | AB78: 0.46 | AC78: 0.46 | AD78: 0.46 | AE78: 0.46 | AF78: 0.46 | AG78: 0.46 | AH78: 0.46 | AI78: 0.46 | AJ78: 0.46 | AK78: 0.46 | AL78: 0.46 | AM78: 0.46 | AN78: 0.4 | AO78: 0.4 | AP78: 0.4 | AQ78: 0.4 | AR78: 0.4 | AS78: 0.4 | AT78: 0.4 | AU78: 0.4 | AV78: 0.4 | AW78: 0.4 | AX78: 0.4 | AY78: 0.4 | AZ78: 17.4
C79: 直接成本 | D79: =D17*D78 -> 1747.2 | E79: =E17*E78 -> 1747.2 | F79: 1747.2 | G79: 1747.2 | H79: 1747.2 | I79: 1747.2 | J79: 1747.2 | K79: 1747.2 | L79: 1747.2 | M79: 1747.2 | N79: 1747.2 | O79: 1747.2 | P79: 693 | Q79: 693 | R79: 693 | S79: 693 | T79: 693 | U79: 693 | V79: 693 | W79: 693 | X79: 693 | Y79: 693 | Z79: 693 | AA79: 693 | AB79: 3992.8 | AC79: 3992.8 | AD79: 3992.8 | AE79: 3992.8 | AF79: 3992.8 | AG79: 3992.8 | AH79: 15971.2 | AI79: 15971.2 | AJ79: 15971.2 | AK79: 15971.2 | AL79: 15971.2 | AM79: 15971.2 | AN79: 22288 | AO79: 22288 | AP79: 22288 | AQ79: 22288 | AR79: 22288 | AS79: 22288 | AT79: 22288 | AU79: 22288 | AV79: 22288 | AW79: 22288 | AX79: 22288 | AY79: 22288 | AZ79: 416522.4
AZ80: 0
B81: 自然流量 | C81: 成本率 | D81: =D75 -> 0.39 | E81: =E75 -> 0.39 | F81: 0.39 | G81: 0.39 | H81: 0.39 | I81: 0.39 | J81: 0.39 | K81: 0.39 | L81: 0.39 | M81: 0.39 | N81: 0.39 | O81: 0.39 | P81: 0.2 | Q81: 0.2 | R81: 0.2 | S81: 0.2 | T81: 0.2 | U81: 0.2 | V81: 0.2 | W81: 0.2 | X81: 0.2 | Y81: 0.2 | Z81: 0.2 | AA81: 0.2 | AB81: 0.46 | AC81: 0.46 | AD81: 0.46 | AE81: 0.46 | AF81: 0.46 | AG81: 0.46 | AH81: 0.46 | AI81: 0.46 | AJ81: 0.46 | AK81: 0.46 | AL81: 0.46 | AM81: 0.46 | AN81: 0.4 | AO81: 0.4 | AP81: 0.4 | AQ81: 0.4 | AR81: 0.4 | AS81: 0.4 | AT81: 0.4 | AU81: 0.4 | AV81: 0.4 | AW81: 0.4 | AX81: 0.4 | AY81: 0.4 | AZ81: 17.4
C82: 直接成本 | D82: =D22*D81 -> 3494.4 | E82: =E22*E81 -> 3494.4 | F82: 3494.4 | G82: 3494.4 | H82: 3494.4 | I82: 3494.4 | J82: 3494.4 | K82: 3494.4 | L82: 3494.4 | M82: 3494.4 | N82: 3494.4 | O82: 3494.4 | P82: 1940.4 | Q82: 1940.4 | R82: 1940.4 | S82: 1940.4 | T82: 1940.4 | U82: 1940.4 | V82: 1940.4 | W82: 1940.4 | X82: 1940.4 | Y82: 1940.4 | Z82: 1940.4 | AA82: 1940.4 | AB82: 7985.6 | AC82: 7985.6 | AD82: 7985.6 | AE82: 7985.6 | AF82: 7985.6 | AG82: 7985.6 | AH82: 22359.68 | AI82: 22359.68 | AJ82: 22359.68 | AK82: 22359.68 | AL82: 22359.68 | AM82: 22359.68 | AN82: 31203.2 | AO82: 31203.2 | AP82: 35660.8 | AQ82: 35660.8 | AR82: 35660.8 | AS82: 35660.8 | AT82: 35660.8 | AU82: 35660.8 | AV82: 35660.8 | AW82: 35660.8 | AX82: 35660.8 | AY82: 35660.8 | AZ82: 666303.68
AZ83: 0
A84: 爆款直接成本 | AZ84: 0
AZ85: 0
B86: 直通车（春） | C86: 成本率 | D86: 0.5 | E86: 0.5 | F86: 0.5 | G86: 0.5 | H86: 0.5 | I86: 0.5 | J86: 0.5 | K86: 0.5 | L86: 0.5 | M86: 0.5 | N86: 0.5 | O86: 0.5 | P86: 0.5 | Q86: 0.5 | R86: 0.5 | S86: 0.5 | T86: 0.5 | U86: 0.5 | V86: 0.5 | W86: 0.5 | X86: 0.5 | Y86: 0.5 | Z86: 0.5 | AA86: 0.5 | AB86: 0.5 | AC86: 0.5 | AD86: 0.5 | AE86: 0.5 | AF86: 0.5 | AG86: 0.5 | AH86: 0.5 | AI86: 0.5 | AJ86: 0.5 | AK86: 0.5 | AL86: 0.5 | AM86: 0.5 | AN86: 0.5 | AO86: 0.5 | AP86: 0.5 | AQ86: 0.5 | AR86: 0.5 | AS86: 0.5 | AT86: 0.5 | AU86: 0.5 | AV86: 0.5 | AW86: 0.5 | AX86: 0.5 | AY86: 0.5 | AZ86: 24
C87: 直接成本 | D87: =D30*D86 -> 3465 | E87: =E30*E86 -> 6930 | F87: 10395 | G87: 13860 | H87: 17325 | I87: 20790 | J87: 24255 | K87: 27720 | L87: 31185 | M87: 34650 | N87: 31185 | O87: 27720 | P87: 24255 | Q87: 20790 | R87: 17325 | S87: 13860 | T87: 0 | U87: 0 | V87: 0 | W87: 0 | X87: 0 | Y87: 0 | Z87: 0 | AA87: 0 | AB87: 0 | AC87: 0 | AD87: 0 | AE87: 0 | AF87: 0 | AG87: 0 | AH87: 0 | AI87: 0 | AJ87: 0 | AK87: 0 | AL87: 0 | AM87: 0 | AN87: 0 | AO87: 0 | AP87: 0 | AQ87: 0 | AR87: 0 | AS87: 0 | AT87: 0 | AU87: 0 | AV87: 0 | AW87: 0 | AX87: 0 | AY87: 0 | AZ87: 325710
AZ88: 0
B89: 直通车（夏） | C89: 成本率 | D89: 0.47 | E89: 0.47 | F89: 0.47 | G89: 0.47 | H89: 0.47 | I89: 0.47 | J89: 0.47 | K89: 0.47 | L89: 0.47 | M89: 0.47 | N89: 0.47 | O89: 0.47 | P89: 0.47 | Q89: 0.47 | R89: 0.47 | S89: 0.47 | T89: 0.47 | U89: 0.47 | V89: 0.47 | W89: 0.47 | X89: 0.47 | Y89: 0.47 | Z89: 0.47 | AA89: 0.47 | AB89: 0.47 | AC89: 0.47 | AD89: 0.47 | AE89: 0.47 | AF89: 0.47 | AG89: 0.47 | AH89: 0.47 | AI89: 0.47 | AJ89: 0.47 | AK89: 0.47 | AL89: 0.47 | AM89: 0.47 | AN89: 0.47 | AO89: 0.47 | AP89: 0.47 | AQ89: 0.47 | AR89: 0.47 | AS89: 0.47 | AT89: 0.47 | AU89: 0.47 | AV89: 0.47 | AW89: 0.47 | AX89: 0.47 | AY89: 0.47 | AZ89: 22.56
C90: 直接成本 | D90: =D34*D89 -> 0 | E90: =E34*E89 -> 0 | F90: 0 | G90: 0 | H90: 0 | I90: 4211.2 | J90: 8422.4 | K90: 12633.6 | L90: 16844.8 | M90: 21056 | N90: 25267.2 | O90: 29478.4 | P90: 33689.6 | Q90: 37900.8 | R90: 42112 | S90: 46323.2 | T90: 50534.4 | U90: 54745.6 | V90: 58956.8 | W90: 63168 | X90: 67379.2 | Y90: 71590.4 | Z90: 75801.6 | AA90: 71590.4 | AB90: 67379.2 | AC90: 63168 | AD90: 58956.8 | AE90: 54745.6 | AF90: 50534.4 | AG90: 46323.2 | AH90: 0 | AI90: 0 | AJ90: 0 | AK90: 0 | AL90: 0 | AM90: 0 | AN90: 0 | AO90: 0 | AP90: 0 | AQ90: 0 | AR90: 0 | AS90: 0 | AT90: 0 | AU90: 0 | AV90: 0 | AW90: 0 | AX90: 0 | AY90: 0 | AZ90: 1132812.8
AZ91: 0
B92: 直通车（秋） | C92: 成本率 | D92: 0.61 | E92: 0.61 | F92: 0.61 | G92: 0.61 | H92: 0.61 | I92: 0.61 | J92: 0.61 | K92: 0.61 | L92: 0.61 | M92: 0.61 | N92: 0.61 | O92: 0.61 | P92: 0.61 | Q92: 0.61 | R92: 0.61 | S92: 0.61 | T92: 0.61 | U92: 0.61 | V92: 0.61 | W92: 0.61 | X92: 0.61 | Y92: 0.61 | Z92: 0.61 | AA92: 0.61 | AB92: 0.61 | AC92: 0.61 | AD92: 0.61 | AE92: 0.61 | AF92: 0.61 | AG92: 0.61 | AH92: 0.61 | AI92: 0.61 | AJ92: 0.61 | AK92: 0.61 | AL92: 0.61 | AM92: 0.61 | AN92: 0.61 | AO92: 0.61 | AP92: 0.61 | AQ92: 0.61 | AR92: 0.61 | AS92: 0.61 | AT92: 0.61 | AU92: 0.61 | AV92: 0.61 | AW92: 0.61 | AX92: 0.61 | AY92: 0.61 | AZ92: 29.28
C93: 直接成本 | D93: =D38*D92 -> 0 | E93: =E38*E92 -> 0 | F93: 0 | G93: 0 | H93: 0 | I93: 0 | J93: 0 | K93: 0 | L93: 0 | M93: 0 | N93: 0 | O93: 0 | P93: 0 | Q93: 0 | R93: 0 | S93: 0 | T93: 0 | U93: 0 | V93: 0 | W93: 0 | X93: 0 | Y93: 0 | Z93: 0 | AA93: 0 | AB93: 0 | AC93: 0 | AD93: 0 | AE93: 0 | AF93: 0 | AG93: 0 | AH93: 9735.6 | AI93: 19471.2 | AJ93: 29206.8 | AK93: 38942.4 | AL93: 48678 | AM93: 58413.6 | AN93: 68149.2 | AO93: 77884.8 | AP93: 87620.4 | AQ93: 97356 | AR93: 107091.6 | AS93: 116827.2 | AT93: 126562.8 | AU93: 136298.4 | AV93: 126562.8 | AW93: 116827.2 | AX93: 107091.6 | AY93: 97356 | AZ93: 1470075.6
AZ94: 0
B95: 直通车（冬） | C95: 成本率 | D95: 0.4 | E95: 0.4 | F95: 0.4 | G95: 0.4 | H95: 0.4 | I95: 0.4 | J95: 0.4 | K95: 0.4 | L95: 0.4 | M95: 0.4 | N95: 0.4 | O95: 0.4 | P95: 0.4 | Q95: 0.4 | R95: 0.4 | S95: 0.4 | T95: 0.4 | U95: 0.4 | V95: 0.4 | W95: 0.4 | X95: 0.4 | Y95: 0.4 | Z95: 0.4 | AA95: 0.4 | AB95: 0.4 | AC95: 0.4 | AD95: 0.4 | AE95: 0.4 | AF95: 0.4 | AG95: 0.4 | AH95: 0.4 | AI95: 0.4 | AJ95: 0.4 | AK95: 0.4 | AL95: 0.4 | AM95: 0.4 | AN95: 0.4 | AO95: 0.4 | AP95: 0.4 | AQ95: 0.4 | AR95: 0.4 | AS95: 0.4 | AT95: 0.4 | AU95: 0.4 | AV95: 0.4 | AW95: 0.4 | AX95: 0.4 | AY95: 0.4 | AZ95: 19.2
C96: 直接成本 | D96: =D42*D95 -> 0 | E96: =E42*E95 -> 0 | F96: 0 | G96: 0 | H96: 0 | I96: 0 | J96: 0 | K96: 0 | L96: 0 | M96: 0 | N96: 0 | O96: 0 | P96: 0 | Q96: 0 | R96: 0 | S96: 0 | T96: 0 | U96: 0 | V96: 0 | W96: 0 | X96: 0 | Y96: 0 | Z96: 0 | AA96: 0 | AB96: 0 | AC96: 0 | AD96: 0 | AE96: 0 | AF96: 0 | AG96: 0 | AH96: 0 | AI96: 0 | AJ96: 0 | AK96: 0 | AL96: 11144 | AM96: 22288 | AN96: 44576 | AO96: 89152 | AP96: 133728 | AQ96: 178304 | AR96: 178304 | AS96: 178304 | AT96: 178304 | AU96: 178304 | AV96: 178304 | AW96: 178304 | AX96: 133728 | AY96: 89152 | AZ96: 1771896
AZ97: 0
B98: 自然流量（春） | C98: 成本率 | D98: =D86 -> 0.5 | E98: =E86 -> 0.5 | F98: 0.5 | G98: 0.5 | H98: 0.5 | I98: 0.5 | J98: 0.5 | K98: 0.5 | L98: 0.5 | M98: 0.5 | N98: 0.5 | O98: 0.5 | P98: 0.5 | Q98: 0.5 | R98: 0.5 | S98: 0.5 | T98: 0.5 | U98: 0.5 | V98: 0.5 | W98: 0.5 | X98: 0.5 | Y98: 0.5 | Z98: 0.5 | AA98: 0.5 | AB98: 0.5 | AC98: 0.5 | AD98: 0.5 | AE98: 0.5 | AF98: 0.5 | AG98: 0.5 | AH98: 0.5 | AI98: 0.5 | AJ98: 0.5 | AK98: 0.5 | AL98: 0.5 | AM98: 0.5 | AN98: 0.5 | AO98: 0.5 | AP98: 0.5 | AQ98: 0.5 | AR98: 0.5 | AS98: 0.5 | AT98: 0.5 | AU98: 0.5 | AV98: 0.5 | AW98: 0.5 | AX98: 0.5 | AY98: 0.5 | AZ98: 24
C99: 直接成本 | D99: =D46*D98 -> 1386 | E99: =E46*E98 -> 2772 | F99: 4158 | G99: 5544 | H99: 6930 | I99: 8316 | J99: 9702 | K99: 11088 | L99: 12474 | M99: 13860 | N99: 12474 | O99: 11088 | P99: 9702 | Q99: 8316 | R99: 6930 | S99: 5544 | T99: 0 | U99: 0 | V99: 0 | W99: 0 | X99: 0 | Y99: 0 | Z99: 0 | AA99: 0 | AB99: 0 | AC99: 0 | AD99: 0 | AE99: 0 | AF99: 0 | AG99: 0 | AH99: 0 | AI99: 0 | AJ99: 0 | AK99: 0 | AL99: 0 | AM99: 0 | AN99: 0 | AO99: 0 | AP99: 0 | AQ99: 0 | AR99: 0 | AS99: 0 | AT99: 0 | AU99: 0 | AV99: 0 | AW99: 0 | AX99: 0 | AY99: 0 | AZ99: 130284
AZ100: 0
B101: 自然流量（夏） | C101: 成本率 | D101: =D89 -> 0.47 | E101: =E89 -> 0.47 | F101: 0.47 | G101: 0.47 | H101: 0.47 | I101: 0.47 | J101: 0.47 | K101: 0.47 | L101: 0.47 | M101: 0.47 | N101: 0.47 | O101: 0.47 | P101: 0.47 | Q101: 0.47 | R101: 0.47 | S101: 0.47 | T101: 0.47 | U101: 0.47 | V101: 0.47 | W101: 0.47 | X101: 0.47 | Y101: 0.47 | Z101: 0.47 | AA101: 0.47 | AB101: 0.47 | AC101: 0.47 | AD101: 0.47 | AE101: 0.47 | AF101: 0.47 | AG101: 0.47 | AH101: 0.47 | AI101: 0.47 | AJ101: 0.47 | AK101: 0.47 | AL101: 0.47 | AM101: 0.47 | AN101: 0.47 | AO101: 0.47 | AP101: 0.47 | AQ101: 0.47 | AR101: 0.47 | AS101: 0.47 | AT101: 0.47 | AU101: 0.47 | AV101: 0.47 | AW101: 0.47 | AX101: 0.47 | AY101: 0.47 | AZ101: 22.56
C102: 直接成本 | D102: =D50*D101 -> 0 | E102: =E50*E101 -> 0 | F102: 0 | G102: 0 | H102: 0 | I102: 1684.48 | J102: 3368.96 | K102: 5053.44 | L102: 6737.92 | M102: 8422.4 | N102: 10106.88 | O102: 11791.36 | P102: 13475.84 | Q102: 15160.32 | R102: 16844.8 | S102: 18529.28 | T102: 20213.76 | U102: 21898.24 | V102: 23582.72 | W102: 25267.2 | X102: 26951.68 | Y102: 28636.16 | Z102: 30320.64 | AA102: 28636.16 | AB102: 26951.68 | AC102: 25267.2 | AD102: 23582.72 | AE102: 21898.24 | AF102: 20213.76 | AG102: 18529.28 | AH102: 0 | AI102: 0 | AJ102: 0 | AK102: 0 | AL102: 0 | AM102: 0 | AN102: 0 | AO102: 0 | AP102: 0 | AQ102: 0 | AR102: 0 | AS102: 0 | AT102: 0 | AU102: 0 | AV102: 0 | AW102: 0 | AX102: 0 | AY102: 0 | AZ102: 453125.12
AZ103: 0
B104: 自然流量（秋） | C104: 成本率 | D104: =D92 -> 0.61 | E104: =E92 -> 0.61 | F104: 0.61 | G104: 0.61 | H104: 0.61 | I104: 0.61 | J104: 0.61 | K104: 0.61 | L104: 0.61 | M104: 0.61 | N104: 0.61 | O104: 0.61 | P104: 0.61 | Q104: 0.61 | R104: 0.61 | S104: 0.61 | T104: 0.61 | U104: 0.61 | V104: 0.61 | W104: 0.61 | X104: 0.61 | Y104: 0.61 | Z104: 0.61 | AA104: 0.61 | AB104: 0.61 | AC104: 0.61 | AD104: 0.61 | AE104: 0.61 | AF104: 0.61 | AG104: 0.61 | AH104: 0.61 | AI104: 0.61 | AJ104: 0.61 | AK104: 0.61 | AL104: 0.61 | AM104: 0.61 | AN104: 0.61 | AO104: 0.61 | AP104: 0.61 | AQ104: 0.61 | AR104: 0.61 | AS104: 0.61 | AT104: 0.61 | AU104: 0.61 | AV104: 0.61 | AW104: 0.61 | AX104: 0.61 | AY104: 0.61 | AZ104: 29.28
C105: 直接成本 | D105: =D54*D104 -> 0 | E105: =E54*E104 -> 0 | F105: 0 | G105: 0 | H105: 0 | I105: 0 | J105: 0 | K105: 0 | L105: 0 | M105: 0 | N105: 0 | O105: 0 | P105: 0 | Q105: 0 | R105: 0 | S105: 0 | T105: 0 | U105: 0 | V105: 0 | W105: 0 | X105: 0 | Y105: 0 | Z105: 0 | AA105: 0 | AB105: 0 | AC105: 0 | AD105: 0 | AE105: 0 | AF105: 0 | AG105: 0 | AH105: 3894.24 | AI105: 7788.48 | AJ105: 11682.72 | AK105: 15576.96 | AL105: 19471.2 | AM105: 23365.44 | AN105: 27259.68 | AO105: 31153.92 | AP105: 35048.16 | AQ105: 38942.4 | AR105: 42836.64 | AS105: 46730.88 | AT105: 50625.12 | AU105: 54519.36 | AV105: 50625.12 | AW105: 46730.88 | AX105: 42836.64 | AY105: 38942.4 | AZ105: 588030.24
AZ106: 0
B107: 自然流量（冬） | C107: 成本率 | D107: =D95 -> 0.4 | E107: =E95 -> 0.4 | F107: 0.4 | G107: 0.4 | H107: 0.4 | I107: 0.4 | J107: 0.4 | K107: 0.4 | L107: 0.4 | M107: 0.4 | N107: 0.4 | O107: 0.4 | P107: 0.4 | Q107: 0.4 | R107: 0.4 | S107: 0.4 | T107: 0.4 | U107: 0.4 | V107: 0.4 | W107: 0.4 | X107: 0.4 | Y107: 0.4 | Z107: 0.4 | AA107: 0.4 | AB107: 0.4 | AC107: 0.4 | AD107: 0.4 | AE107: 0.4 | AF107: 0.4 | AG107: 0.4 | AH107: 0.4 | AI107: 0.4 | AJ107: 0.4 | AK107: 0.4 | AL107: 0.4 | AM107: 0.4 | AN107: 0.4 | AO107: 0.4 | AP107: 0.4 | AQ107: 0.4 | AR107: 0.4 | AS107: 0.4 | AT107: 0.4 | AU107: 0.4 | AV107: 0.4 | AW107: 0.4 | AX107: 0.4 | AY107: 0.4 | AZ107: 19.2
C108: 直接成本 | D108: =D58*D107 -> 0 | E108: =E58*E107 -> 0 | F108: 0 | G108: 0 | H108: 0 | I108: 0 | J108: 0 | K108: 0 | L108: 0 | M108: 0 | N108: 0 | O108: 0 | P108: 0 | Q108: 0 | R108: 0 | S108: 0 | T108: 0 | U108: 0 | V108: 0 | W108: 0 | X108: 0 | Y108: 0 | Z108: 0 | AA108: 0 | AB108: 0 | AC108: 0 | AD108: 0 | AE108: 0 | AF108: 0 | AG108: 0 | AH108: 0 | AI108: 0 | AJ108: 0 | AK108: 0 | AL108: 4457.6 | AM108: 8915.2 | AN108: 17830.4 | AO108: 35660.8 | AP108: 53491.2 | AQ108: 71321.6 | AR108: 71321.6 | AS108: 71321.6 | AT108: 71321.6 | AU108: 71321.6 | AV108: 71321.6 | AW108: 71321.6 | AX108: 53491.2 | AY108: 35660.8 | AZ108: 708758.4
AZ109: 0
B110: 活动销量 | C110: 成本率 | D110: 0 | E110: 0 | F110: 0 | G110: 0 | H110: 0 | I110: 0 | J110: 0 | K110: 0 | L110: 0 | M110: 0 | N110: 0 | O110: 0 | P110: 0 | Q110: 0 | R110: 0 | S110: 0 | T110: 0 | U110: 0 | V110: 0 | W110: 0 | X110: 0 | Y110: 0 | Z110: 0 | AA110: 0 | AB110: 0 | AC110: 0 | AD110: 0 | AE110: 0 | AF110: 0 | AG110: 0 | AH110: 0 | AI110: 0 | AJ110: 0 | AK110: 0 | AL110: 0 | AM110: 0 | AN110: 0 | AO110: 0 | AP110: 0 | AQ110: 0 | AR110: 0 | AS110: 0 | AT110: 0 | AU110: 0 | AV110: 0 | AW110: 0 | AX110: 0 | AY110: 0 | AZ110: 0
C111: 直接成本 | D111: 0 | E111: 0 | F111: 0 | G111: 0 | H111: 0 | I111: 0 | J111: 0 | K111: 0 | L111: 0 | M111: 0 | N111: 0 | O111: 0 | P111: 0 | Q111: 0 | R111: 0 | S111: 0 | T111: 0 | U111: 0 | V111: 0 | W111: 0 | X111: 0 | Y111: 0 | Z111: 0 | AA111: 0 | AB111: 0 | AC111: 0 | AD111: 0 | AE111: 0 | AF111: 0 | AG111: 0 | AH111: 0 | AI111: 0 | AJ111: 0 | AK111: 0 | AL111: 0 | AM111: 0 | AN111: 0 | AO111: 0 | AP111: 0 | AQ111: 0 | AR111: 0 | AS111: 0 | AT111: 0 | AU111: 0 | AV111: 0 | AW111: 0 | AX111: 0 | AY111: 0 | AZ111: 0
AZ112: 0
B113: 淘宝客 | C113: 成本率 | D113: 0 | E113: 0 | F113: 0 | G113: 0 | H113: 0 | I113: 0 | J113: 0 | K113: 0 | L113: 0 | M113: 0 | N113: 0 | O113: 0 | P113: 0 | Q113: 0 | R113: 0 | S113: 0 | T113: 0 | U113: 0 | V113: 0 | W113: 0 | X113: 0 | Y113: 0 | Z113: 0 | AA113: 0 | AB113: 0 | AC113: 0 | AD113: 0 | AE113: 0 | AF113: 0 | AG113: 0 | AH113: 0 | AI113: 0 | AJ113: 0 | AK113: 0 | AL113: 0 | AM113: 0 | AN113: 0 | AO113: 0 | AP113: 0 | AQ113: 0 | AR113: 0 | AS113: 0 | AT113: 0 | AU113: 0 | AV113: 0 | AW113: 0 | AX113: 0 | AY113: 0 | AZ113: 0
C114: 直接成本 | D114: 0 | E114: 0 | F114: 0 | G114: 0 | H114: 0 | I114: 0 | J114: 0 | K114: 0 | L114: 0 | M114: 0 | N114: 0 | O114: 0 | P114: 0 | Q114: 0 | R114: 0 | S114: 0 | T114: 0 | U114: 0 | V114: 0 | W114: 0 | X114: 0 | Y114: 0 | Z114: 0 | AA114: 0 | AB114: 0 | AC114: 0 | AD114: 0 | AE114: 0 | AF114: 0 | AG114: 0 | AH114: 0 | AI114: 0 | AJ114: 0 | AK114: 0 | AL114: 0 | AM114: 0 | AN114: 0 | AO114: 0 | AP114: 0 | AQ114: 0 | AR114: 0 | AS114: 0 | AT114: 0 | AU114: 0 | AV114: 0 | AW114: 0 | AX114: 0 | AY114: 0 | AZ114: 0
AZ115: 0
A116: 直接成本合计 | D116: =D76+D79+D82+D87+D90+D93+D96+D99+D102+D105+D108+D111+D114 -> 17081.4 | E116: =E76+E79+E82+E87+E90+E93+E96+E99+E102+E105+E108+E111+E114 -> 21932.4 | F116: 26783.4 | G116: 31634.4 | H116: 36485.4 | I116: 47232.08 | J116: 57978.76 | K116: 68725.44 | L116: 79472.12 | M116: 90218.8 | N116: 91263.48 | O116: 92308.16 | P116: 87913.84 | Q116: 88958.52 | R116: 90003.2 | S116: 91047.88 | T116: 77539.56 | U116: 83435.24 | V116: 89330.92 | W116: 95226.6 | X116: 101122.28 | Y116: 107017.96 | Z116: 112913.64 | AA116: 107017.96 | AB116: 122280.48 | AC116: 116384.8 | AD116: 110489.12 | AE116: 104593.44 | AF116: 98697.76 | AG116: 92802.08 | AH116: 91888.72 | AI116: 105518.56 | AJ116: 119148.4 | AK116: 132778.24 | AL116: 162009.68 | AM116: 191241.12 | AN116: 267026.48 | AO116: 343062.72 | AP116: 434700.56 | AQ116: 510736.8 | AR116: 524366.64 | AS116: 537996.48 | AT116: 551626.32 | AU116: 565256.16 | AV116: 551626.32 | AW116: 537996.48 | AX116: 461960.24 | AY116: 385924 | AZ116: 8912755.04
A117: 库存金额 | D117: =D72-D116 -> 282918.6 | E117: =D117+E72-E116 -> 260986.2 | F117: =E117+F72-F116 -> 234202.8 | G117: 202568.4 | H117: 166083 | I117: 118850.92 | J117: 60872.16 | K117: 292146.72 | L117: 212674.6 | M117: 122455.8 | N117: 31192.32 | O117: 238884.16 | P117: 450970.32 | Q117: 662011.8 | R117: 672008.6 | S117: 580960.72 | T117: 503421.16 | U117: 419985.92 | V117: 330655 | W117: 235428.4 | X117: 134306.12 | Y117: 27288.16 | Z117: 1914374.52 | AA117: 1807356.56 | AB117: 1685076.08 | AC117: 1568691.28 | AD117: 1458202.16 | AE117: 1353608.72 | AF117: 1254910.96 | AG117: 1162108.88 | AH117: 1070220.16 | AI117: 964701.6 | AJ117: 845553.2 | AK117: 712774.96 | AL117: 550765.28 | AM117: 359524.16 | AN117: 92497.68 | AO117: 2749434.96 | AP117: 2314734.4 | AQ117: 1803997.6 | AR117: 1279630.96 | AS117: 741634.48 | AT117: 190008.16 | AU117: 1624752 | AV117: 1073125.68 | AW117: 535129.2 | AX117: 73168.96 | AY117: 87244.96 | AZ117: 35514099.44

Sheet CashFlow
J1: XX旗舰店2014年现金流量表
D4: Jan | H4: Feb | L4: Mar | P4: Apr | T4: May | X4: Jun | AB4: Jul | AF4: Aug | AJ4: Sep | AN4: Oct | AR4: Nov | AV4: Dec
D5: 1st | E5: 2nd | F5: 3rd | G5: 4th | H5: 1st | I5: 2nd | J5: 3rd | K5: 4th | L5: 1st | M5: 2nd | N5: 3rd | O5: 4th | P5: 1st | Q5: 2nd | R5: 3rd | S5: 4th | T5: 1st | U5: 2nd | V5: 3rd | W5: 4th | X5: 1st | Y5: 2nd | Z5: 3rd | AA5: 4th | AB5: 1st | AC5: 2nd | AD5: 3rd | AE5: 4th | AF5: 1st | AG5: 2nd | AH5: 3rd | AI5: 4th | AJ5: 1st | AK5: 2nd | AL5: 3rd | AM5: 4th | AN5: 1st | AO5: 2nd | AP5: 3rd | AQ5: 4th | AR5: 1st | AS5: 2nd | AT5: 3rd | AU5: 4th | AV5: 1st | AW5: 2nd | AX5: 3rd | AY5: 4th | AZ5: 合计
A6: 注入资金 | D6: 1000000 | Q6: 500000 | Z6: 1000000 | AO6: 250000 | AZ6: =SUM(D6:AY6) -> 2750000
AZ7: =SUM(D7:AY7) -> 0
A8: 营业收入 | AZ8: 0
AZ9: 0
B10: 主营业务收入 | D10: =收入和直接成本!D24 -> 31360 | E10: =收入和直接成本!E24 -> 31360 | F10: =收入和直接成本!F24 -> 31360 | G10: =收入和直接成本!G24 -> 31360 | H10: =收入和直接成本!H24 -> 31360 | I10: =收入和直接成本!I24 -> 31360 | J10: =收入和直接成本!J24 -> 31360 | K10: =收入和直接成本!K24 -> 31360 | L10: =收入和直接成本!L24 -> 31360 | M10: =收入和直接成本!M24 -> 31360 | N10: =收入和直接成本!N24 -> 31360 | O10: =收入和直接成本!O24 -> 31360 | P10: =收入和直接成本!P24 -> 33957 | Q10: =收入和直接成本!Q24 -> 33957 | R10: =收入和直接成本!R24 -> 33957 | S10: =收入和直接成本!S24 -> 33957 | T10: =收入和直接成本!T24 -> 33957 | U10: =收入和直接成本!U24 -> 33957 | V10: =收入和直接成本!V24 -> 33957 | W10: =收入和直接成本!W24 -> 33957 | X10: =收入和直接成本!X24 -> 33957 | Y10: =收入和直接成本!Y24 -> 33957 | Z10: =收入和直接成本!Z24 -> 33957 | AA10: =收入和直接成本!AA24 -> 33957 | AB10: =收入和直接成本!AB24 -> 60760 | AC10: =收入和直接成本!AC24 -> 60760 | AD10: =收入和直接成本!AD24 -> 60760 | AE10: =收入和直接成本!AE24 -> 60760 | AF10: =收入和直接成本!AF24 -> 60760 | AG10: =收入和直接成本!AG24 -> 60760 | AH10: =收入和直接成本!AH24 -> 170128 | AI10: =收入和直接成本!AI24 -> 170128 | AJ10: =收入和直接成本!AJ24 -> 170128 | AK10: =收入和直接成本!AK24 -> 170128 | AL10: =收入和直接成本!AL24 -> 170128 | AM10: =收入和直接成本!AM24 -> 170128 | AN10: =收入和直接成本!AN24 -> 273028 | AO10: =收入和直接成本!AO24 -> 273028 | AP10: =收入和直接成本!AP24 -> 312032 | AQ10: =收入和直接成本!AQ24 -> 312032 | AR10: =收入和直接成本!AR24 -> 312032 | AS10: =收入和直接成本!AS24 -> 312032 | AT10: =收入和直接成本!AT24 -> 312032 | AU10: =收入和直接成本!AU24 -> 312032 | AV10: =收入和直接成本!AV24 -> 312032 | AW10: =收入和直接成本!AW24 -> 312032 | AX10: =收入和直接成本!AX24 -> 312032 | AY10: =收入和直接成本!AY24 -> 312032 | AZ10: 5835508
B11: 其他业务收入 | D11: =收入和直接成本!D68 -> 9702 | E11: =收入和直接成本!E68 -> 19404 | F11: =收入和直接成本!F68 -> 29106 | G11: =收入和直接成本!G68 -> 38808 | H11: =收入和直接成本!H68 -> 48510 | I11: =收入和直接成本!I68 -> 70756 | J11: =收入和直接成本!J68 -> 93002 | K11: =收入和直接成本!K68 -> 115248 | L11: =收入和直接成本!L68 -> 137494 | M11: =收入和直接成本!M68 -> 159740 | N11: =收入和直接成本!N68 -> 162582 | O11: =收入和直接成本!O68 -> 165424 | P11: =收入和直接成本!P68 -> 168266 | Q11: =收入和直接成本!Q68 -> 171108 | R11: =收入和直接成本!R68 -> 173950 | S11: =收入和直接成本!S68 -> 176792 | T11: =收入和直接成本!T68 -> 150528 | U11: =收入和直接成本!U68 -> 163072 | V11: =收入和直接成本!V68 -> 175616 | W11: =收入和直接成本!W68 -> 188160 | X11: =收入和直接成本!X68 -> 200704 | Y11: =收入和直接成本!Y68 -> 213248 | Z11: =收入和直接成本!Z68 -> 225792 | AA11: =收入和直接成本!AA68 -> 213248 | AB11: =收入和直接成本!AB68 -> 200704 | AC11: =收入和直接成本!AC68 -> 188160 | AD11: =收入和直接成本!AD68 -> 175616 | AE11: =收入和直接成本!AE68 -> 163072 | AF11: =收入和直接成本!AF68 -> 150528 | AG11: =收入和直接成本!AG68 -> 137984 | AH11: =收入和直接成本!AH68 -> 22344 | AI11: =收入和直接成本!AI68 -> 44688 | AJ11: =收入和直接成本!AJ68 -> 67032 | AK11: =收入和直接成本!AK68 -> 89376 | AL11: =收入和直接成本!AL68 -> 150724 | AM11: =收入和直接成本!AM68 -> 212072 | AN11: =收入和直接成本!AN68 -> 312424 | AO11: =收入和直接成本!AO68 -> 490784 | AP11: =收入和直接成本!AP68 -> 669144 | AQ11: =收入和直接成本!AQ68 -> 847504 | AR11: =收入和直接成本!AR68 -> 869848 | AS11: =收入和直接成本!AS68 -> 892192 | AT11: =收入和直接成本!AT68 -> 914536 | AU11: =收入和直接成本!AU68 -> 936880 | AV11: =收入和直接成本!AV68 -> 914536 | AW11: =收入和直接成本!AW68 -> 892192 | AX11: =收入和直接成本!AX68 -> 713832 | AY11: =收入和直接成本!AY68 -> 535472 | AZ11: 13861904
AZ12: 0
A13: 总营业收入合计 | D13: =D10+D11 -> 41062 | E13: =E10+E11 -> 50764 | F13: 60466 | G13: 70168 | H13: 79870 | I13: 102116 | J13: 124362 | K13: 146608 | L13: 168854 | M13: 191100 | N13: 193942 | O13: 196784 | P13: 202223 | Q13: 205065 | R13: 207907 | S13: 210749 | T13: 184485 | U13: 197029 | V13: 209573 | W13: 222117 | X13: 234661 | Y13: 247205 | Z13: 259749 | AA13: 247205 | AB13: 261464 | AC13: 248920 | AD13: 236376 | AE13: 223832 | AF13: 211288 | AG13: 198744 | AH13: 192472 | AI13: 214816 | AJ13: 237160 | AK13: 259504 | AL13: 320852 | AM13: 382200 | AN13: 585452 | AO13: 763812 | AP13: 981176 | AQ13: 1159536 | AR13: 1181880 | AS13: 1204224 | AT13: 1226568 | AU13: 1248912 | AV13: 1226568 | AW13: 1204224 | AX13: 1025864 | AY13: 847504 | AZ13: 19697412
AZ14: 0
A15: 直接成本 | AZ15: 0
AZ16: 0
B17: 主营业务直接成本 | D17: =收入和直接成本!D76+收入和直接成本!D79+收入和直接成本!D82 -> 12230.4 | E17: =收入和直接成本!E76+收入和直接成本!E79+收入和直接成本!E82 -> 12230.4 | F17: =收入和直接成本!F76+收入和直接成本!F79+收入和直接成本!F82 -> 12230.4 | G17: =收入和直接成本!G76+收入和直接成本!G79+收入和直接成本!G82 -> 12230.4 | H17: =收入和直接成本!H76+收入和直接成本!H79+收入和直接成本!H82 -> 12230.4 | I17: =收入和直接成本!I76+收入和直接成本!I79+收入和直接成本!I82 -> 12230.4 | J17: =收入和直接成本!J76+收入和直接成本!J79+收入和直接成本!J82 -> 12230.4 | K17: =收入和直接成本!K76+收入和直接成本!K79+收入和直接成本!K82 -> 12230.4 | L17: =收入和直接成本!L76+收入和直接成本!L79+收入和直接成本!L82 -> 12230.4 | M17: =收入和直接成本!M76+收入和直接成本!M79+收入和直接成本!M82 -> 12230.4 | N17: =收入和直接成本!N76+收入和直接成本!N79+收入和直接成本!N82 -> 12230.4 | O17: =收入和直接成本!O76+收入和直接成本!O79+收入和直接成本!O82 -> 12230.4 | P17: =收入和直接成本!P76+收入和直接成本!P79+收入和直接成本!P82 -> 6791.4 | Q17: =收入和直接成本!Q76+收入和直接成本!Q79+收入和直接成本!Q82 -> 6791.4 | R17: =收入和直接成本!R76+收入和直接成本!R79+收入和直接成本!R82 -> 6791.4 | S17: =收入和直接成本!S76+收入和直接成本!S79+收入和直接成本!S82 -> 6791.4 | T17: =收入和直接成本!T76+收入和直接成本!T79+收入和直接成本!T82 -> 6791.4 | U17: =收入和直接成本!U76+收入和直接成本!U79+收入和直接成本!U82 -> 6791.4 | V17: =收入和直接成本!V76+收入和直接成本!V79+收入和直接成本!V82 -> 6791.4 | W17: =收入和直接成本!W76+收入和直接成本!W79+收入和直接成本!W82 -> 6791.4 | X17: =收入和直接成本!X76+收入和直接成本!X79+收入和直接成本!X82 -> 6791.4 | Y17: =收入和直接成本!Y76+收入和直接成本!Y79+收入和直接成本!Y82 -> 6791.4 | Z17: =收入和直接成本!Z76+收入和直接成本!Z79+收入和直接成本!Z82 -> 6791.4 | AA17: =收入和直接成本!AA76+收入和直接成本!AA79+收入和直接成本!AA82 -> 6791.4 | AB17: =收入和直接成本!AB76+收入和直接成本!AB79+收入和直接成本!AB82 -> 27949.6 | AC17: =收入和直接成本!AC76+收入和直接成本!AC79+收入和直接成本!AC82 -> 27949.6 | AD17: =收入和直接成本!AD76+收入和直接成本!AD79+收入和直接成本!AD82 -> 27949.6 | AE17: =收入和直接成本!AE76+收入和直接成本!AE79+收入和直接成本!AE82 -> 27949.6 | AF17: =收入和直接成本!AF76+收入和直接成本!AF79+收入和直接成本!AF82 -> 27949.6 | AG17: =收入和直接成本!AG76+收入和直接成本!AG79+收入和直接成本!AG82 -> 27949.6 | AH17: =收入和直接成本!AH76+收入和直接成本!AH79+收入和直接成本!AH82 -> 78258.88 | AI17: =收入和直接成本!AI76+收入和直接成本!AI79+收入和直接成本!AI82 -> 78258.88 | AJ17: =收入和直接成本!AJ76+收入和直接成本!AJ79+收入和直接成本!AJ82 -> 78258.88 | AK17: =收入和直接成本!AK76+收入和直接成本!AK79+收入和直接成本!AK82 -> 78258.88 | AL17: =收入和直接成本!AL76+收入和直接成本!AL79+收入和直接成本!AL82 -> 78258.88 | AM17: =收入和直接成本!AM76+收入和直接成本!AM79+收入和直接成本!AM82 -> 78258.88 | AN17: =收入和直接成本!AN76+收入和直接成本!AN79+收入和直接成本!AN82 -> 109211.2 | AO17: =收入和直接成本!AO76+收入和直接成本!AO79+收入和直接成本!AO82 -> 109211.2 | AP17: =收入和直接成本!AP76+收入和直接成本!AP79+收入和直接成本!AP82 -> 124812.8 | AQ17: =收入和直接成本!AQ76+收入和直接成本!AQ79+收入和直接成本!AQ82 -> 124812.8 | AR17: =收入和直接成本!AR76+收入和直接成本!AR79+收入和直接成本!AR82 -> 124812.8 | AS17: =收入和直接成本!AS76+收入和直接成本!AS79+收入和直接成本!AS82 -> 124812.8 | AT17: =收入和直接成本!AT76+收入和直接成本!AT79+收入和直接成本!AT82 -> 124812.8 | AU17: =收入和直接成本!AU76+收入和直接成本!AU79+收入和直接成本!AU82 -> 124812.8 | AV17: =收入和直接成本!AV76+收入和直接成本!AV79+收入和直接成本!AV82 -> 124812.8 | AW17: =收入和直接成本!AW76+收入和直接成本!AW79+收入和直接成本!AW82 -> 124812.8 | AX17: =收入和直接成本!AX76+收入和直接成本!AX79+收入和直接成本!AX82 -> 124812.8 | AY17: =收入和直接成本!AY76+收入和直接成本!AY79+收入和直接成本!AY82 -> 124812.8 | AZ17: 2332062.88
B18: 其他业务直接成本 | D18: =收入和直接成本!D87+收入和直接成本!D90+收入和直接成本!D93+收入和直接成本!D96+收入和直接成本!D99+收入和直接成本!D102+收入和直接成本!D105+收入和直接成本!D108+收入和直接成本!D111+收入和直接成本!D114 -> 4851 | E18: =收入和直接成本!E87+收入和直接成本!E90+收入和直接成本!E93+收入和直接成本!E96+收入和直接成本!E99+收入和直接成本!E102+收入和直接成本!E105+收入和直接成本!E108+收入和直接成本!E111+收入和直接成本!E114 -> 9702 | F18: =收入和直接成本!F87+收入和直接成本!F90+收入和直接成本!F93+收入和直接成本!F96+收入和直接成本!F99+收入和直接成本!F102+收入和直接成本!F105+收入和直接成本!F108+收入和直接成本!F111+收入和直接成本!F114 -> 14553 | G18: =收入和直接成本!G87+收入和直接成本!G90+收入和直接成本!G93+收入和直接成本!G96+收入和直接成本!G99+收入和直接成本!G102+收入和直接成本!G105+收入和直接成本!G108+收入和直接成本!G111+收入和直接成本!G114 -> 19404 | H18: =收入和直接成本!H87+收入和直接成本!H90+收入和直接成本!H93+收入和直接成本!H96+收入和直接成本!H99+收入和直接成本!H102+收入和直接成本!H105+收入和直接成本!H108+收入和直接成本!H111+收入和直接成本!H114 -> 24255 | I18: =收入和直接成本!I87+收入和直接成本!I90+收入和直接成本!I93+收入和直接成本!I96+收入和直接成本!I99+收入和直接成本!I102+收入和直接成本!I105+收入和直接成本!I108+收入和直接成本!I111+收入和直接成本!I114 -> 35001.68 | J18: =收入和直接成本!J87+收入和直接成本!J90+收入和直接成本!J93+收入和直接成本!J96+收入和直接成本!J99+收入和直接成本!J102+收入和直接成本!J105+收入和直接成本!J108+收入和直接成本!J111+收入和直接成本!J114 -> 45748.36 | K18: =收入和直接成本!K87+收入和直接成本!K90+收入和直接成本!K93+收入和直接成本!K96+收入和直接成本!K99+收入和直接成本!K102+收入和直接成本!K105+收入和直接成本!K108+收入和直接成本!K111+收入和直接成本!K114 -> 56495.04 | L18: =收入和直接成本!L87+收入和直接成本!L90+收入和直接成本!L93+收入和直接成本!L96+收入和直接成本!L99+收入和直接成本!L102+收入和直接成本!L105+收入和直接成本!L108+收入和直接成本!L111+收入和直接成本!L114 -> 67241.72 | M18: =收入和直接成本!M87+收入和直接成本!M90+收入和直接成本!M93+收入和直接成本!M96+收入和直接成本!M99+收入和直接成本!M102+收入和直接成本!M105+收入和直接成本!M108+收入和直接成本!M111+收入和直接成本!M114 -> 77988.4 | N18: =收入和直接成本!N87+收入和直接成本!N90+收入和直接成本!N93+收入和直接成本!N96+收入和直接成本!N99+收入和直接成本!N102+收入和直接成本!N105+收入和直接成本!N108+收入和直接成本!N111+收入和直接成本!N114 -> 79033.08 | O18: =收入和直接成本!O87+收入和直接成本!O90+收入和直接成本!O93+收入和直接成本!O96+收入和直接成本!O99+收入和直接成本!O102+收入和直接成本!O105+收入和直接成本!O108+收入和直接成本!O111+收入和直接成本!O114 -> 80077.76 | P18: =收入和直接成本!P87+收入和直接成本!P90+收入和直接成本!P93+收入和直接成本!P96+收入和直接成本!P99+收入和直接成本!P102+收入和直接成本!P105+收入和直接成本!P108+收入和直接成本!P111+收入和直接成本!P114 -> 81122.44 | Q18: =收入和直接成本!Q87+收入和直接成本!Q90+收入和直接成本!Q93+收入和直接成本!Q96+收入和直接成本!Q99+收入和直接成本!Q102+收入和直接成本!Q105+收入和直接成本!Q108+收入和直接成本!Q111+收入和直接成本!Q114 -> 82167.12 | R18: =收入和直接成本!R87+收入和直接成本!R90+收入和直接成本!R93+收入和直接成本!R96+收入和直接成本!R99+收入和直接成本!R102+收入和直接成本!R105+收入和直接成本!R108+收入和直接成本!R111+收入和直接成本!R114 -> 83211.8 | S18: =收入和直接成本!S87+收入和直接成本!S90+收入和直接成本!S93+收入和直接成本!S96+收入和直接成本!S99+收入和直接成本!S102+收入和直接成本!S105+收入和直接成本!S108+收入和直接成本!S111+收入和直接成本!S114 -> 84256.48 | T18: =收入和直接成本!T87+收入和直接成本!T90+收入和直接成本!T93+收入和直接成本!T96+收入和直接成本!T99+收入和直接成本!T102+收入和直接成本!T105+收入和直接成本!T108+收入和直接成本!T111+收入和直接成本!T114 -> 70748.16 | U18: =收入和直接成本!U87+收入和直接成本!U90+收入和直接成本!U93+收入和直接成本!U96+收入和直接成本!U99+收入和直接成本!U102+收入和直接成本!U105+收入和直接成本!U108+收入和直接成本!U111+收入和直接成本!U114 -> 76643.84 | V18: =收入和直接成本!V87+收入和直接成本!V90+收入和直接成本!V93+收入和直接成本!V96+收入和直接成本!V99+收入和直接成本!V102+收入和直接成本!V105+收入和直接成本!V108+收入和直接成本!V111+收入和直接成本!V114 -> 82539.52 | W18: =收入和直接成本!W87+收入和直接成本!W90+收入和直接成本!W93+收入和直接成本!W96+收入和直接成本!W99+收入和直接成本!W102+收入和直接成本!W105+收入和直接成本!W108+收入和直接成本!W111+收入和直接成本!W114 -> 88435.2 | X18: =收入和直接成本!X87+收入和直接成本!X90+收入和直接成本!X93+收入和直接成本!X96+收入和直接成本!X99+收入和直接成本!X102+收入和直接成本!X105+收入和直接成本!X108+收入和直接成本!X111+收入和直接成本!X114 -> 94330.88 | Y18: =收入和直接成本!Y87+收入和直接成本!Y90+收入和直接成本!Y93+收入和直接成本!Y96+收入和直接成本!Y99+收入和直接成本!Y102+收入和直接成本!Y105+收入和直接成本!Y108+收入和直接成本!Y111+收入和直接成本!Y114 -> 100226.56 | Z18: =收入和直接成本!Z87+收入和直接成本!Z90+收入和直接成本!Z93+收入和直接成本!Z96+收入和直接成本!Z99+收入和直接成本!Z102+收入和直接成本!Z105+收入和直接成本!Z108+收入和直接成本!Z111+收入和直接成本!Z114 -> 106122.24 | AA18: =收入和直接成本!AA87+收入和直接成本!AA90+收入和直接成本!AA93+收入和直接成本!AA96+收入和直接成本!AA99+收入和直接成本!AA102+收入和直接成本!AA105+收入和直接成本!AA108+收入和直接成本!AA111+收入和直接成本!AA114 -> 100226.56 | AB18: =收入和直接成本!AB87+收入和直接成本!AB90+收入和直接成本!AB93+收入和直接成本!AB96+收入和直接成本!AB99+收入和直接成本!AB102+收入和直接成本!AB105+收入和直接成本!AB108+收入和直接成本!AB111+收入和直接成本!AB114 -> 94330.88 | AC18: =收入和直接成本!AC87+收入和直接成本!AC90+收入和直接成本!AC93+收入和直接成本!AC96+收入和直接成本!AC99+收入和直接成本!AC102+收入和直接成本!AC105+收入和直接成本!AC108+收入和直接成本!AC111+收入和直接成本!AC114 -> 88435.2 | AD18: =收入和直接成本!AD87+收入和直接成本!AD90+收入和直接成本!AD93+收入和直接成本!AD96+收入和直接成本!AD99+收入和直接成本!AD102+收入和直接成本!AD105+收入和直接成本!AD108+收入和直接成本!AD111+收入和直接成本!AD114 -> 82539.52 | AE18: =收入和直接成本!AE87+收入和直接成本!AE90+收入和直接成本!AE93+收入和直接成本!AE96+收入和直接成本!AE99+收入和直接成本!AE102+收入和直接成本!AE105+收入和直接成本!AE108+收入和直接成本!AE111+收入和直接成本!AE114 -> 76643.84 | AF18: =收入和直接成本!AF87+收入和直接成本!AF90+收入和直接成本!AF93+收入和直接成本!AF96+收入和直接成本!AF99+收入和直接成本!AF102+收入和直接成本!AF105+收入和直接成本!AF108+收入和直接成本!AF111+收入和直接成本!AF114 -> 70748.16 | AG18: =收入和直接成本!AG87+收入和直接成本!AG90+收入和直接成本!AG93+收入和直接成本!AG96+收入和直接成本!AG99+收入和直接成本!AG102+收入和直接成本!AG105+收入和直接成本!AG108+收入和直接成本!AG111+收入和直接成本!AG114 -> 64852.48 | AH18: =收入和直接成本!AH87+收入和直接成本!AH90+收入和直接成本!AH93+收入和直接成本!AH96+收入和直接成本!AH99+收入和直接成本!AH102+收入和直接成本!AH105+收入和直接成本!AH108+收入和直接成本!AH111+收入和直接成本!AH114 -> 13629.84 | AI18: =收入和直接成本!AI87+收入和直接成本!AI90+收入和直接成本!AI93+收入和直接成本!AI96+收入和直接成本!AI99+收入和直接成本!AI102+收入和直接成本!AI105+收入和直接成本!AI108+收入和直接成本!AI111+收入和直接成本!AI114 -> 27259.68 | AJ18: =收入和直接成本!AJ87+收入和直接成本!AJ90+收入和直接成本!AJ93+收入和直接成本!AJ96+收入和直接成本!AJ99+收入和直接成本!AJ102+收入和直接成本!AJ105+收入和直接成本!AJ108+收入和直接成本!AJ111+收入和直接成本!AJ114 -> 40889.52 | AK18: =收入和直接成本!AK87+收入和直接成本!AK90+收入和直接成本!AK93+收入和直接成本!AK96+收入和直接成本!AK99+收入和直接成本!AK102+收入和直接成本!AK105+收入和直接成本!AK108+收入和直接成本!AK111+收入和直接成本!AK114 -> 54519.36 | AL18: =收入和直接成本!AL87+收入和直接成本!AL90+收入和直接成本!AL93+收入和直接成本!AL96+收入和直接成本!AL99+收入和直接成本!AL102+收入和直接成本!AL105+收入和直接成本!AL108+收入和直接成本!AL111+收入和直接成本!AL114 -> 83750.8 | AM18: =收入和直接成本!AM87+收入和直接成本!AM90+收入和直接成本!AM93+收入和直接成本!AM96+收入和直接成本!AM99+收入和直接成本!AM102+收入和直接成本!AM105+收入和直接成本!AM108+收入和直接成本!AM111+收入和直接成本!AM114 -> 112982.24 | AN18: =收入和直接成本!AN87+收入和直接成本!AN90+收入和直接成本!AN93+收入和直接成本!AN96+收入和直接成本!AN99+收入和直接成本!AN102+收入和直接成本!AN105+收入和直接成本!AN108+收入和直接成本!AN111+收入和直接成本!AN114 -> 157815.28 | AO18: =收入和直接成本!AO87+收入和直接成本!AO90+收入和直接成本!AO93+收入和直接成本!AO96+收入和直接成本!AO99+收入和直接成本!AO102+收入和直接成本!AO105+收入和直接成本!AO108+收入和直接成本!AO111+收入和直接成本!AO114 -> 233851.52 | AP18: =收入和直接成本!AP87+收入和直接成本!AP90+收入和直接成本!AP93+收入和直接成本!AP96+收入和直接成本!AP99+收入和直接成本!AP102+收入和直接成本!AP105+收入和直接成本!AP108+收入和直接成本!AP111+收入和直接成本!AP114 -> 309887.76 | AQ18: =收入和直接成本!AQ87+收入和直接成本!AQ90+收入和直接成本!AQ93+收入和直接成本!AQ96+收入和直接成本!AQ99+收入和直接成本!AQ102+收入和直接成本!AQ105+收入和直接成本!AQ108+收入和直接成本!AQ111+收入和直接成本!AQ114 -> 385924 | AR18: =收入和直接成本!AR87+收入和直接成本!AR90+收入和直接成本!AR93+收入和直接成本!AR96+收入和直接成本!AR99+收入和直接成本!AR102+收入和直接成本!AR105+收入和直接成本!AR108+收入和直接成本!AR111+收入和直接成本!AR114 -> 399553.84 | AS18: =收入和直接成本!AS87+收入和直接成本!AS90+收入和直接成本!AS93+收入和直接成本!AS96+收入和直接成本!AS99+收入和直接成本!AS102+收入和直接成本!AS105+收入和直接成本!AS108+收入和直接成本!AS111+收入和直接成本!AS114 -> 413183.68 | AT18: =收入和直接成本!AT87+收入和直接成本!AT90+收入和直接成本!AT93+收入和直接成本!AT96+收入和直接成本!AT99+收入和直接成本!AT102+收入和直接成本!AT105+收入和直接成本!AT108+收入和直接成本!AT111+收入和直接成本!AT114 -> 426813.52 | AU18: =收入和直接成本!AU87+收入和直接成本!AU90+收入和直接成本!AU93+收入和直接成本!AU96+收入和直接成本!AU99+收入和直接成本!AU102+收入和直接成本!AU105+收入和直接成本!AU108+收入和直接成本!AU111+收入和直接成本!AU114 -> 440443.36 | AV18: =收入和直接成本!AV87+收入和直接成本!AV90+收入和直接成本!AV93+收入和直接成本!AV96+收入和直接成本!AV99+收入和直接成本!AV102+收入和直接成本!AV105+收入和直接成本!AV108+收入和直接成本!AV111+收入和直接成本!AV114 -> 426813.52 | AW18: =收入和直接成本!AW87+收入和直接成本!AW90+收入和直接成本!AW93+收入和直接成本!AW96+收入和直接成本!AW99+收入和直接成本!AW102+收入和直接成本!AW105+收入和直接成本!AW108+收入和直接成本!AW111+收入和直接成本!AW114 -> 413183.68 | AX18: =收入和直接成本!AX87+收入和直接成本!AX90+收入和直接成本!AX93+收入和直接成本!AX96+收入和直接成本!AX99+收入和直接成本!AX102+收入和直接成本!AX105+收入和直接成本!AX108+收入和直接成本!AX111+收入和直接成本!AX114 -> 337147.44 | AY18: =收入和直接成本!AY87+收入和直接成本!AY90+收入和直接成本!AY93+收入和直接成本!AY96+收入和直接成本!AY99+收入和直接成本!AY102+收入和直接成本!AY105+收入和直接成本!AY108+收入和直接成本!AY111+收入和直接成本!AY114 -> 261111.2 | AZ18: 6580692.16
AZ19: 0
A20: 总直接成本合计 | D20: =D17+D18 -> 17081.4 | E20: =E17+E18 -> 21932.4 | F20: 26783.4 | G20: 31634.4 | H20: 36485.4 | I20: 47232.08 | J20: 57978.76 | K20: 68725.44 | L20: 79472.12 | M20: 90218.8 | N20: 91263.48 | O20: 92308.16 | P20: 87913.84 | Q20: 88958.52 | R20: 90003.2 | S20: 91047.88 | T20: 77539.56 | U20: 83435.24 | V20: 89330.92 | W20: 95226.6 | X20: 101122.28 | Y20: 107017.96 | Z20: 112913.64 | AA20: 107017.96 | AB20: 122280.48 | AC20: 116384.8 | AD20: 110489.12 | AE20: 104593.44 | AF20: 98697.76 | AG20: 92802.08 | AH20: 91888.72 | AI20: 105518.56 | AJ20: 119148.4 | AK20: 132778.24 | AL20: 162009.68 | AM20: 191241.12 | AN20: 267026.48 | AO20: 343062.72 | AP20: 434700.56 | AQ20: 510736.8 | AR20: 524366.64 | AS20: 537996.48 | AT20: 551626.32 | AU20: 565256.16 | AV20: 551626.32 | AW20: 537996.48 | AX20: 461960.24 | AY20: 385924 | AZ20: 8912755.04
AZ21: 0
A22: 库存金额 | D22: =收入和直接成本!D117 -> 282918.6 | E22: =收入和直接成本!E117 -> 260986.2 | F22: =收入和直接成本!F117 -> 234202.8 | G22: =收入和直接成本!G117 -> 202568.4 | H22: =收入和直接成本!H117 -> 166083 | I22: =收入和直接成本!I117 -> 118850.92 | J22: =收入和直接成本!J117 -> 60872.16 | K22: =收入和直接成本!K117 -> 292146.72 | L22: =收入和直接成本!L117 -> 212674.6 | M22: =收入和直接成本!M117 -> 122455.8 | N22: =收入和直接成本!N117 -> 31192.32 | O22: =收入和直接成本!O117 -> 238884.16 | P22: =收入和直接成本!P117 -> 450970.32 | Q22: =收入和直接成本!Q117 -> 662011.8 | R22: =收入和直接成本!R117 -> 672008.6 | S22: =收入和直接成本!S117 -> 580960.72 | T22: =收入和直接成本!T117 -> 503421.16 | U22: =收入和直接成本!U117 -> 419985.92 | V22: =收入和直接成本!V117 -> 330655 | W22: =收入和直接成本!W117 -> 235428.4 | X22: =收入和直接成本!X117 -> 134306.12 | Y22: =收入和直接成本!Y117 -> 27288.16 | Z22: =收入和直接成本!Z117 -> 1914374.52 | AA22: =收入和直接成本!AA117 -> 1807356.56 | AB22: =收入和直接成本!AB117 -> 1685076.08 | AC22: =收入和直接成本!AC117 -> 1568691.28 | AD22: =收入和直接成本!AD117 -> 1458202.16 | AE22: =收入和直接成本!AE117 -> 1353608.72 | AF22: =收入和直接成本!AF117 -> 1254910.96 | AG22: =收入和直接成本!AG117 -> 1162108.88 | AH22: =收入和直接成本!AH117 -> 1070220.16 | AI22: =收入和直接成本!AI117 -> 964701.6 | AJ22: =收入和直接成本!AJ117 -> 845553.2 | AK22: =收入和直接成本!AK117 -> 712774.96 | AL22: =收入和直接成本!AL117 -> 550765.28 | AM22: =收入和直接成本!AM117 -> 359524.16 | AN22: =收入和直接成本!AN117 -> 92497.68 | AO22: =收入和直接成本!AO117 -> 2749434.96 | AP22: =收入和直接成本!AP117 -> 2314734.4 | AQ22: =收入和直接成本!AQ117 -> 1803997.6 | AR22: =收入和直接成本!AR117 -> 1279630.96 | AS22: =收入和直接成本!AS117 -> 741634.48 | AT22: =收入和直接成本!AT117 -> 190008.16 | AU22: =收入和直接成本!AU117 -> 1624752 | AV22: =收入和直接成本!AV117 -> 1073125.68 | AW22: =收入和直接成本!AW117 -> 535129.2 | AX22: =收入和直接成本!AX117 -> 73168.96 | AY22: =收入和直接成本!AY117 -> 87244.96 | AZ22: 35514099.44
AZ23: 0
A24: 费用 | AZ24: 0
AZ25: 0
B26: 天猫平台固定费用 | D26: =费用!E11 -> 162053.1 | E26: =费用!F11 -> 2538.2 | F26: =费用!G11 -> 3023.3 | G26: =费用!H11 -> 3508.4 | H26: =费用!I11 -> 3993.5 | I26: =费用!J11 -> 5105.8 | J26: =费用!K11 -> 6218.1 | K26: =费用!L11 -> 7330.4 | L26: =费用!M11 -> 8442.7 | M26: =费用!N11 -> 9555 | N26: =费用!O11 -> 9697.1 | O26: =费用!P11 -> 9839.2 | P26: =费用!Q11 -> 10111.15 | Q26: =费用!R11 -> 10253.25 | R26: =费用!S11 -> 10395.35 | S26: =费用!T11 -> 10537.45 | T26: =费用!U11 -> 9224.25 | U26: =费用!V11 -> 9851.45 | V26: =费用!W11 -> 10478.65 | W26: =费用!X11 -> 11105.85 | X26: =费用!Y11 -> 11733.05 | Y26: =费用!Z11 -> 12360.25 | Z26: =费用!AA11 -> 12987.45 | AA26: =费用!AB11 -> 12360.25 | AB26: =费用!AC11 -> 13073.2 | AC26: =费用!AD11 -> 12446 | AD26: =费用!AE11 -> 11818.8 | AE26: =费用!AF11 -> 11191.6 | AF26: =费用!AG11 -> 10564.4 | AG26: =费用!AH11 -> 9937.2 | AH26: =费用!AI11 -> 9623.6 | AI26: =费用!AJ11 -> 10740.8 | AJ26: =费用!AK11 -> 11858 | AK26: =费用!AL11 -> 12975.2 | AL26: =费用!AM11 -> 16042.6 | AM26: =费用!AN11 -> 19110 | AN26: =费用!AO11 -> 29272.6 | AO26: =费用!AP11 -> 38190.6 | AP26: =费用!AQ11 -> 49058.8 | AQ26: =费用!AR11 -> 57976.8 | AR26: =费用!AS11 -> 59094 | AS26: =费用!AT11 -> 60211.2 | AT26: =费用!AU11 -> 61328.4 | AU26: =费用!AV11 -> 62445.6 | AV26: =费用!AW11 -> 61328.4 | AW26: =费用!AX11 -> 60211.2 | AX26: =费用!AY11 -> 51293.2 | AY26: =费用!AZ11 -> -17624.8 | AZ26: 1084870.6
B27: 营运费用【硬】 | D27: =费用!E50 -> 83641.5 | E27: =费用!F50 -> 7510.5 | F27: =费用!G50 -> 8539.5 | G27: =费用!H50 -> 9568.5 | H27: =费用!I50 -> 11797.5 | I27: =费用!J50 -> 12655.5 | J27: =费用!K50 -> 14713.5 | K27: =费用!L50 -> 16771.5 | L27: =费用!M50 -> 20029.5 | M27: =费用!N50 -> 20887.5 | N27: =费用!O50 -> 20887.5 | O27: =费用!P50 -> 20887.5 | P27: =费用!Q50 -> 45116.5 | Q27: =费用!R50 -> 21916.5 | R27: =费用!S50 -> 21916.5 | S27: =费用!T50 -> 21916.5 | T27: =费用!U50 -> 20029.5 | U27: =费用!V50 -> 19858.5 | V27: =费用!W50 -> 20887.5 | W27: =费用!X50 -> 21916.5 | X27: =费用!Y50 -> 24145.5 | Y27: =费用!Z50 -> 23974.5 | Z27: =费用!AA50 -> 25003.5 | AA27: =费用!AB50 -> 23974.5 | AB27: =费用!AC50 -> 45116.5 | AC27: =费用!AD50 -> 20887.5 | AD27: =费用!AE50 -> 19858.5 | AE27: =费用!AF50 -> 18829.5 | AF27: =费用!AG50 -> 19000.5 | AG27: =费用!AH50 -> 16771.5 | AH27: =费用!AI50 -> 14660.8 | AI27: =费用!AJ50 -> 12758.4 | AJ27: =费用!AK50 -> 15056 | AK27: =费用!AL50 -> 14953.6 | AL27: =费用!AM50 -> 17148.8 | AM27: =费用!AN50 -> 19344 | AN27: =费用!AO50 -> 45836.8 | AO27: =费用!AP50 -> 28124.8 | AP27: =费用!AQ50 -> 34710.4 | AQ27: =费用!AR50 -> 40198.4 | AR27: =费用!AS50 -> 42496 | AS27: =费用!AT50 -> 42393.6 | AT27: =费用!AU50 -> 43491.2 | AU27: =费用!AV50 -> 44588.8 | AV27: =费用!AW50 -> 44691.2 | AW27: =费用!AX50 -> 42393.6 | AX27: =费用!AY50 -> 36905.6 | AY27: =费用!AZ50 -> 31417.6 | AZ27: 1250179.6
B28: 营运费用【软】 | D28: =费用!E69 -> 24150 | E28: =费用!F69 -> 27650 | F28: =费用!G69 -> 31150 | G28: =费用!H69 -> 34650 | H28: =费用!I69 -> 38150 | I28: =费用!J69 -> 45150 | J28: =费用!K69 -> 52150 | K28: =费用!L69 -> 59150 | L28: =费用!M69 -> 66150 | M28: =费用!N69 -> 73150 | N28: =费用!O69 -> 73150 | O28: =费用!P69 -> 73150 | P28: =费用!Q69 -> 80850 | Q28: =费用!R69 -> 80850 | R28: =费用!S69 -> 80850 | S28: =费用!T69 -> 80850 | T28: =费用!U69 -> 70350 | U28: =费用!V69 -> 73850 | V28: =费用!W69 -> 77350 | W28: =费用!X69 -> 80850 | X28: =费用!Y69 -> 84350 | Y28: =费用!Z69 -> 87850 | Z28: =费用!AA69 -> 91350 | AA28: =费用!AB69 -> 87850 | AB28: =费用!AC69 -> 76650 | AC28: =费用!AD69 -> 73150 | AD28: =费用!AE69 -> 69650 | AE28: =费用!AF69 -> 66150 | AF28: =费用!AG69 -> 62650 | AG28: =费用!AH69 -> 59150 | AH28: =费用!AI69 -> 63000 | AI28: =费用!AJ69 -> 66500 | AJ28: =费用!AK69 -> 70000 | AK28: =费用!AL69 -> 73500 | AL28: =费用!AM69 -> 80500 | AM28: =费用!AN69 -> 87500 | AN28: =费用!AO69 -> 98000 | AO28: =费用!AP69 -> 115500 | AP28: =费用!AQ69 -> 140700 | AQ28: =费用!AR69 -> 158200 | AR28: =费用!AS69 -> 161700 | AS28: =费用!AT69 -> 165200 | AT28: =费用!AU69 -> 168700 | AU28: =费用!AV69 -> 172200 | AV28: =费用!AW69 -> 168700 | AW28: =费用!AX69 -> 165200 | AX28: =费用!AY69 -> 147700 | AY28: =费用!AZ69 -> 130200 | AZ28: 4215400
B29: 人员成本 | D29: =费用!E105 -> 46500 | E29: =费用!F105 -> 0 | F29: =费用!G105 -> 0 | G29: =费用!H105 -> 0 | H29: =费用!I105 -> 46500 | I29: =费用!J105 -> 0 | J29: =费用!K105 -> 0 | K29: =费用!L105 -> 0 | L29: =费用!M105 -> 46500 | M29: =费用!N105 -> 0 | N29: =费用!O105 -> 0 | O29: =费用!P105 -> 0 | P29: =费用!Q105 -> 46500 | Q29: =费用!R105 -> 0 | R29: =费用!S105 -> 0 | S29: =费用!T105 -> 0 | T29: =费用!U105 -> 46500 | U29: =费用!V105 -> 0 | V29: =费用!W105 -> 0 | W29: =费用!X105 -> 0 | X29: =费用!Y105 -> 46500 | Y29: =费用!Z105 -> 0 | Z29: =费用!AA105 -> 0 | AA29: =费用!AB105 -> 0 | AB29: =费用!AC105 -> 46500 | AC29: =费用!AD105 -> 0 | AD29: =费用!AE105 -> 0 | AE29: =费用!AF105 -> 0 | AF29: =费用!AG105 -> 46500 | AG29: =费用!AH105 -> 0 | AH29: =费用!AI105 -> 0 | AI29: =费用!AJ105 -> 0 | AJ29: =费用!AK105 -> 46500 | AK29: =费用!AL105 -> 0 | AL29: =费用!AM105 -> 0 | AM29: =费用!AN105 -> 0 | AN29: =费用!AO105 -> 46500 | AO29: =费用!AP105 -> 0 | AP29: =费用!AQ105 -> 0 | AQ29: =费用!AR105 -> 0 | AR29: =费用!AS105 -> 46500 | AS29: =费用!AT105 -> 0 | AT29: =费用!AU105 -> 0 | AU29: =费用!AV105 -> 0 | AV29: =费用!AW105 -> 46500 | AW29: =费用!AX105 -> 0 | AX29: =费用!AY105 -> 0 | AY29: =费用!AZ105 -> 0 | AZ29: 558000
AZ30: 0
A31: 总费用合计 | D31: =SUM(D26:D29) -> 316344.6 | E31: =SUM(E26:E29) -> 37698.7 | F31: 42712.8 | G31: 47726.9 | H31: 100441 | I31: 62911.3 | J31: 73081.6 | K31: 83251.9 | L31: 141122.2 | M31: 103592.5 | N31: 103734.6 | O31: 103876.7 | P31: 182577.65 | Q31: 113019.75 | R31: 113161.85 | S31: 113303.95 | T31: 146103.75 | U31: 103559.95 | V31: 108716.15 | W31: 113872.35 | X31: 166728.55 | Y31: 124184.75 | Z31: 129340.95 | AA31: 124184.75 | AB31: 181339.7 | AC31: 106483.5 | AD31: 101327.3 | AE31: 96171.1 | AF31: 138714.9 | AG31: 85858.7 | AH31: 87284.4 | AI31: 89999.2 | AJ31: 143414 | AK31: 101428.8 | AL31: 113691.4 | AM31: 125954 | AN31: 219609.4 | AO31: 181815.4 | AP31: 224469.2 | AQ31: 256375.2 | AR31: 309790 | AS31: 267804.8 | AT31: 273519.6 | AU31: 279234.4 | AV31: 321219.6 | AW31: 267804.8 | AX31: 235898.8 | AY31: 143992.8 | AZ31: 7108450.2
AZ32: 0
A33: 毛利润 | D33: =D13-D20 -> 23980.6 | E33: =E13-E20 -> 28831.6 | F33: 33682.6 | G33: 38533.6 | H33: 43384.6 | I33: 54883.92 | J33: 66383.24 | K33: 77882.56 | L33: 89381.88 | M33: 100881.2 | N33: 102678.52 | O33: 104475.84 | P33: 114309.16 | Q33: 116106.48 | R33: 117903.8 | S33: 119701.12 | T33: 106945.44 | U33: 113593.76 | V33: 120242.08 | W33: 126890.4 | X33: 133538.72 | Y33: 140187.04 | Z33: 146835.36 | AA33: 140187.04 | AB33: 139183.52 | AC33: 132535.2 | AD33: 125886.88 | AE33: 119238.56 | AF33: 112590.24 | AG33: 105941.92 | AH33: 100583.28 | AI33: 109297.44 | AJ33: 118011.6 | AK33: 126725.76 | AL33: 158842.32 | AM33: 190958.88 | AN33: 318425.52 | AO33: 420749.28 | AP33: 546475.44 | AQ33: 648799.2 | AR33: 657513.36 | AS33: 666227.52 | AT33: 674941.68 | AU33: 683655.84 | AV33: 674941.68 | AW33: 666227.52 | AX33: 563903.76 | AY33: 461580 | AZ33: 10784656.96
AZ34: 0
A35: 毛利润率 | D35: =D33/D13 -> 0.5840095465 | E35: =E33/E13 -> 0.567953668 | F35: 0.5570502431 | G35: 0.5491620112 | H35: 0.543190184 | I35: 0.5374664107 | J35: 0.5337903861 | K35: 0.5312299465 | L35: 0.5293441672 | M35: 0.5278974359 | N35: 0.5294290045 | O35: 0.5309163347 | P35: 0.5652629028 | Q35: 0.5661935484 | R35: 0.5670987509 | S35: 0.5679795396 | T35: 0.5796972112 | U35: 0.5765332007 | V35: 0.5737479542 | W35: 0.5712772998 | X35: 0.5690707872 | Y35: 0.5670882061 | Z35: 0.5652971138 | AA35: 0.5670882061 | AB35: 0.5323238381 | AC35: 0.5324409449 | AD35: 0.5325704809 | AE35: 0.5327145359 | AF35: 0.5328756957 | AG35: 0.5330571992 | AH35: 0.522586558 | AI35: 0.5087956204 | AJ35: 0.4976033058 | AK35: 0.4883383686 | AL35: 0.4950641417 | AM35: 0.4996307692 | AN35: 0.5438968865 | AO35: 0.5508545035 | AP35: 0.5569596484 | AQ35: 0.5595334686 | AR35: 0.5563283582 | AS35: 0.5532421875 | AT35: 0.5502684564 | AU35: 0.5474011299 | AV35: 0.5502684564 | AW35: 0.5532421875 | AX35: 0.5496866641 | AY35: 0.5446345976 | AZ35: 26.18209206
AZ36: 0
A37: 现金余额 | D37: =D6+D13-D31-收入和直接成本!D72 -> 424717.4 | E37: =D37+E6+E13-E31-收入和直接成本!E72 -> 437782.7 | F37: =E37+F6+F13-F31-收入和直接成本!F72 -> 455535.9 | G37: =F37+G6+G13-G31-收入和直接成本!G72 -> 477977 | H37: =G37+H6+H13-H31-收入和直接成本!H72 -> 457406 | I37: =H37+I6+I13-I31-收入和直接成本!I72 -> 496610.7 | J37: =I37+J6+J13-J31-收入和直接成本!J72 -> 547891.1 | K37: =J37+K6+K13-K31-收入和直接成本!K72 -> 311247.2 | L37: =K37+L6+L13-L31-收入和直接成本!L72 -> 338979 | M37: =L37+M6+M13-M31-收入和直接成本!M72 -> 426486.5 | N37: =M37+N6+N13-N31-收入和直接成本!N72 -> 516693.9 | O37: =N37+O6+O13-O31-收入和直接成本!O72 -> 309601.2 | P37: =O37+P6+P13-P31-收入和直接成本!P72 -> 29246.55 | Q37: =P37+Q6+Q13-Q31-收入和直接成本!Q72 -> 321291.8 | R37: =Q37+R6+R13-R31-收入和直接成本!R72 -> 316036.95 | S37: =R37+S6+S13-S31-收入和直接成本!S72 -> 413482 | T37: =S37+T6+T13-T31-收入和直接成本!T72 -> 451863.25 | U37: =T37+U6+U13-U31-收入和直接成本!U72 -> 545332.3 | V37: =U37+V6+V13-V31-收入和直接成本!V72 -> 646189.15 | W37: =V37+W6+W13-W31-收入和直接成本!W72 -> 754433.8 | X37: =W37+X6+X13-X31-收入和直接成本!X72 -> 822366.25 | Y37: =X37+Y6+Y13-Y31-收入和直接成本!Y72 -> 945386.5 | Z37: =Y37+Z6+Z13-Z31-收入和直接成本!Z72 -> 75794.55 | AA37: =Z37+AA6+AA13-AA31-收入和直接成本!AA72 -> 198814.8 | AB37: =AA37+AB6+AB13-AB31-收入和直接成本!AB72 -> 278939.1 | AC37: =AB37+AC6+AC13-AC31-收入和直接成本!AC72 -> 421375.6 | AD37: =AC37+AD6+AD13-AD31-收入和直接成本!AD72 -> 556424.3 | AE37: =AD37+AE6+AE13-AE31-收入和直接成本!AE72 -> 684085.2 | AF37: =AE37+AF6+AF13-AF31-收入和直接成本!AF72 -> 756658.3 | AG37: =AF37+AG6+AG13-AG31-收入和直接成本!AG72 -> 869543.6 | AH37: =AG37+AH6+AH13-AH31-收入和直接成本!AH72 -> 974731.2 | AI37: =AH37+AI6+AI13-AI31-收入和直接成本!AI72 -> 1099548 | AJ37: =AI37+AJ6+AJ13-AJ31-收入和直接成本!AJ72 -> 1193294 | AK37: =AJ37+AK6+AK13-AK31-收入和直接成本!AK72 -> 1351369.2 | AL37: =AK37+AL6+AL13-AL31-收入和直接成本!AL72 -> 1558529.8 | AM37: =AL37+AM6+AM13-AM31-收入和直接成本!AM72 -> 1814775.8 | AN37: =AM37+AN6+AN13-AN31-收入和直接成本!AN72 -> 2180618.4 | AO37: =AN37+AO6+AO13-AO31-收入和直接成本!AO72 -> 12615 | AP37: =AO37+AP6+AP13-AP31-收入和直接成本!AP72 -> 769321.8 | AQ37: =AP37+AQ6+AQ13-AQ31-收入和直接成本!AQ72 -> 1672482.6 | AR37: =AQ37+AR6+AR13-AR31-收入和直接成本!AR72 -> 2544572.6 | AS37: =AR37+AS6+AS13-AS31-收入和直接成本!AS72 -> 3480991.8 | AT37: =AS37+AT6+AT13-AT31-收入和直接成本!AT72 -> 4434040.2 | AU37: =AT37+AU6+AU13-AU31-收入和直接成本!AU72 -> 3403717.8 | AV37: =AU37+AV6+AV13-AV31-收入和直接成本!AV72 -> 4309066.2 | AW37: =AV37+AW6+AW13-AW31-收入和直接成本!AW72 -> 5245485.4 | AX37: =AW37+AX6+AX13-AX31-收入和直接成本!AX72 -> 6035450.6 | AY37: =AX37+AY6+AY13-AY31-收入和直接成本!AY72 -> 6338961.8 | AZ37: 62707764.8
AZ38: 0
A39: 税后净利润 | D39: =D13-D20-D31 -> -292364 | E39: =E13-E20-E31 -> -8867.1 | F39: -9030.2 | G39: -9193.3 | H39: -57056.4 | I39: -8027.38 | J39: -6698.36 | K39: -5369.34 | L39: -51740.32 | M39: -2711.3 | N39: -1056.08 | O39: 599.14 | P39: -68268.49 | Q39: 3086.73 | R39: 4741.95 | S39: 6397.17 | T39: -39158.31 | U39: 10033.81 | V39: 11525.93 | W39: 13018.05 | X39: -33189.83 | Y39: 16002.29 | Z39: 17494.41 | AA39: 16002.29 | AB39: -42156.18 | AC39: 26051.7 | AD39: 24559.58 | AE39: 23067.46 | AF39: -26124.66 | AG39: 20083.22 | AH39: 13298.88 | AI39: 19298.24 | AJ39: -25402.4 | AK39: 25296.96 | AL39: 45150.92 | AM39: 65004.88 | AN39: 98816.12 | AO39: 238933.88 | AP39: 322006.24 | AQ39: 392424 | AR39: 347723.36 | AS39: 398422.72 | AT39: 401422.08 | AU39: 404421.44 | AV39: 353722.08 | AW39: 398422.72 | AX39: 328004.96 | AY39: 317587.2 | AZ39: 3676206.76
